Organisation Name,Organisation Code,Date Paid,Transaction Number,Amount,Supplier Name,Supplier ID,Supplier post code (first 4 digits),Directorate,Service Area,General Ledger code Description,BVACOP class,Revenue/ Capital Spend
Wiltshire,http://opendatacommunities.org/id/unitary-authority/wiltshire,10/10/2017,1902013024,2880,1st Choice Cabs ,101285,SP4 ,Neighbourhood & Planning,SEN 16+ Secondary,Transport Contracts,Third Party Payments,REVENUE
Wiltshire,http://opendatacommunities.org/id/unitary-authority/wiltshire,30/10/2017,1902026253,2250,1st Choice Cabs ,101285,SP4 ,Neighbourhood & Planning,SEN 16+ Secondary,Transport Contracts,Third Party Payments,REVENUE
Wiltshire,http://opendatacommunities.org/id/unitary-authority/wiltshire,04/10/2017,1902010546,3495,1st Choice Stairlifts ,113095,SN11,Wiltshire Council,Wiltshire Council,Payments to Contractors - Other,Third Party Payments,CAPITAL
Wiltshire,http://opendatacommunities.org/id/unitary-authority/wiltshire,25/10/2017,1902018241,3411,1st Choice Stairlifts ,113095,SN11,Wiltshire Council,Wiltshire Council,Payments to Contractors - Other,Third Party Payments,CAPITAL
Wiltshire,http://opendatacommunities.org/id/unitary-authority/wiltshire,18/10/2017,5107122173,2424.2,2 Care UK Ltd ,110002,BH7 ,Community Services,MH AOWA South Locali,Supported Living - Without SP payments,Third Party Payments,REVENUE
Wiltshire,http://opendatacommunities.org/id/unitary-authority/wiltshire,18/10/2017,5107122174,2424.2,2 Care UK Ltd ,110002,BH7 ,Community Services,MH AOWA South Locali,Supported Living - Without SP payments,Third Party Payments,REVENUE
Wiltshire,http://opendatacommunities.org/id/unitary-authority/wiltshire,18/10/2017,5107122175,2424.2,2 Care UK Ltd ,110002,BH7 ,Community Services,MH AOWA South Locali,Supported Living - Without SP payments,Third Party Payments,REVENUE
Wiltshire,http://opendatacommunities.org/id/unitary-authority/wiltshire,18/10/2017,5107122176,2424.2,2 Care UK Ltd ,110002,BH7 ,Community Services,MH AOWA South Locali,Supported Living - Without SP payments,Third Party Payments,REVENUE
Wiltshire,http://opendatacommunities.org/id/unitary-authority/wiltshire,18/10/2017,5107122177,2424.2,2 Care UK Ltd ,110002,BH7 ,Community Services,MH AOWA South Locali,Supported Living - Without SP payments,Third Party Payments,REVENUE
Wiltshire,http://opendatacommunities.org/id/unitary-authority/wiltshire,18/10/2017,5107122736,7321.68,22 Wingfield ,129621,BA14,Community Services,CTPLD Placements,Adult Residential Placements - Spot Purchase,Third Party Payments,REVENUE
Wiltshire,http://opendatacommunities.org/id/unitary-authority/wiltshire,18/10/2017,5107123960,845.6,22 Wingfield ,129621,BA14,Community Services,MH AOWA West Localit,Supported Living - Without SP payments,Third Party Payments,REVENUE
Wiltshire,http://opendatacommunities.org/id/unitary-authority/wiltshire,18/10/2017,5107124923,5945.68,22 Wingfield ,129621,BA14,Community Services,CTPLD Placements,Adult Residential Placements - Spot Purchase,Third Party Payments,REVENUE
Wiltshire,http://opendatacommunities.org/id/unitary-authority/wiltshire,18/10/2017,5107124991,5791.16,22 Wingfield ,129621,BA14,Community Services,MH AOWA West Localit,Adult Residential Placements - Spot Purchase,Third Party Payments,REVENUE
Wiltshire,http://opendatacommunities.org/id/unitary-authority/wiltshire,18/10/2017,5107125040,7550.24,22 Wingfield ,129621,BA14,Community Services,CTPLD Placements,Adult Residential Placements - Spot Purchase,Third Party Payments,REVENUE
Wiltshire,http://opendatacommunities.org/id/unitary-authority/wiltshire,18/10/2017,5107125917,7499.32,22 Wingfield ,129621,BA14,Community Services,Ad/Brad Rd,Adult Residential Placements - Spot Purchase,Third Party Payments,REVENUE
Wiltshire,http://opendatacommunities.org/id/unitary-authority/wiltshire,04/10/2017,5107113223,537.9,24-7 Staffing ,140662,SN15,Community Services,Chippenham Respite,Agency Staff,Employee Related,REVENUE
Wiltshire,http://opendatacommunities.org/id/unitary-authority/wiltshire,26/10/2017,5107128859,435.39,24-7 Staffing ,140662,SN15,Community Services,Bradbury Manor Resp,Agency Staff,Employee Related,REVENUE
Wiltshire,http://opendatacommunities.org/id/unitary-authority/wiltshire,26/10/2017,5107128870,649.76,24-7 Staffing ,140662,SN15,Community Services,Bradbury Manor Resp,Agency Staff,Employee Related,REVENUE
Wiltshire,http://opendatacommunities.org/id/unitary-authority/wiltshire,26/10/2017,5107128872,459.29,24-7 Staffing ,140662,SN15,Community Services,Bradbury Manor Resp,Agency Staff,Employee Related,REVENUE
Wiltshire,http://opendatacommunities.org/id/unitary-authority/wiltshire,13/10/2017,1902014278,2520,2get2 Taxi Services Ltd ,101102,SP4 ,Neighbourhood & Planning,SEN 16+ Secondary,Transport Contracts,Third Party Payments,REVENUE
Wiltshire,http://opendatacommunities.org/id/unitary-authority/wiltshire,13/10/2017,1902014281,1800,2get2 Taxi Services Ltd ,101102,SP4 ,Neighbourhood & Planning,SEN Primary,Transport Contracts,Third Party Payments,REVENUE
Wiltshire,http://opendatacommunities.org/id/unitary-authority/wiltshire,23/10/2017,1902017507,3585.45,3MS Gold Services ,144873,B19 ,Wiltshire Council,Wiltshire Council,Payments to Contractors - Other,Third Party Payments,CAPITAL
Wiltshire,http://opendatacommunities.org/id/unitary-authority/wiltshire,11/10/2017,1902013651,291.2,A  and  S Private Hire ,101115,SN15,Neighbourhood & Planning,SEN Primary,Transport Contracts,Third Party Payments,REVENUE
Wiltshire,http://opendatacommunities.org/id/unitary-authority/wiltshire,11/10/2017,1902013651,748.8,A  and  S Private Hire ,101115,SN15,Neighbourhood & Planning,SEN 16+ Secondary,Transport Contracts,Third Party Payments,REVENUE
Wiltshire,http://opendatacommunities.org/id/unitary-authority/wiltshire,17/10/2017,1902016315,722,A & P Taxis ,143342,SN12,Neighbourhood & Planning,SEN 16+ Secondary,Transport Contracts,Third Party Payments,REVENUE
Wiltshire,http://opendatacommunities.org/id/unitary-authority/wiltshire,17/10/2017,1902016315,1900,A & P Taxis ,143342,SN12,Neighbourhood & Planning,SEN Primary,Transport Contracts,Third Party Payments,REVENUE
Wiltshire,http://opendatacommunities.org/id/unitary-authority/wiltshire,17/10/2017,1902016331,712.5,A & P Taxis ,143342,SN12,Neighbourhood & Planning,SEN Primary,Transport Contracts,Third Party Payments,REVENUE
Wiltshire,http://opendatacommunities.org/id/unitary-authority/wiltshire,17/10/2017,1902016331,2137.5,A & P Taxis ,143342,SN12,Neighbourhood & Planning,SEN 16+ Secondary,Transport Contracts,Third Party Payments,REVENUE
Wiltshire,http://opendatacommunities.org/id/unitary-authority/wiltshire,17/10/2017,1902016336,1312,A & P Taxis ,143342,SN12,Neighbourhood & Planning,SEN 16+ Secondary,Transport Contracts,Third Party Payments,REVENUE
Wiltshire,http://opendatacommunities.org/id/unitary-authority/wiltshire,27/10/2017,1902025333,480,A & P Taxis ,143342,SN12,Neighbourhood & Planning,SEN 16+ Secondary,Transport Contracts,Third Party Payments,REVENUE
Wiltshire,http://opendatacommunities.org/id/unitary-authority/wiltshire,12/10/2017,1902014028,1910.4,A G Minibuses Ltd ,100878,BA12,Neighbourhood & Planning,SEN 16+ Secondary,Transport Contracts,Third Party Payments,REVENUE
Wiltshire,http://opendatacommunities.org/id/unitary-authority/wiltshire,12/10/2017,1902014028,3820.8,A G Minibuses Ltd ,100878,BA12,Neighbourhood & Planning,SEN Primary,Transport Contracts,Third Party Payments,REVENUE
Wiltshire,http://opendatacommunities.org/id/unitary-authority/wiltshire,12/10/2017,1902014032,558.4,A G Minibuses Ltd ,100878,BA12,Community Services,Lansdown,Transport Contracts,Third Party Payments,REVENUE
Wiltshire,http://opendatacommunities.org/id/unitary-authority/wiltshire,12/10/2017,1902014032,2163.82,A G Minibuses Ltd ,100878,BA12,Community Services,CTPLD Placements,Transport Contracts,Third Party Payments,REVENUE
Wiltshire,http://opendatacommunities.org/id/unitary-authority/wiltshire,12/10/2017,1902014038,997.5,A G Minibuses Ltd ,100878,BA12,Neighbourhood & Planning,Mainstream Primary,Transport Contracts,Third Party Payments,REVENUE
Wiltshire,http://opendatacommunities.org/id/unitary-authority/wiltshire,12/10/2017,1902014038,1588.52,A G Minibuses Ltd ,100878,BA12,Neighbourhood & Planning,Public Transport,Transport Contracts,Third Party Payments,REVENUE
Wiltshire,http://opendatacommunities.org/id/unitary-authority/wiltshire,12/10/2017,1902014038,1797.39,A G Minibuses Ltd ,100878,BA12,Neighbourhood & Planning,Connect 2 Wiltshire,Transport Contracts,Third Party Payments,REVENUE
Wiltshire,http://opendatacommunities.org/id/unitary-authority/wiltshire,12/10/2017,1902014039,1583.33,A G Minibuses Ltd ,100878,BA12,Neighbourhood & Planning,Mainstream Secondary,Transport Contracts,Third Party Payments,REVENUE
Wiltshire,http://opendatacommunities.org/id/unitary-authority/wiltshire,12/10/2017,1902014039,3951.63,A G Minibuses Ltd ,100878,BA12,Neighbourhood & Planning,Connect 2 Wiltshire,Transport Contracts,Third Party Payments,REVENUE
Wiltshire,http://opendatacommunities.org/id/unitary-authority/wiltshire,12/10/2017,1902014042,1603.47,A G Minibuses Ltd ,100878,BA12,Neighbourhood & Planning,SEN Primary,Transport Contracts,Third Party Payments,REVENUE
Wiltshire,http://opendatacommunities.org/id/unitary-authority/wiltshire,12/10/2017,1902014043,304,A G Minibuses Ltd ,100878,BA12,Children & Education,SENTransport,Transport Contracts,Third Party Payments,REVENUE
Wiltshire,http://opendatacommunities.org/id/unitary-authority/wiltshire,12/10/2017,1902014044,1890.89,A G Minibuses Ltd ,100878,BA12,Neighbourhood & Planning,Mainstream Primary,Transport Contracts,Third Party Payments,REVENUE
Wiltshire,http://opendatacommunities.org/id/unitary-authority/wiltshire,12/10/2017,1902014045,1988.79,A G Minibuses Ltd ,100878,BA12,Neighbourhood & Planning,Mainstream Primary,Transport Contracts,Third Party Payments,REVENUE
Wiltshire,http://opendatacommunities.org/id/unitary-authority/wiltshire,12/10/2017,1902014047,1294.92,A G Minibuses Ltd ,100878,BA12,Neighbourhood & Planning,Mainstream Secondary,Transport Contracts,Third Party Payments,REVENUE
Wiltshire,http://opendatacommunities.org/id/unitary-authority/wiltshire,12/10/2017,1902014048,1753.03,A G Minibuses Ltd ,100878,BA12,Community Services,CTPLD Placements,Transport Contracts,Third Party Payments,REVENUE
Wiltshire,http://opendatacommunities.org/id/unitary-authority/wiltshire,12/10/2017,1902014049,1204,A G Minibuses Ltd ,100878,BA12,Community Services,CTPLD Placements,Transport Contracts,Third Party Payments,REVENUE
Wiltshire,http://opendatacommunities.org/id/unitary-authority/wiltshire,12/10/2017,1902014050,1714.5,A G Minibuses Ltd ,100878,BA12,Neighbourhood & Planning,Mainstream Primary,Transport Contracts,Third Party Payments,REVENUE
Wiltshire,http://opendatacommunities.org/id/unitary-authority/wiltshire,12/10/2017,1902014051,752.4,A G Minibuses Ltd ,100878,BA12,Neighbourhood & Planning,SEN 16+ Secondary,Transport Contracts,Third Party Payments,REVENUE
Wiltshire,http://opendatacommunities.org/id/unitary-authority/wiltshire,12/10/2017,1902014051,1504.8,A G Minibuses Ltd ,100878,BA12,Neighbourhood & Planning,SEN Primary,Transport Contracts,Third Party Payments,REVENUE
Wiltshire,http://opendatacommunities.org/id/unitary-authority/wiltshire,12/10/2017,1902014052,727.2,A G Minibuses Ltd ,100878,BA12,Neighbourhood & Planning,SEN Primary,Transport Contracts,Third Party Payments,REVENUE
Wiltshire,http://opendatacommunities.org/id/unitary-authority/wiltshire,12/10/2017,1902014052,1090.8,A G Minibuses Ltd ,100878,BA12,Neighbourhood & Planning,SEN 16+ Secondary,Transport Contracts,Third Party Payments,REVENUE
Wiltshire,http://opendatacommunities.org/id/unitary-authority/wiltshire,12/10/2017,1902014053,840.48,A G Minibuses Ltd ,100878,BA12,Neighbourhood & Planning,SEN 16+ Secondary,Transport Contracts,Third Party Payments,REVENUE
Wiltshire,http://opendatacommunities.org/id/unitary-authority/wiltshire,12/10/2017,1902014053,884.72,A G Minibuses Ltd ,100878,BA12,Neighbourhood & Planning,SEN Primary,Transport Contracts,Third Party Payments,REVENUE
Wiltshire,http://opendatacommunities.org/id/unitary-authority/wiltshire,12/10/2017,1902014054,1995,A G Minibuses Ltd ,100878,BA12,Neighbourhood & Planning,SEN 16+ Secondary,Transport Contracts,Third Party Payments,REVENUE
Wiltshire,http://opendatacommunities.org/id/unitary-authority/wiltshire,12/10/2017,1902014055,325.74,A G Minibuses Ltd ,100878,BA12,Neighbourhood & Planning,SEN Primary,Transport Contracts,Third Party Payments,REVENUE
Wiltshire,http://opendatacommunities.org/id/unitary-authority/wiltshire,12/10/2017,1902014055,1954.26,A G Minibuses Ltd ,100878,BA12,Neighbourhood & Planning,SEN 16+ Secondary,Transport Contracts,Third Party Payments,REVENUE
Wiltshire,http://opendatacommunities.org/id/unitary-authority/wiltshire,12/10/2017,1902014056,2780,A G Minibuses Ltd ,100878,BA12,Neighbourhood & Planning,SEN 16+ Secondary,Transport Contracts,Third Party Payments,REVENUE
Wiltshire,http://opendatacommunities.org/id/unitary-authority/wiltshire,12/10/2017,1902014057,294.29,A G Minibuses Ltd ,100878,BA12,Neighbourhood & Planning,SEN Primary,Transport Contracts,Third Party Payments,REVENUE
Wiltshire,http://opendatacommunities.org/id/unitary-authority/wiltshire,12/10/2017,1902014057,1765.71,A G Minibuses Ltd ,100878,BA12,Neighbourhood & Planning,SEN 16+ Secondary,Transport Contracts,Third Party Payments,REVENUE
Wiltshire,http://opendatacommunities.org/id/unitary-authority/wiltshire,17/10/2017,1902016316,2830.05,A G Minibuses Ltd ,100878,BA12,Neighbourhood & Planning,SEN 16+ Secondary,Transport Contracts,Third Party Payments,REVENUE
Wiltshire,http://opendatacommunities.org/id/unitary-authority/wiltshire,19/10/2017,5107119263,1316.78,A S A Awards Scheme ,110020,LE11,Neighbourhood & Planning,Five Rivers,Traded Goods Expenses,Supplies and Services,REVENUE
Wiltshire,http://opendatacommunities.org/id/unitary-authority/wiltshire,09/10/2017,1902012618,1360,A1 Cab Company ,101233,SP4 ,Neighbourhood & Planning,SEN Primary,Transport Contracts,Third Party Payments,REVENUE
Wiltshire,http://opendatacommunities.org/id/unitary-authority/wiltshire,09/10/2017,1902012626,1162.5,A1 Cab Company ,101233,SP4 ,Neighbourhood & Planning,SEN 16+ Secondary,Transport Contracts,Third Party Payments,REVENUE
Wiltshire,http://opendatacommunities.org/id/unitary-authority/wiltshire,10/10/2017,1902013037,544,A1 Cab Company ,101233,SP4 ,Community Services,CTPLD Placements,Transport Contracts,Third Party Payments,REVENUE
Wiltshire,http://opendatacommunities.org/id/unitary-authority/wiltshire,10/10/2017,1902013045,925,A1 Cab Company ,101233,SP4 ,Children & Education,EOTAS Service,Transport Contracts,Third Party Payments,REVENUE
Wiltshire,http://opendatacommunities.org/id/unitary-authority/wiltshire,10/10/2017,1902013046,1040,A1 Cab Company ,101233,SP4 ,Community Services,CTPLD Placements,Transport Contracts,Third Party Payments,REVENUE
Wiltshire,http://opendatacommunities.org/id/unitary-authority/wiltshire,25/10/2017,1902024521,1520,A1 Cab Company ,101233,SP4 ,Children & Education,CIC Team South,Transport Contracts,Third Party Payments,REVENUE
Wiltshire,http://opendatacommunities.org/id/unitary-authority/wiltshire,13/10/2017,1902014310,9473.67,A2 Winchester Ltd ,101167,SO23,Neighbourhood & Planning,Hsg Strat & Enabling,Payments to Contractors - Other,Third Party Payments,REVENUE
Wiltshire,http://opendatacommunities.org/id/unitary-authority/wiltshire,06/10/2017,5107119722,465,A-2-B Rubbish Clearance ,139914,BH1 ,Neighbourhood & Planning,Oak Tree Field G&T,Highways - Other Materials,Supplies and Services,REVENUE
Wiltshire,http://opendatacommunities.org/id/unitary-authority/wiltshire,25/10/2017,1902024538,408,A2B Taxis (Dorset) ,143353,SP8 ,Neighbourhood & Planning,Mainstream Secondary,Transport Contracts,Third Party Payments,REVENUE
Wiltshire,http://opendatacommunities.org/id/unitary-authority/wiltshire,10/10/2017,1902013023,283.33,Abbey Taxis (Swindon) Ltd ,100920,SN2 ,Neighbourhood & Planning,SEN 16+ Secondary,Transport Contracts,Third Party Payments,REVENUE
Wiltshire,http://opendatacommunities.org/id/unitary-authority/wiltshire,10/10/2017,1902013026,675,Abbey Taxis (Swindon) Ltd ,100920,SN2 ,Neighbourhood & Planning,Mainstream Primary,Transport Contracts,Third Party Payments,REVENUE
Wiltshire,http://opendatacommunities.org/id/unitary-authority/wiltshire,10/10/2017,1902013026,2025,Abbey Taxis (Swindon) Ltd ,100920,SN2 ,Neighbourhood & Planning,SEN Primary,Transport Contracts,Third Party Payments,REVENUE
Wiltshire,http://opendatacommunities.org/id/unitary-authority/wiltshire,10/10/2017,1902013028,1223.6,Abbey Taxis (Swindon) Ltd ,100920,SN2 ,Neighbourhood & Planning,SEN Primary,Transport Contracts,Third Party Payments,REVENUE
Wiltshire,http://opendatacommunities.org/id/unitary-authority/wiltshire,10/10/2017,1902013028,1303.4,Abbey Taxis (Swindon) Ltd ,100920,SN2 ,Neighbourhood & Planning,SEN 16+ Secondary,Transport Contracts,Third Party Payments,REVENUE
Wiltshire,http://opendatacommunities.org/id/unitary-authority/wiltshire,10/10/2017,1902013029,2470,Abbey Taxis (Swindon) Ltd ,100920,SN2 ,Neighbourhood & Planning,SEN 16+ Secondary,Transport Contracts,Third Party Payments,REVENUE
Wiltshire,http://opendatacommunities.org/id/unitary-authority/wiltshire,10/10/2017,1902013031,1188,Abbey Taxis (Swindon) Ltd ,100920,SN2 ,Neighbourhood & Planning,SEN Primary,Transport Contracts,Third Party Payments,REVENUE
Wiltshire,http://opendatacommunities.org/id/unitary-authority/wiltshire,10/10/2017,1902013032,765.7,Abbey Taxis (Swindon) Ltd ,100920,SN2 ,Neighbourhood & Planning,SEN Primary,Transport Contracts,Third Party Payments,REVENUE
Wiltshire,http://opendatacommunities.org/id/unitary-authority/wiltshire,10/10/2017,1902013032,1914.3,Abbey Taxis (Swindon) Ltd ,100920,SN2 ,Neighbourhood & Planning,SEN 16+ Secondary,Transport Contracts,Third Party Payments,REVENUE
Wiltshire,http://opendatacommunities.org/id/unitary-authority/wiltshire,10/10/2017,1902013033,385.71,Abbey Taxis (Swindon) Ltd ,100920,SN2 ,Neighbourhood & Planning,SEN Primary,Transport Contracts,Third Party Payments,REVENUE
Wiltshire,http://opendatacommunities.org/id/unitary-authority/wiltshire,10/10/2017,1902013033,385.74,Abbey Taxis (Swindon) Ltd ,100920,SN2 ,Children & Education,SENTransport,Transport Contracts,Third Party Payments,REVENUE
Wiltshire,http://opendatacommunities.org/id/unitary-authority/wiltshire,10/10/2017,1902013033,1928.55,Abbey Taxis (Swindon) Ltd ,100920,SN2 ,Neighbourhood & Planning,SEN 16+ Secondary,Transport Contracts,Third Party Payments,REVENUE
Wiltshire,http://opendatacommunities.org/id/unitary-authority/wiltshire,10/10/2017,1902013034,2075,Abbey Taxis (Swindon) Ltd ,100920,SN2 ,Neighbourhood & Planning,SEN 16+ Secondary,Transport Contracts,Third Party Payments,REVENUE
Wiltshire,http://opendatacommunities.org/id/unitary-authority/wiltshire,10/10/2017,1902013035,472,Abbey Taxis (Swindon) Ltd ,100920,SN2 ,Neighbourhood & Planning,SEN 16+ Secondary,Transport Contracts,Third Party Payments,REVENUE
Wiltshire,http://opendatacommunities.org/id/unitary-authority/wiltshire,10/10/2017,1902013036,752,Abbey Taxis (Swindon) Ltd ,100920,SN2 ,Neighbourhood & Planning,SEN 16+ Secondary,Transport Contracts,Third Party Payments,REVENUE
Wiltshire,http://opendatacommunities.org/id/unitary-authority/wiltshire,10/10/2017,1902013040,2070,Abbey Taxis (Swindon) Ltd ,100920,SN2 ,Neighbourhood & Planning,Mainstream Secondary,Transport Contracts,Third Party Payments,REVENUE
Wiltshire,http://opendatacommunities.org/id/unitary-authority/wiltshire,10/10/2017,1902013041,765,Abbey Taxis (Swindon) Ltd ,100920,SN2 ,Neighbourhood & Planning,SEN 16+ Secondary,Transport Contracts,Third Party Payments,REVENUE
Wiltshire,http://opendatacommunities.org/id/unitary-authority/wiltshire,10/10/2017,1902013042,1800,Abbey Taxis (Swindon) Ltd ,100920,SN2 ,Neighbourhood & Planning,SEN 16+ Secondary,Transport Contracts,Third Party Payments,REVENUE
Wiltshire,http://opendatacommunities.org/id/unitary-authority/wiltshire,10/10/2017,1902013043,570,Abbey Taxis (Swindon) Ltd ,100920,SN2 ,Neighbourhood & Planning,Mainstream Primary,Transport Contracts,Third Party Payments,REVENUE
Wiltshire,http://opendatacommunities.org/id/unitary-authority/wiltshire,10/10/2017,1902013044,1360,Abbey Taxis (Swindon) Ltd ,100920,SN2 ,Community Services,CTPLD Placements,Transport Contracts,Third Party Payments,REVENUE
Wiltshire,http://opendatacommunities.org/id/unitary-authority/wiltshire,10/10/2017,1902013048,640,Abbey Taxis (Swindon) Ltd ,100920,SN2 ,Neighbourhood & Planning,Mainstream Primary,Transport Contracts,Third Party Payments,REVENUE
Wiltshire,http://opendatacommunities.org/id/unitary-authority/wiltshire,10/10/2017,1902013049,320,Abbey Taxis (Swindon) Ltd ,100920,SN2 ,Neighbourhood & Planning,Mainstream 16+ FE,Transport Contracts,Third Party Payments,REVENUE
Wiltshire,http://opendatacommunities.org/id/unitary-authority/wiltshire,11/10/2017,1902013685,1900,Abbey Taxis (Swindon) Ltd ,100920,SN2 ,Neighbourhood & Planning,SEN Primary,Transport Contracts,Third Party Payments,REVENUE
Wiltshire,http://opendatacommunities.org/id/unitary-authority/wiltshire,12/10/2017,1902014021,1700,Abbey Taxis (Swindon) Ltd ,100920,SN2 ,Neighbourhood & Planning,SEN Primary,Transport Contracts,Third Party Payments,REVENUE
Wiltshire,http://opendatacommunities.org/id/unitary-authority/wiltshire,12/10/2017,1902014022,623.34,Abbey Taxis (Swindon) Ltd ,100920,SN2 ,Neighbourhood & Planning,SEN 16+ Secondary,Transport Contracts,Third Party Payments,REVENUE
Wiltshire,http://opendatacommunities.org/id/unitary-authority/wiltshire,12/10/2017,1902014022,1246.66,Abbey Taxis (Swindon) Ltd ,100920,SN2 ,Neighbourhood & Planning,SEN Primary,Transport Contracts,Third Party Payments,REVENUE
Wiltshire,http://opendatacommunities.org/id/unitary-authority/wiltshire,12/10/2017,1902014025,641.66,Abbey Taxis (Swindon) Ltd ,100920,SN2 ,Neighbourhood & Planning,SEN 16+ Secondary,Transport Contracts,Third Party Payments,REVENUE
Wiltshire,http://opendatacommunities.org/id/unitary-authority/wiltshire,12/10/2017,1902014025,1283.34,Abbey Taxis (Swindon) Ltd ,100920,SN2 ,Neighbourhood & Planning,SEN Primary,Transport Contracts,Third Party Payments,REVENUE
Wiltshire,http://opendatacommunities.org/id/unitary-authority/wiltshire,30/10/2017,1902026270,1022,Abbey Taxis (Swindon) Ltd ,100920,SN2 ,Neighbourhood & Planning,SEN 16+ Secondary,Transport Contracts,Third Party Payments,REVENUE
Wiltshire,http://opendatacommunities.org/id/unitary-authority/wiltshire,30/10/2017,1902026281,1666.94,Abbey Taxis (Swindon) Ltd ,100920,SN2 ,Neighbourhood & Planning,SEN Primary,Transport Contracts,Third Party Payments,REVENUE
Wiltshire,http://opendatacommunities.org/id/unitary-authority/wiltshire,30/10/2017,1902026281,2593.06,Abbey Taxis (Swindon) Ltd ,100920,SN2 ,Neighbourhood & Planning,SEN 16+ Secondary,Transport Contracts,Third Party Payments,REVENUE
Wiltshire,http://opendatacommunities.org/id/unitary-authority/wiltshire,11/10/2017,1902013679,960,Abbey Taxis Ltd ,101080,BA2 ,Neighbourhood & Planning,SEN 16+ Secondary,Transport Contracts,Third Party Payments,REVENUE
Wiltshire,http://opendatacommunities.org/id/unitary-authority/wiltshire,18/10/2017,1902016402,259.64,Abicare Services Ltd Homecare ,110031,SP2 ,Community Services,HTLAH - Neighbourhoo,Interim Support Plan - HTLAH,Third Party Payments,REVENUE
Wiltshire,http://opendatacommunities.org/id/unitary-authority/wiltshire,11/10/2017,5107121570,532.23,Abicare Services Ltd Homecare ,110031,SP2 ,Community Services,BoA Cluster,Adult Domiciliary Care - Spot Contribution,Income,REVENUE
Wiltshire,http://opendatacommunities.org/id/unitary-authority/wiltshire,11/10/2017,5107121571,381.86,Abicare Services Ltd Homecare ,110031,SP2 ,Community Services,MH OP West Locality,Adult Domiciliary Care - Spot,Third Party Payments,REVENUE
Wiltshire,http://opendatacommunities.org/id/unitary-authority/wiltshire,11/10/2017,5107121639,546.81,Abicare Services Ltd Homecare ,110031,SP2 ,Community Services,CTPLD Placements,Adult Domiciliary Care - Spot,Third Party Payments,REVENUE
Wiltshire,http://opendatacommunities.org/id/unitary-authority/wiltshire,11/10/2017,5107121651,266.13,Abicare Services Ltd Homecare ,110031,SP2 ,Community Services,Ad/Brad Rd,Adult Domiciliary Care - Spot,Third Party Payments,REVENUE
Wiltshire,http://opendatacommunities.org/id/unitary-authority/wiltshire,13/10/2017,5107122436,545.68,Abicare Services Ltd Homecare ,110031,SP2 ,Community Services,MH OP West Locality,Adult Domiciliary Care - Spot Contribution,Income,REVENUE
Wiltshire,http://opendatacommunities.org/id/unitary-authority/wiltshire,16/10/2017,5107124024,532.23,Abicare Services Ltd Homecare ,110031,SP2 ,Community Services,BoA Cluster,Adult Domiciliary Care - Spot Contribution,Income,REVENUE
Wiltshire,http://opendatacommunities.org/id/unitary-authority/wiltshire,16/10/2017,5107124026,545.68,Abicare Services Ltd Homecare ,110031,SP2 ,Community Services,MH OP West Locality,Adult Domiciliary Care - Spot Contribution,Income,REVENUE
Wiltshire,http://opendatacommunities.org/id/unitary-authority/wiltshire,18/10/2017,5107125288,546.81,Abicare Services Ltd Homecare ,110031,SP2 ,Community Services,CTPLD Placements,Adult Domiciliary Care - Spot,Third Party Payments,REVENUE
Wiltshire,http://opendatacommunities.org/id/unitary-authority/wiltshire,18/10/2017,5107125300,266.13,Abicare Services Ltd Homecare ,110031,SP2 ,Community Services,Ad/Brad Rd,Adult Domiciliary Care - Spot,Third Party Payments,REVENUE
Wiltshire,http://opendatacommunities.org/id/unitary-authority/wiltshire,18/10/2017,5107125454,482.16,Abicare Services Ltd Homecare ,110031,SP2 ,Community Services,Downton,Adult Domiciliary Care - Spot,Third Party Payments,REVENUE
Wiltshire,http://opendatacommunities.org/id/unitary-authority/wiltshire,18/10/2017,5107125455,473.55,Abicare Services Ltd Homecare ,110031,SP2 ,Community Services,Downton,Adult Domiciliary Care - Spot,Third Party Payments,REVENUE
Wiltshire,http://opendatacommunities.org/id/unitary-authority/wiltshire,19/10/2017,5107126769,482.16,Abicare Services Ltd Homecare ,110031,SP2 ,Community Services,Downton,Adult Domiciliary Care - Spot,Third Party Payments,REVENUE
Wiltshire,http://opendatacommunities.org/id/unitary-authority/wiltshire,19/10/2017,5107126770,482.16,Abicare Services Ltd Homecare ,110031,SP2 ,Community Services,Downton,Adult Domiciliary Care - Spot,Third Party Payments,REVENUE
Wiltshire,http://opendatacommunities.org/id/unitary-authority/wiltshire,19/10/2017,5107126771,482.16,Abicare Services Ltd Homecare ,110031,SP2 ,Community Services,Downton,Adult Domiciliary Care - Spot,Third Party Payments,REVENUE
Wiltshire,http://opendatacommunities.org/id/unitary-authority/wiltshire,19/10/2017,5107126772,482.16,Abicare Services Ltd Homecare ,110031,SP2 ,Community Services,Downton,Adult Domiciliary Care - Spot,Third Party Payments,REVENUE
Wiltshire,http://opendatacommunities.org/id/unitary-authority/wiltshire,19/10/2017,5107126773,482.16,Abicare Services Ltd Homecare ,110031,SP2 ,Community Services,Downton,Adult Domiciliary Care - Spot,Third Party Payments,REVENUE
Wiltshire,http://opendatacommunities.org/id/unitary-authority/wiltshire,19/10/2017,5107126774,482.16,Abicare Services Ltd Homecare ,110031,SP2 ,Community Services,Downton,Adult Domiciliary Care - Spot,Third Party Payments,REVENUE
Wiltshire,http://opendatacommunities.org/id/unitary-authority/wiltshire,19/10/2017,5107126775,482.16,Abicare Services Ltd Homecare ,110031,SP2 ,Community Services,Downton,Adult Domiciliary Care - Spot,Third Party Payments,REVENUE
Wiltshire,http://opendatacommunities.org/id/unitary-authority/wiltshire,25/10/2017,5107128524,532.23,Abicare Services Ltd Homecare ,110031,SP2 ,Community Services,BoA Cluster,Adult Domiciliary Care - Spot Contribution,Income,REVENUE
Wiltshire,http://opendatacommunities.org/id/unitary-authority/wiltshire,25/10/2017,5107128546,533.82,Abicare Services Ltd Homecare ,110031,SP2 ,Community Services,Downton,Adult Domiciliary Care - Spot,Third Party Payments,REVENUE
Wiltshire,http://opendatacommunities.org/id/unitary-authority/wiltshire,25/10/2017,5107128565,545.68,Abicare Services Ltd Homecare ,110031,SP2 ,Community Services,MH OP West Locality,Adult Domiciliary Care - Spot Contribution,Income,REVENUE
Wiltshire,http://opendatacommunities.org/id/unitary-authority/wiltshire,25/10/2017,5107128590,266.13,Abicare Services Ltd Homecare ,110031,SP2 ,Community Services,Ad/Brad Rd,Adult Domiciliary Care - Spot,Third Party Payments,REVENUE
Wiltshire,http://opendatacommunities.org/id/unitary-authority/wiltshire,25/10/2017,5107128604,546.81,Abicare Services Ltd Homecare ,110031,SP2 ,Community Services,CTPLD Placements,Adult Domiciliary Care - Spot,Third Party Payments,REVENUE
Wiltshire,http://opendatacommunities.org/id/unitary-authority/wiltshire,25/10/2017,5107128676,310.75,Abicare Services Ltd Homecare ,110031,SP2 ,Community Services,Avon,Adult Domiciliary Care - Spot,Third Party Payments,REVENUE
Wiltshire,http://opendatacommunities.org/id/unitary-authority/wiltshire,25/10/2017,5107128683,546.81,Abicare Services Ltd Homecare ,110031,SP2 ,Community Services,CTPLD Placements,Adult Domiciliary Care - Spot,Third Party Payments,REVENUE
Wiltshire,http://opendatacommunities.org/id/unitary-authority/wiltshire,31/10/2017,5107130886,545.68,Abicare Services Ltd Homecare ,110031,SP2 ,Community Services,MH OP West Locality,Adult Domiciliary Care - Spot Contribution,Income,REVENUE
Wiltshire,http://opendatacommunities.org/id/unitary-authority/wiltshire,31/10/2017,5107130929,532.23,Abicare Services Ltd Homecare ,110031,SP2 ,Community Services,BoA Cluster,Adult Domiciliary Care - Spot Contribution,Income,REVENUE
Wiltshire,http://opendatacommunities.org/id/unitary-authority/wiltshire,10/10/2017,5107120067,704.38,Abicare Services Ltd Live in Care. ,113071,SP2 ,Community Services,CTPLD Placements,Adult Domiciliary care - Live in contribution,Income,REVENUE
Wiltshire,http://opendatacommunities.org/id/unitary-authority/wiltshire,10/10/2017,5107120070,826,Abicare Services Ltd Live in Care. ,113071,SP2 ,Community Services,White Horse,Adult Domiciliary Care - Live in Care,Third Party Payments,REVENUE
Wiltshire,http://opendatacommunities.org/id/unitary-authority/wiltshire,10/10/2017,5107120071,707.2,Abicare Services Ltd Live in Care. ,113071,SP2 ,Community Services,Orchard,Adult Domiciliary care - Live in contribution,Income,REVENUE
Wiltshire,http://opendatacommunities.org/id/unitary-authority/wiltshire,10/10/2017,5107120072,1652,Abicare Services Ltd Live in Care. ,113071,SP2 ,Community Services,Avon,Adult Domiciliary Care - Live in Care,Third Party Payments,REVENUE
Wiltshire,http://opendatacommunities.org/id/unitary-authority/wiltshire,10/10/2017,5107120074,826,Abicare Services Ltd Live in Care. ,113071,SP2 ,Community Services,BoA Cluster,Adult Domiciliary Care - Live in Care,Third Party Payments,REVENUE
Wiltshire,http://opendatacommunities.org/id/unitary-authority/wiltshire,10/10/2017,5107120075,472,Abicare Services Ltd Live in Care. ,113071,SP2 ,Community Services,Orchard,Adult Domiciliary Care - Live in Care,Third Party Payments,REVENUE
Wiltshire,http://opendatacommunities.org/id/unitary-authority/wiltshire,11/10/2017,5107121575,708.9,Abicare Services Ltd Live in Care. ,113071,SP2 ,Community Services,Southbroom,Adult Domiciliary care - Live in contribution,Income,REVENUE
Wiltshire,http://opendatacommunities.org/id/unitary-authority/wiltshire,11/10/2017,5107121576,1000,Abicare Services Ltd Live in Care. ,113071,SP2 ,Community Services,MH OP N&E Locality,Adult Domiciliary Care - Live in Care,Third Party Payments,REVENUE
Wiltshire,http://opendatacommunities.org/id/unitary-authority/wiltshire,11/10/2017,5107121577,831.16,Abicare Services Ltd Live in Care. ,113071,SP2 ,Community Services,Avon,Adult Domiciliary care - Live in contribution,Income,REVENUE
Wiltshire,http://opendatacommunities.org/id/unitary-authority/wiltshire,11/10/2017,5107121586,1736.56,Abicare Services Ltd Live in Care. ,113071,SP2 ,Community Services,Adult Care Gross Loa,Adult Care Loans,Capital charges and Expenditure,REVENUE
Wiltshire,http://opendatacommunities.org/id/unitary-authority/wiltshire,13/10/2017,5107122434,826,Abicare Services Ltd Live in Care. ,113071,SP2 ,Community Services,Orchard,Adult Domiciliary Care - Live in Care,Third Party Payments,REVENUE
Wiltshire,http://opendatacommunities.org/id/unitary-authority/wiltshire,16/10/2017,5107124015,708.9,Abicare Services Ltd Live in Care. ,113071,SP2 ,Community Services,Southbroom,Adult Domiciliary care - Live in contribution,Income,REVENUE
Wiltshire,http://opendatacommunities.org/id/unitary-authority/wiltshire,16/10/2017,5107124016,1000,Abicare Services Ltd Live in Care. ,113071,SP2 ,Community Services,MH OP N&E Locality,Adult Domiciliary Care - Live in Care,Third Party Payments,REVENUE
Wiltshire,http://opendatacommunities.org/id/unitary-authority/wiltshire,16/10/2017,5107124017,831.16,Abicare Services Ltd Live in Care. ,113071,SP2 ,Community Services,Avon,Adult Domiciliary care - Live in contribution,Income,REVENUE
Wiltshire,http://opendatacommunities.org/id/unitary-authority/wiltshire,17/10/2017,5107124284,855.68,Abicare Services Ltd Live in Care. ,113071,SP2 ,Community Services,Downton,Adult Domiciliary Care - Live in Care,Third Party Payments,REVENUE
Wiltshire,http://opendatacommunities.org/id/unitary-authority/wiltshire,17/10/2017,5107124285,752.01,Abicare Services Ltd Live in Care. ,113071,SP2 ,Community Services,Downton,Adult Domiciliary care - Live in contribution,Income,REVENUE
Wiltshire,http://opendatacommunities.org/id/unitary-authority/wiltshire,17/10/2017,5107124341,855.68,Abicare Services Ltd Live in Care. ,113071,SP2 ,Community Services,Downton,Adult Domiciliary Care - Live in Care,Third Party Payments,REVENUE
Wiltshire,http://opendatacommunities.org/id/unitary-authority/wiltshire,18/10/2017,5107125311,707.2,Abicare Services Ltd Live in Care. ,113071,SP2 ,Community Services,Orchard,Adult Domiciliary care - Live in contribution,Income,REVENUE
Wiltshire,http://opendatacommunities.org/id/unitary-authority/wiltshire,18/10/2017,5107125312,826,Abicare Services Ltd Live in Care. ,113071,SP2 ,Community Services,BoA Cluster,Adult Domiciliary Care - Live in Care,Third Party Payments,REVENUE
Wiltshire,http://opendatacommunities.org/id/unitary-authority/wiltshire,18/10/2017,5107125314,1652,Abicare Services Ltd Live in Care. ,113071,SP2 ,Community Services,Avon,Adult Domiciliary Care - Live in Care,Third Party Payments,REVENUE
Wiltshire,http://opendatacommunities.org/id/unitary-authority/wiltshire,18/10/2017,5107125315,531,Abicare Services Ltd Live in Care. ,113071,SP2 ,Community Services,White Horse,Adult Domiciliary Care - Live in Care,Third Party Payments,REVENUE
Wiltshire,http://opendatacommunities.org/id/unitary-authority/wiltshire,18/10/2017,5107125317,704.38,Abicare Services Ltd Live in Care. ,113071,SP2 ,Community Services,CTPLD Placements,Adult Domiciliary care - Live in contribution,Income,REVENUE
Wiltshire,http://opendatacommunities.org/id/unitary-authority/wiltshire,18/10/2017,5107125318,930.3,Abicare Services Ltd Live in Care. ,113071,SP2 ,Community Services,Adult Care Gross Loa,Adult Care Loans,Capital charges and Expenditure,REVENUE
Wiltshire,http://opendatacommunities.org/id/unitary-authority/wiltshire,18/10/2017,5107126692,324.17,Abicare Services Ltd Live in Care. ,113071,SP2 ,Community Services,Downton,Adult Domiciliary care - Live in contribution,Income,REVENUE
Wiltshire,http://opendatacommunities.org/id/unitary-authority/wiltshire,19/10/2017,5107126749,559.35,Abicare Services Ltd Live in Care. ,113071,SP2 ,Community Services,Salisbury,Adult Domiciliary Care - Live in Care,Third Party Payments,REVENUE
Wiltshire,http://opendatacommunities.org/id/unitary-authority/wiltshire,19/10/2017,5107126754,752.01,Abicare Services Ltd Live in Care. ,113071,SP2 ,Community Services,Downton,Adult Domiciliary care - Live in contribution,Income,REVENUE
Wiltshire,http://opendatacommunities.org/id/unitary-authority/wiltshire,19/10/2017,5107126755,752.01,Abicare Services Ltd Live in Care. ,113071,SP2 ,Community Services,Downton,Adult Domiciliary care - Live in contribution,Income,REVENUE
Wiltshire,http://opendatacommunities.org/id/unitary-authority/wiltshire,19/10/2017,5107126756,831.16,Abicare Services Ltd Live in Care. ,113071,SP2 ,Community Services,Avon,Adult Domiciliary care - Live in contribution,Income,REVENUE
Wiltshire,http://opendatacommunities.org/id/unitary-authority/wiltshire,19/10/2017,5107126760,855.68,Abicare Services Ltd Live in Care. ,113071,SP2 ,Community Services,Downton,Adult Domiciliary Care - Live in Care,Third Party Payments,REVENUE
Wiltshire,http://opendatacommunities.org/id/unitary-authority/wiltshire,20/10/2017,5107127654,1000,Abicare Services Ltd Live in Care. ,113071,SP2 ,Community Services,MH OP N&E Locality,Adult Domiciliary Care - Live in Care,Third Party Payments,REVENUE
Wiltshire,http://opendatacommunities.org/id/unitary-authority/wiltshire,20/10/2017,5107127674,1652,Abicare Services Ltd Live in Care. ,113071,SP2 ,Community Services,Avon,Adult Domiciliary Care - Live in Care,Third Party Payments,REVENUE
Wiltshire,http://opendatacommunities.org/id/unitary-authority/wiltshire,20/10/2017,5107127675,708.9,Abicare Services Ltd Live in Care. ,113071,SP2 ,Community Services,Southbroom,Adult Domiciliary care - Live in contribution,Income,REVENUE
Wiltshire,http://opendatacommunities.org/id/unitary-authority/wiltshire,24/10/2017,5107128281,752.01,Abicare Services Ltd Live in Care. ,113071,SP2 ,Community Services,Downton,Adult Domiciliary care - Live in contribution,Income,REVENUE
Wiltshire,http://opendatacommunities.org/id/unitary-authority/wiltshire,25/10/2017,5107128516,752.01,Abicare Services Ltd Live in Care. ,113071,SP2 ,Community Services,Downton,Adult Domiciliary care - Live in contribution,Income,REVENUE
Wiltshire,http://opendatacommunities.org/id/unitary-authority/wiltshire,25/10/2017,5107128517,752.01,Abicare Services Ltd Live in Care. ,113071,SP2 ,Community Services,Downton,Adult Domiciliary care - Live in contribution,Income,REVENUE
Wiltshire,http://opendatacommunities.org/id/unitary-authority/wiltshire,25/10/2017,5107128592,831.16,Abicare Services Ltd Live in Care. ,113071,SP2 ,Community Services,Avon,Adult Domiciliary care - Live in contribution,Income,REVENUE
Wiltshire,http://opendatacommunities.org/id/unitary-authority/wiltshire,25/10/2017,5107128593,704.38,Abicare Services Ltd Live in Care. ,113071,SP2 ,Community Services,CTPLD Placements,Adult Domiciliary care - Live in contribution,Income,REVENUE
Wiltshire,http://opendatacommunities.org/id/unitary-authority/wiltshire,25/10/2017,5107128607,1612.52,Abicare Services Ltd Live in Care. ,113071,SP2 ,Community Services,Adult Care Gross Loa,Adult Care Loans,Capital charges and Expenditure,REVENUE
Wiltshire,http://opendatacommunities.org/id/unitary-authority/wiltshire,25/10/2017,5107128608,826,Abicare Services Ltd Live in Care. ,113071,SP2 ,Community Services,BoA Cluster,Adult Domiciliary Care - Live in Care,Third Party Payments,REVENUE
Wiltshire,http://opendatacommunities.org/id/unitary-authority/wiltshire,25/10/2017,5107128675,870.1,Abicare Services Ltd Live in Care. ,113071,SP2 ,Community Services,Avon,Adult Domiciliary Care - Live in Care,Third Party Payments,REVENUE
Wiltshire,http://opendatacommunities.org/id/unitary-authority/wiltshire,25/10/2017,5107128677,826,Abicare Services Ltd Live in Care. ,113071,SP2 ,Community Services,BoA Cluster,Adult Domiciliary Care - Live in Care,Third Party Payments,REVENUE
Wiltshire,http://opendatacommunities.org/id/unitary-authority/wiltshire,25/10/2017,5107128678,704.38,Abicare Services Ltd Live in Care. ,113071,SP2 ,Community Services,CTPLD Placements,Adult Domiciliary care - Live in contribution,Income,REVENUE
Wiltshire,http://opendatacommunities.org/id/unitary-authority/wiltshire,31/10/2017,5107130878,708.9,Abicare Services Ltd Live in Care. ,113071,SP2 ,Community Services,Southbroom,Adult Domiciliary care - Live in contribution,Income,REVENUE
Wiltshire,http://opendatacommunities.org/id/unitary-authority/wiltshire,31/10/2017,5107130934,1736.56,Abicare Services Ltd Live in Care. ,113071,SP2 ,Community Services,Adult Care Gross Loa,Adult Care Loans,Capital charges and Expenditure,REVENUE
Wiltshire,http://opendatacommunities.org/id/unitary-authority/wiltshire,18/10/2017,5107121755,436.88,ABLE ,101029,BA14,Community Services,MH AOWA N&E Locality,Supported Living - Without SP payments,Third Party Payments,REVENUE
Wiltshire,http://opendatacommunities.org/id/unitary-authority/wiltshire,18/10/2017,5107121771,436.88,ABLE ,101029,BA14,Community Services,MH AOWA N&E Locality,Supported Living - Without SP payments,Third Party Payments,REVENUE
Wiltshire,http://opendatacommunities.org/id/unitary-authority/wiltshire,18/10/2017,5107121774,436.88,ABLE ,101029,BA14,Community Services,MH AOWA N&E Locality,Supported Living - Without SP payments,Third Party Payments,REVENUE
Wiltshire,http://opendatacommunities.org/id/unitary-authority/wiltshire,18/10/2017,5107121778,435.52,ABLE ,101029,BA14,Community Services,MH AOWA N&E Locality,Supported Living - Without SP payments,Third Party Payments,REVENUE
Wiltshire,http://opendatacommunities.org/id/unitary-authority/wiltshire,18/10/2017,5107121803,436.88,ABLE ,101029,BA14,Community Services,MH AOWA N&E Locality,Supported Living - Without SP payments,Third Party Payments,REVENUE
Wiltshire,http://opendatacommunities.org/id/unitary-authority/wiltshire,25/10/2017,5107128651,1169.23,ABLE ,101029,BA14,Community Services,MH Commissioned Cont,Grants Paid to individuals for Tangible Benefits,Supplies and Services,REVENUE
Wiltshire,http://opendatacommunities.org/id/unitary-authority/wiltshire,25/10/2017,5107128652,1926.6,ABLE ,101029,BA14,Community Services,MH Commissioned Cont,Grants Paid to individuals for Tangible Benefits,Supplies and Services,REVENUE
Wiltshire,http://opendatacommunities.org/id/unitary-authority/wiltshire,18/10/2017,5107125090,2527.04,ABLE ,110034,BA14,Community Services,MH OP West Locality,Adult Residential Placements - Spot Purchase,Third Party Payments,REVENUE
Wiltshire,http://opendatacommunities.org/id/unitary-authority/wiltshire,18/10/2017,5107125103,2830.96,ABLE ,110034,BA14,Community Services,MH AOWA West Localit,Adult Residential Placements - Spot Purchase,Third Party Payments,REVENUE
Wiltshire,http://opendatacommunities.org/id/unitary-authority/wiltshire,18/10/2017,5107125631,2904.4,ABLE ,110034,BA14,Community Services,MH AOWA N&E Locality,Adult Residential Placements - Spot Purchase,Third Party Payments,REVENUE
Wiltshire,http://opendatacommunities.org/id/unitary-authority/wiltshire,18/10/2017,5107125632,3472.08,ABLE ,110034,BA14,Community Services,MH AOWA N&E Locality,Adult Residential Placements - Spot Purchase,Third Party Payments,REVENUE
Wiltshire,http://opendatacommunities.org/id/unitary-authority/wiltshire,18/10/2017,5107126444,3400,ABLE ,110034,BA14,Community Services,MH AOWA West Localit,Adult Residential Placements - Spot Purchase,Third Party Payments,REVENUE
Wiltshire,http://opendatacommunities.org/id/unitary-authority/wiltshire,16/10/2017,5107123965,405,Able Hands Together CIC ,144783,SP11,Community Services,CTPLD Placements,Adult Day Care - Spot,Third Party Payments,REVENUE
Wiltshire,http://opendatacommunities.org/id/unitary-authority/wiltshire,18/10/2017,5107125405,405,Able Hands Together CIC ,144783,SP11,Community Services,CTPLD Placements,Adult Day Care - Spot,Third Party Payments,REVENUE
Wiltshire,http://opendatacommunities.org/id/unitary-authority/wiltshire,18/10/2017,5107126005,405,Able Hands Together CIC ,144783,SP11,Community Services,CTPLD Placements,Adult Day Care - Spot,Third Party Payments,REVENUE
Wiltshire,http://opendatacommunities.org/id/unitary-authority/wiltshire,13/10/2017,5107122281,2813.44,Access Care Ltd ,110037,SP10,Community Services,Marlborough,Adult Domiciliary Care - Live in Care,Third Party Payments,REVENUE
Wiltshire,http://opendatacommunities.org/id/unitary-authority/wiltshire,16/10/2017,1902015175,1055,Ace Cabs ,139613,BA12,Neighbourhood & Planning,SEN 16+ Secondary,Transport Contracts,Third Party Payments,REVENUE
Wiltshire,http://opendatacommunities.org/id/unitary-authority/wiltshire,16/10/2017,1902015186,2100,Ace Cabs ,139613,BA12,Children & Education,SENTransport,Transport Contracts,Third Party Payments,REVENUE
Wiltshire,http://opendatacommunities.org/id/unitary-authority/wiltshire,17/10/2017,1902016341,510,Ace Taxis Warminster Ace Taxis,131208,BA12,Community Services,CTPLD Placements,Transport Contracts,Third Party Payments,REVENUE
Wiltshire,http://opendatacommunities.org/id/unitary-authority/wiltshire,17/10/2017,1902016349,1299.6,Ace Taxis Warminster Ace Taxis,131208,BA12,Neighbourhood & Planning,Mainstream Secondary,Transport Contracts,Third Party Payments,REVENUE
Wiltshire,http://opendatacommunities.org/id/unitary-authority/wiltshire,17/10/2017,1902016350,360,Ace Taxis Warminster Ace Taxis,131208,BA12,Community Services,MH OP South Locality,Transport Contracts,Third Party Payments,REVENUE
Wiltshire,http://opendatacommunities.org/id/unitary-authority/wiltshire,17/10/2017,1902016351,1618.8,Ace Taxis Warminster Ace Taxis,131208,BA12,Neighbourhood & Planning,SEN Primary,Transport Contracts,Third Party Payments,REVENUE
Wiltshire,http://opendatacommunities.org/id/unitary-authority/wiltshire,25/10/2017,1902024536,1080,Ace Taxis Warminster Ace Taxis,131208,BA12,Children & Education,BehaviourSuppCore,Transport Contracts,Third Party Payments,REVENUE
Wiltshire,http://opendatacommunities.org/id/unitary-authority/wiltshire,26/10/2017,1902025117,1499.2,Ace Taxis Warminster Ace Taxis,131208,BA12,Neighbourhood & Planning,SEN 16+ Secondary,Transport Contracts,Third Party Payments,REVENUE
Wiltshire,http://opendatacommunities.org/id/unitary-authority/wiltshire,05/10/2017,5107119742,4297,Action on Addiction ,110046,SP3 ,Community Services,(9)ResPlacementsPCT,Adult Residential Placements - Substance Misuse,Third Party Payments,REVENUE
Wiltshire,http://opendatacommunities.org/id/unitary-authority/wiltshire,05/10/2017,5107119743,3097,Action on Addiction ,110046,SP3 ,Community Services,(9)ResPlacementsPCT,Adult Residential Placements - Substance Misuse,Third Party Payments,REVENUE
Wiltshire,http://opendatacommunities.org/id/unitary-authority/wiltshire,05/10/2017,5107119745,7219,Action on Addiction ,110046,SP3 ,Community Services,(9)ResPlacementsPCT,Adult Residential Placements - Substance Misuse,Third Party Payments,REVENUE
Wiltshire,http://opendatacommunities.org/id/unitary-authority/wiltshire,05/10/2017,5107119747,1956,Action on Addiction ,110046,SP3 ,Community Services,(9)ResPlacementsPCT,Adult Residential Placements - Substance Misuse,Third Party Payments,REVENUE
Wiltshire,http://opendatacommunities.org/id/unitary-authority/wiltshire,03/10/2017,5107119248,1573.78,Action on Hearing Loss ,112215,N1 1,Community Services,Chippenham,Adult Day Care - Spot,Third Party Payments,REVENUE
Wiltshire,http://opendatacommunities.org/id/unitary-authority/wiltshire,12/10/2017,5107122129,510,Action on Hearing Loss ,112215,N1 1,Community Services,Corsh & Box,Supported Living - Without SP payments,Third Party Payments,REVENUE
Wiltshire,http://opendatacommunities.org/id/unitary-authority/wiltshire,18/10/2017,5107123472,5536.8,Action on Hearing Loss ,112215,N1 1,Community Services,Malmesbury,Adult Residential Placements - Spot Purchase,Third Party Payments,REVENUE
Wiltshire,http://opendatacommunities.org/id/unitary-authority/wiltshire,18/10/2017,5107123844,6403.36,Action on Hearing Loss ,112215,N1 1,Community Services,Orchard,Adult Residential Placements - Spot Purchase,Third Party Payments,REVENUE
Wiltshire,http://opendatacommunities.org/id/unitary-authority/wiltshire,18/10/2017,5107124914,3880.56,Action on Hearing Loss ,112215,N1 1,Community Services,Calne,Adult Residential Placements - Spot Purchase,Third Party Payments,REVENUE
Wiltshire,http://opendatacommunities.org/id/unitary-authority/wiltshire,26/10/2017,5107129915,950,Action on Hearing Loss ,112215,N1 1,Community Services,Disabilities Comm Ct,Grants Paid to individuals for Tangible Benefits,Supplies and Services,REVENUE
Wiltshire,http://opendatacommunities.org/id/unitary-authority/wiltshire,04/10/2017,5107119336,867.04,Action on Hearing Loss ,120413,PE2 ,Community Services,Hearing & Vision,Client Aids and Adaptations,Third Party Payments,REVENUE
Wiltshire,http://opendatacommunities.org/id/unitary-authority/wiltshire,20/10/2017,5107126689,6705.04,Action on Hearing Loss ,120413,PE2 ,Community Services,Hearing & Vision,Client Aids and Adaptations,Third Party Payments,REVENUE
Wiltshire,http://opendatacommunities.org/id/unitary-authority/wiltshire,20/10/2017,5107127713,1705.5,Adam Varney ,143383,SP2 ,Children & Education,Wilt Music Connct Hb,Consultants Fees,Supplies and Services,REVENUE
Wiltshire,http://opendatacommunities.org/id/unitary-authority/wiltshire,05/10/2017,5107113415,400.78,Adams Morey Ltd ,110053,SP2 ,Neighbourhood & Planning,Fleet,Vehicle Parts,Transport Related,REVENUE
Wiltshire,http://opendatacommunities.org/id/unitary-authority/wiltshire,05/10/2017,5107113419,617.45,Adams Morey Ltd ,110053,SP2 ,Neighbourhood & Planning,Fleet,Vehicle Parts,Transport Related,REVENUE
Wiltshire,http://opendatacommunities.org/id/unitary-authority/wiltshire,05/10/2017,5107113421,303.35,Adams Morey Ltd ,110053,SP2 ,Neighbourhood & Planning,Fleet,Vehicle Parts,Transport Related,REVENUE
Wiltshire,http://opendatacommunities.org/id/unitary-authority/wiltshire,10/10/2017,5107113430,744.63,Adams Morey Ltd ,110053,SP2 ,Neighbourhood & Planning,Fleet,Vehicle Parts,Transport Related,REVENUE
Wiltshire,http://opendatacommunities.org/id/unitary-authority/wiltshire,03/10/2017,5107115580,267.4,Adams Morey Ltd ,110053,SP2 ,Neighbourhood & Planning,Fleet,Vehicle Parts,Transport Related,REVENUE
Wiltshire,http://opendatacommunities.org/id/unitary-authority/wiltshire,03/10/2017,5107115613,270.05,Adams Morey Ltd ,110053,SP2 ,Neighbourhood & Planning,Fleet,Vehicle Parts,Transport Related,REVENUE
Wiltshire,http://opendatacommunities.org/id/unitary-authority/wiltshire,24/10/2017,5107118703,327.1,Adams Morey Ltd ,110053,SP2 ,Neighbourhood & Planning,Fleet,Vehicle Repairs & Maintenance,Transport Related,REVENUE
Wiltshire,http://opendatacommunities.org/id/unitary-authority/wiltshire,24/10/2017,5107118705,599,Adams Morey Ltd ,110053,SP2 ,Neighbourhood & Planning,Fleet,Vehicle Repairs & Maintenance,Transport Related,REVENUE
Wiltshire,http://opendatacommunities.org/id/unitary-authority/wiltshire,23/10/2017,5107118903,435.35,Adams Morey Ltd ,110053,SP2 ,Neighbourhood & Planning,Fleet,Vehicle Repairs & Maintenance,Transport Related,REVENUE
Wiltshire,http://opendatacommunities.org/id/unitary-authority/wiltshire,17/10/2017,5107118904,278.58,Adams Morey Ltd ,110053,SP2 ,Neighbourhood & Planning,Fleet,Vehicle Repairs & Maintenance,Transport Related,REVENUE
Wiltshire,http://opendatacommunities.org/id/unitary-authority/wiltshire,17/10/2017,5107118906,585.43,Adams Morey Ltd ,110053,SP2 ,Neighbourhood & Planning,Fleet,Vehicle Repairs & Maintenance,Transport Related,REVENUE
Wiltshire,http://opendatacommunities.org/id/unitary-authority/wiltshire,17/10/2017,5107118909,1539.11,Adams Morey Ltd ,110053,SP2 ,Neighbourhood & Planning,Fleet,Vehicle Repairs & Maintenance,Transport Related,REVENUE
Wiltshire,http://opendatacommunities.org/id/unitary-authority/wiltshire,13/10/2017,5107118915,547.72,Adams Morey Ltd ,110053,SP2 ,Neighbourhood & Planning,Fleet,Vehicle Parts,Transport Related,REVENUE
Wiltshire,http://opendatacommunities.org/id/unitary-authority/wiltshire,12/10/2017,5107118930,697.41,Adams Morey Ltd ,110053,SP2 ,Neighbourhood & Planning,Fleet,Vehicle Parts,Transport Related,REVENUE
Wiltshire,http://opendatacommunities.org/id/unitary-authority/wiltshire,19/10/2017,5107119266,270.4,Adams Morey Ltd ,110053,SP2 ,Neighbourhood & Planning,Fleet,Vehicle Repairs & Maintenance,Transport Related,REVENUE
Wiltshire,http://opendatacommunities.org/id/unitary-authority/wiltshire,19/10/2017,5107119267,349.64,Adams Morey Ltd ,110053,SP2 ,Neighbourhood & Planning,Fleet,Vehicle Repairs & Maintenance,Transport Related,REVENUE
Wiltshire,http://opendatacommunities.org/id/unitary-authority/wiltshire,19/10/2017,5107119269,334.67,Adams Morey Ltd ,110053,SP2 ,Neighbourhood & Planning,Fleet,Vehicle Repairs & Maintenance,Transport Related,REVENUE
Wiltshire,http://opendatacommunities.org/id/unitary-authority/wiltshire,26/10/2017,5107120150,265,Adams Morey Ltd ,110053,SP2 ,Neighbourhood & Planning,Fleet,Vehicle Parts,Transport Related,REVENUE
Wiltshire,http://opendatacommunities.org/id/unitary-authority/wiltshire,31/10/2017,5107124224,260,Adams Morey Ltd ,110053,SP2 ,Neighbourhood & Planning,Fleet,Vehicle Repairs & Maintenance,Transport Related,REVENUE
Wiltshire,http://opendatacommunities.org/id/unitary-authority/wiltshire,27/10/2017,5107124230,299.5,Adams Morey Ltd ,110053,SP2 ,Neighbourhood & Planning,Fleet,Vehicle Repairs & Maintenance,Transport Related,REVENUE
Wiltshire,http://opendatacommunities.org/id/unitary-authority/wiltshire,27/10/2017,5107124239,1240.23,Adams Morey Ltd ,110053,SP2 ,Neighbourhood & Planning,Fleet,Vehicle Repairs & Maintenance,Transport Related,REVENUE
Wiltshire,http://opendatacommunities.org/id/unitary-authority/wiltshire,27/10/2017,5107124256,617.62,Adams Morey Ltd ,110053,SP2 ,Neighbourhood & Planning,Fleet,Vehicle Repairs & Maintenance,Transport Related,REVENUE
Wiltshire,http://opendatacommunities.org/id/unitary-authority/wiltshire,30/10/2017,5107124257,1119.64,Adams Morey Ltd ,110053,SP2 ,Neighbourhood & Planning,Fleet,Vehicle Repairs & Maintenance,Transport Related,REVENUE
Wiltshire,http://opendatacommunities.org/id/unitary-authority/wiltshire,31/10/2017,5107131073,977.57,Adams Morey Ltd ,110053,SP2 ,Neighbourhood & Planning,Fleet,Vehicle Parts,Transport Related,REVENUE
Wiltshire,http://opendatacommunities.org/id/unitary-authority/wiltshire,19/10/2017,5107126743,9000,Adjacent Digital Politics Ltd ,145990,CW1 ,Neighbourhood & Planning,Swindon & Wilts LEP,Marketing and Promotions,Supplies and Services,REVENUE
Wiltshire,http://opendatacommunities.org/id/unitary-authority/wiltshire,18/10/2017,5107124686,1887.2,Admirals Reach BUPA,137917,CM1 ,Community Services,Salisbury,Adult Care Nursing Placements- Spot Purchase,Third Party Payments,REVENUE
Wiltshire,http://opendatacommunities.org/id/unitary-authority/wiltshire,20/10/2017,1902017349,1485.95,Adrains Engineering Psv ,100848,SN15,Neighbourhood & Planning,Mainstream Secondary,Transport Contracts,Third Party Payments,REVENUE
Wiltshire,http://opendatacommunities.org/id/unitary-authority/wiltshire,20/10/2017,1902017350,2990.76,Adrains Engineering Psv ,100848,SN15,Neighbourhood & Planning,Mainstream Secondary,Transport Contracts,Third Party Payments,REVENUE
Wiltshire,http://opendatacommunities.org/id/unitary-authority/wiltshire,20/10/2017,1902017351,2766.26,Adrains Engineering Psv ,100848,SN15,Neighbourhood & Planning,Mainstream Secondary,Transport Contracts,Third Party Payments,REVENUE
Wiltshire,http://opendatacommunities.org/id/unitary-authority/wiltshire,20/10/2017,1902017352,3968.3,Adrains Engineering Psv ,100848,SN15,Neighbourhood & Planning,Mainstream Secondary,Transport Contracts,Third Party Payments,REVENUE
Wiltshire,http://opendatacommunities.org/id/unitary-authority/wiltshire,20/10/2017,1902017353,3035.09,Adrains Engineering Psv ,100848,SN15,Neighbourhood & Planning,Mainstream Primary,Transport Contracts,Third Party Payments,REVENUE
Wiltshire,http://opendatacommunities.org/id/unitary-authority/wiltshire,20/10/2017,1902017354,2919.35,Adrains Engineering Psv ,100848,SN15,Neighbourhood & Planning,Mainstream Secondary,Transport Contracts,Third Party Payments,REVENUE
Wiltshire,http://opendatacommunities.org/id/unitary-authority/wiltshire,20/10/2017,1902017355,2905.57,Adrains Engineering Psv ,100848,SN15,Neighbourhood & Planning,Mainstream Secondary,Transport Contracts,Third Party Payments,REVENUE
Wiltshire,http://opendatacommunities.org/id/unitary-authority/wiltshire,20/10/2017,1902017356,352.35,Adrains Engineering Psv ,100848,SN15,Neighbourhood & Planning,Public Transport,Transport Contracts,Third Party Payments,REVENUE
Wiltshire,http://opendatacommunities.org/id/unitary-authority/wiltshire,20/10/2017,1902017356,3333.33,Adrains Engineering Psv ,100848,SN15,Neighbourhood & Planning,Mainstream Primary,Transport Contracts,Third Party Payments,REVENUE
Wiltshire,http://opendatacommunities.org/id/unitary-authority/wiltshire,20/10/2017,1902017357,3333.33,Adrains Engineering Psv ,100848,SN15,Neighbourhood & Planning,Mainstream Secondary,Transport Contracts,Third Party Payments,REVENUE
Wiltshire,http://opendatacommunities.org/id/unitary-authority/wiltshire,20/10/2017,1902017357,3447.42,Adrains Engineering Psv ,100848,SN15,Neighbourhood & Planning,Public Transport,Transport Contracts,Third Party Payments,REVENUE
Wiltshire,http://opendatacommunities.org/id/unitary-authority/wiltshire,20/10/2017,1902017358,3467.5,Adrains Engineering Psv ,100848,SN15,Neighbourhood & Planning,Mainstream Secondary,Transport Contracts,Third Party Payments,REVENUE
Wiltshire,http://opendatacommunities.org/id/unitary-authority/wiltshire,16/10/2017,1902015166,365.04,Adrian's Taxi ,138861,SN10,Neighbourhood & Planning,Mainstream Secondary,Transport Contracts,Third Party Payments,REVENUE
Wiltshire,http://opendatacommunities.org/id/unitary-authority/wiltshire,16/10/2017,1902015166,1192.46,Adrian's Taxi ,138861,SN10,Neighbourhood & Planning,SEN Primary,Transport Contracts,Third Party Payments,REVENUE
Wiltshire,http://opendatacommunities.org/id/unitary-authority/wiltshire,16/10/2017,1902015185,346.64,Adrian's Taxi ,138861,SN10,Neighbourhood & Planning,Mainstream Secondary,Transport Contracts,Third Party Payments,REVENUE
Wiltshire,http://opendatacommunities.org/id/unitary-authority/wiltshire,16/10/2017,1902015185,462.18,Adrian's Taxi ,138861,SN10,Neighbourhood & Planning,SEN Primary,Transport Contracts,Third Party Payments,REVENUE
Wiltshire,http://opendatacommunities.org/id/unitary-authority/wiltshire,16/10/2017,1902015185,462.18,Adrian's Taxi ,138861,SN10,Neighbourhood & Planning,SEN 16+ Secondary,Transport Contracts,Third Party Payments,REVENUE
Wiltshire,http://opendatacommunities.org/id/unitary-authority/wiltshire,13/10/2017,1902014305,5326.03,Advance Housing  and  Support Ltd ,110060,OX28,Neighbourhood & Planning,Hsg Strat & Enabling,Payments to Contractors - Other,Third Party Payments,REVENUE
Wiltshire,http://opendatacommunities.org/id/unitary-authority/wiltshire,16/10/2017,1902015163,912,Ady Cars ,136208,SP11,Neighbourhood & Planning,SEN 16+ Secondary,Transport Contracts,Third Party Payments,REVENUE
Wiltshire,http://opendatacommunities.org/id/unitary-authority/wiltshire,27/10/2017,5107127668,2011,AECOM Ltd ,127871,SW19,Wiltshire Council,Wiltshire Council,Consultants Fees,Supplies and Services,CAPITAL
Wiltshire,http://opendatacommunities.org/id/unitary-authority/wiltshire,05/10/2017,5107119551,1751.32,AginCare Live In Care Services Ltd ,110071,DT5 ,Community Services,Marlborough,Adult Domiciliary care - Live in contribution,Income,REVENUE
Wiltshire,http://opendatacommunities.org/id/unitary-authority/wiltshire,05/10/2017,5107119552,1700.02,AginCare Live In Care Services Ltd ,110071,DT5 ,Community Services,Lovemd/Wid,Adult Domiciliary Care - Live in Care,Third Party Payments,REVENUE
Wiltshire,http://opendatacommunities.org/id/unitary-authority/wiltshire,05/10/2017,5107119553,1540.7,AginCare Live In Care Services Ltd ,110071,DT5 ,Community Services,Lovemd/Wid,Adult Domiciliary Care - Live in Care,Third Party Payments,REVENUE
Wiltshire,http://opendatacommunities.org/id/unitary-authority/wiltshire,05/10/2017,5107119554,1750,AginCare Live In Care Services Ltd ,110071,DT5 ,Community Services,Malmesbury,Adult Domiciliary Care - Live in Care,Third Party Payments,REVENUE
Wiltshire,http://opendatacommunities.org/id/unitary-authority/wiltshire,05/10/2017,5107119555,1656.74,AginCare Live In Care Services Ltd ,110071,DT5 ,Community Services,Malmesbury,Adult Domiciliary care - Live in contribution,Income,REVENUE
Wiltshire,http://opendatacommunities.org/id/unitary-authority/wiltshire,05/10/2017,5107119556,1700.02,AginCare Live In Care Services Ltd ,110071,DT5 ,Community Services,Avon,Adult Domiciliary Care - Live in Care,Third Party Payments,REVENUE
Wiltshire,http://opendatacommunities.org/id/unitary-authority/wiltshire,10/10/2017,5107120077,1700.02,AginCare Live In Care Services Ltd ,110071,DT5 ,Community Services,Avon,Adult Domiciliary Care - Live in Care,Third Party Payments,REVENUE
Wiltshire,http://opendatacommunities.org/id/unitary-authority/wiltshire,11/10/2017,5107121578,1751.32,AginCare Live In Care Services Ltd ,110071,DT5 ,Community Services,Marlborough,Adult Domiciliary care - Live in contribution,Income,REVENUE
Wiltshire,http://opendatacommunities.org/id/unitary-authority/wiltshire,11/10/2017,5107121579,1540.7,AginCare Live In Care Services Ltd ,110071,DT5 ,Community Services,Lovemd/Wid,Adult Domiciliary Care - Live in Care,Third Party Payments,REVENUE
Wiltshire,http://opendatacommunities.org/id/unitary-authority/wiltshire,11/10/2017,5107121580,1656.74,AginCare Live In Care Services Ltd ,110071,DT5 ,Community Services,Malmesbury,Adult Domiciliary care - Live in contribution,Income,REVENUE
Wiltshire,http://opendatacommunities.org/id/unitary-authority/wiltshire,11/10/2017,5107121581,1750,AginCare Live In Care Services Ltd ,110071,DT5 ,Community Services,Malmesbury,Adult Domiciliary Care - Live in Care,Third Party Payments,REVENUE
Wiltshire,http://opendatacommunities.org/id/unitary-authority/wiltshire,17/10/2017,5107124269,1700.02,AginCare Live In Care Services Ltd ,110071,DT5 ,Community Services,Avon,Adult Domiciliary Care - Live in Care,Third Party Payments,REVENUE
Wiltshire,http://opendatacommunities.org/id/unitary-authority/wiltshire,18/10/2017,5107125260,1751.32,AginCare Live In Care Services Ltd ,110071,DT5 ,Community Services,Marlborough,Adult Domiciliary care - Live in contribution,Income,REVENUE
Wiltshire,http://opendatacommunities.org/id/unitary-authority/wiltshire,18/10/2017,5107125266,1540.7,AginCare Live In Care Services Ltd ,110071,DT5 ,Community Services,Lovemd/Wid,Adult Domiciliary Care - Live in Care,Third Party Payments,REVENUE
Wiltshire,http://opendatacommunities.org/id/unitary-authority/wiltshire,18/10/2017,5107125267,1750,AginCare Live In Care Services Ltd ,110071,DT5 ,Community Services,Malmesbury,Adult Domiciliary Care - Live in Care,Third Party Payments,REVENUE
Wiltshire,http://opendatacommunities.org/id/unitary-authority/wiltshire,18/10/2017,5107125268,1656.74,AginCare Live In Care Services Ltd ,110071,DT5 ,Community Services,Malmesbury,Adult Domiciliary care - Live in contribution,Income,REVENUE
Wiltshire,http://opendatacommunities.org/id/unitary-authority/wiltshire,18/10/2017,5107125389,1688.44,AginCare Live In Care Services Ltd ,110071,DT5 ,Community Services,Avon,Adult Domiciliary care - Live in contribution,Income,REVENUE
Wiltshire,http://opendatacommunities.org/id/unitary-authority/wiltshire,03/10/2017,1902001460,395.76,Agincare Ltd ,110069,DT5 ,Community Services,HTLAH - Neighbourhoo,Interim Support Plan - HTLAH,Third Party Payments,REVENUE
Wiltshire,http://opendatacommunities.org/id/unitary-authority/wiltshire,03/10/2017,1902001462,1045.5,Agincare Ltd ,110069,DT5 ,Community Services,HTLAH - Neighbourhoo,Interim Support Plan - HTLAH,Third Party Payments,REVENUE
Wiltshire,http://opendatacommunities.org/id/unitary-authority/wiltshire,10/10/2017,1902001463,884.9,Agincare Ltd ,110069,DT5 ,Community Services,HTLAH - Neighbourhoo,Interim Support Plan - HTLAH,Third Party Payments,REVENUE
Wiltshire,http://opendatacommunities.org/id/unitary-authority/wiltshire,03/10/2017,1902001489,395.76,Agincare Ltd ,110069,DT5 ,Community Services,HTLAH - Neighbourhoo,Interim Support Plan - HTLAH,Third Party Payments,REVENUE
Wiltshire,http://opendatacommunities.org/id/unitary-authority/wiltshire,30/10/2017,1902016432,1071,Agincare Ltd ,110069,DT5 ,Community Services,HTLAH - Neighbourhoo,Interim Support Plan - HTLAH,Third Party Payments,REVENUE
Wiltshire,http://opendatacommunities.org/id/unitary-authority/wiltshire,30/10/2017,1902016433,402.16,Agincare Ltd ,110069,DT5 ,Community Services,HTLAH - Neighbourhoo,Interim Support Plan - HTLAH,Third Party Payments,REVENUE
Wiltshire,http://opendatacommunities.org/id/unitary-authority/wiltshire,18/10/2017,1902016434,319.35,Agincare Ltd ,110069,DT5 ,Community Services,HTLAH - Neighbourhoo,Interim Support Plan - HTLAH,Third Party Payments,REVENUE
Wiltshire,http://opendatacommunities.org/id/unitary-authority/wiltshire,02/10/2017,5107119163,696.48,Agincare Ltd ,110069,DT5 ,Community Services,Chippenham,Adult Domiciliary Care - Spot Contribution,Income,REVENUE
Wiltshire,http://opendatacommunities.org/id/unitary-authority/wiltshire,24/10/2017,5107128158,374,Agincare Ltd ,110069,DT5 ,Community Services,Chippenham,Adult Domiciliary Care - Spot,Third Party Payments,REVENUE
Wiltshire,http://opendatacommunities.org/id/unitary-authority/wiltshire,24/10/2017,5107128232,610.72,Agincare Ltd ,110069,DT5 ,Community Services,Chippenham,Adult Domiciliary Care - Spot Contribution,Income,REVENUE
Wiltshire,http://opendatacommunities.org/id/unitary-authority/wiltshire,24/10/2017,5107128253,1666,Agincare Ltd ,110069,DT5 ,Community Services,Corsh & Box,Adult Domiciliary Care - Spot,Third Party Payments,REVENUE
Wiltshire,http://opendatacommunities.org/id/unitary-authority/wiltshire,24/10/2017,5107128254,468.36,Agincare Ltd ,110069,DT5 ,Community Services,Chippenham,Adult Domiciliary Care - Spot Contribution,Income,REVENUE
Wiltshire,http://opendatacommunities.org/id/unitary-authority/wiltshire,24/10/2017,5107128257,272,Agincare Ltd ,110069,DT5 ,Community Services,Chippenham,Adult Domiciliary Care - Spot,Third Party Payments,REVENUE
Wiltshire,http://opendatacommunities.org/id/unitary-authority/wiltshire,24/10/2017,5107128258,1530,Agincare Ltd ,110069,DT5 ,Community Services,MH AOWA N&E Locality,Adult Domiciliary Care - Spot,Third Party Payments,REVENUE
Wiltshire,http://opendatacommunities.org/id/unitary-authority/wiltshire,24/10/2017,5107128259,696.48,Agincare Ltd ,110069,DT5 ,Community Services,Chippenham,Adult Domiciliary Care - Spot Contribution,Income,REVENUE
Wiltshire,http://opendatacommunities.org/id/unitary-authority/wiltshire,24/10/2017,5107128260,612,Agincare Ltd ,110069,DT5 ,Community Services,MH AOWA N&E Locality,Adult Domiciliary Care - Spot,Third Party Payments,REVENUE
Wiltshire,http://opendatacommunities.org/id/unitary-authority/wiltshire,24/10/2017,5107128261,429.24,Agincare Ltd ,110069,DT5 ,Community Services,Chippenham,Adult Domiciliary Care - Spot Contribution,Income,REVENUE
Wiltshire,http://opendatacommunities.org/id/unitary-authority/wiltshire,24/10/2017,5107128282,864.64,Agincare Ltd ,110069,DT5 ,Community Services,Chippenham,Adult Domiciliary Care - Spot Contribution,Income,REVENUE
Wiltshire,http://opendatacommunities.org/id/unitary-authority/wiltshire,24/10/2017,5107128292,1428,Agincare Ltd ,110069,DT5 ,Community Services,Calne,Adult Domiciliary Care - Spot,Third Party Payments,REVENUE
Wiltshire,http://opendatacommunities.org/id/unitary-authority/wiltshire,24/10/2017,5107128296,1071,Agincare Ltd ,110069,DT5 ,Community Services,Calne,Adult Domiciliary Care - Spot,Third Party Payments,REVENUE
Wiltshire,http://opendatacommunities.org/id/unitary-authority/wiltshire,24/10/2017,5107128298,2274.04,Agincare Ltd ,110069,DT5 ,Community Services,Chippenham,Adult Domiciliary Care - Spot Contribution,Income,REVENUE
Wiltshire,http://opendatacommunities.org/id/unitary-authority/wiltshire,05/10/2017,5107119388,325,Aid Training  and  Operations Ltd ,110075,BA12,Neighbourhood & Planning,DLO,Staff Training - General,Employee Related,REVENUE
Wiltshire,http://opendatacommunities.org/id/unitary-authority/wiltshire,04/10/2017,1902010508,305.1,Aileen Twiggs ,144241,SN13,Children & Education,Special Guardianship,Disability Fostering Allowance,Third Party Payments,REVENUE
Wiltshire,http://opendatacommunities.org/id/unitary-authority/wiltshire,04/10/2017,1902010509,291.1,Aileen Twiggs ,144241,SN13,Children & Education,Special Guardianship,Disability Fostering Allowance,Third Party Payments,REVENUE
Wiltshire,http://opendatacommunities.org/id/unitary-authority/wiltshire,18/10/2017,1902016236,305.1,Aileen Twiggs ,144241,SN13,Children & Education,Special Guardianship,Disability Fostering Allowance,Third Party Payments,REVENUE
Wiltshire,http://opendatacommunities.org/id/unitary-authority/wiltshire,18/10/2017,1902016237,291.1,Aileen Twiggs ,144241,SN13,Children & Education,Special Guardianship,Disability Fostering Allowance,Third Party Payments,REVENUE
Wiltshire,http://opendatacommunities.org/id/unitary-authority/wiltshire,09/10/2017,1902012660,1908,Akcess Ltd ,101402,SN2 ,Neighbourhood & Planning,Mainstream Secondary,Transport Contracts,Third Party Payments,REVENUE
Wiltshire,http://opendatacommunities.org/id/unitary-authority/wiltshire,09/10/2017,1902012666,493.92,Akcess Ltd ,101402,SN2 ,Children & Education,CDT S&W,Transport Contracts,Third Party Payments,REVENUE
Wiltshire,http://opendatacommunities.org/id/unitary-authority/wiltshire,09/10/2017,1902012666,1270.08,Akcess Ltd ,101402,SN2 ,Neighbourhood & Planning,SEN 16+ Secondary,Transport Contracts,Third Party Payments,REVENUE
Wiltshire,http://opendatacommunities.org/id/unitary-authority/wiltshire,09/10/2017,1902012668,2017,Akcess Ltd ,101402,SN2 ,Neighbourhood & Planning,Mainstream Primary,Transport Contracts,Third Party Payments,REVENUE
Wiltshire,http://opendatacommunities.org/id/unitary-authority/wiltshire,09/10/2017,1902012669,3854.53,Akcess Ltd ,101402,SN2 ,Neighbourhood & Planning,SEN 16+ Secondary,Transport Contracts,Third Party Payments,REVENUE
Wiltshire,http://opendatacommunities.org/id/unitary-authority/wiltshire,09/10/2017,1902012670,627.68,Akcess Ltd ,101402,SN2 ,Neighbourhood & Planning,Mainstream Secondary,Transport Contracts,Third Party Payments,REVENUE
Wiltshire,http://opendatacommunities.org/id/unitary-authority/wiltshire,09/10/2017,1902012670,2134.12,Akcess Ltd ,101402,SN2 ,Neighbourhood & Planning,SEN 16+ Secondary,Transport Contracts,Third Party Payments,REVENUE
Wiltshire,http://opendatacommunities.org/id/unitary-authority/wiltshire,09/10/2017,1902012671,2014,Akcess Ltd ,101402,SN2 ,Neighbourhood & Planning,Mainstream Secondary,Transport Contracts,Third Party Payments,REVENUE
Wiltshire,http://opendatacommunities.org/id/unitary-authority/wiltshire,09/10/2017,1902012672,2983.24,Akcess Ltd ,101402,SN2 ,Neighbourhood & Planning,SEN 16+ Secondary,Transport Contracts,Third Party Payments,REVENUE
Wiltshire,http://opendatacommunities.org/id/unitary-authority/wiltshire,09/10/2017,1902012673,1662.5,Akcess Ltd ,101402,SN2 ,Neighbourhood & Planning,Mainstream Primary,Transport Contracts,Third Party Payments,REVENUE
Wiltshire,http://opendatacommunities.org/id/unitary-authority/wiltshire,09/10/2017,1902012674,1833.17,Akcess Ltd ,101402,SN2 ,Neighbourhood & Planning,Mainstream Primary,Transport Contracts,Third Party Payments,REVENUE
Wiltshire,http://opendatacommunities.org/id/unitary-authority/wiltshire,09/10/2017,1902012675,933.33,Akcess Ltd ,101402,SN2 ,Neighbourhood & Planning,Mainstream Primary,Transport Contracts,Third Party Payments,REVENUE
Wiltshire,http://opendatacommunities.org/id/unitary-authority/wiltshire,09/10/2017,1902012675,1733.34,Akcess Ltd ,101402,SN2 ,Neighbourhood & Planning,Mainstream Secondary,Transport Contracts,Third Party Payments,REVENUE
Wiltshire,http://opendatacommunities.org/id/unitary-authority/wiltshire,09/10/2017,1902012676,1879.5,Akcess Ltd ,101402,SN2 ,Neighbourhood & Planning,Mainstream Primary,Transport Contracts,Third Party Payments,REVENUE
Wiltshire,http://opendatacommunities.org/id/unitary-authority/wiltshire,09/10/2017,1902012677,2440,Akcess Ltd ,101402,SN2 ,Neighbourhood & Planning,SEN Primary,Transport Contracts,Third Party Payments,REVENUE
Wiltshire,http://opendatacommunities.org/id/unitary-authority/wiltshire,09/10/2017,1902012678,1682.45,Akcess Ltd ,101402,SN2 ,Neighbourhood & Planning,Mainstream Secondary,Transport Contracts,Third Party Payments,REVENUE
Wiltshire,http://opendatacommunities.org/id/unitary-authority/wiltshire,09/10/2017,1902012679,803.36,Akcess Ltd ,101402,SN2 ,Neighbourhood & Planning,Mainstream Secondary,Transport Contracts,Third Party Payments,REVENUE
Wiltshire,http://opendatacommunities.org/id/unitary-authority/wiltshire,09/10/2017,1902012679,1104.64,Akcess Ltd ,101402,SN2 ,Neighbourhood & Planning,Mainstream Primary,Transport Contracts,Third Party Payments,REVENUE
Wiltshire,http://opendatacommunities.org/id/unitary-authority/wiltshire,09/10/2017,1902012680,444,Akcess Ltd ,101402,SN2 ,Neighbourhood & Planning,SEN Rechargable Exp,Transport Contracts,Third Party Payments,REVENUE
Wiltshire,http://opendatacommunities.org/id/unitary-authority/wiltshire,09/10/2017,1902012680,11960.39,Akcess Ltd ,101402,SN2 ,Neighbourhood & Planning,SEN Secondary,Transport Contracts,Third Party Payments,REVENUE
Wiltshire,http://opendatacommunities.org/id/unitary-authority/wiltshire,09/10/2017,1902012680,11960.39,Akcess Ltd ,101402,SN2 ,Neighbourhood & Planning,SEN 16+ Secondary,Transport Contracts,Third Party Payments,REVENUE
Wiltshire,http://opendatacommunities.org/id/unitary-authority/wiltshire,09/10/2017,1902012680,15947.2,Akcess Ltd ,101402,SN2 ,Neighbourhood & Planning,SEN Primary,Transport Contracts,Third Party Payments,REVENUE
Wiltshire,http://opendatacommunities.org/id/unitary-authority/wiltshire,09/10/2017,1902012681,2600,Akcess Ltd ,101402,SN2 ,Neighbourhood & Planning,Mainstream Primary,Transport Contracts,Third Party Payments,REVENUE
Wiltshire,http://opendatacommunities.org/id/unitary-authority/wiltshire,09/10/2017,1902012682,3100,Akcess Ltd ,101402,SN2 ,Neighbourhood & Planning,SEN 16+ Secondary,Transport Contracts,Third Party Payments,REVENUE
Wiltshire,http://opendatacommunities.org/id/unitary-authority/wiltshire,09/10/2017,1902012683,1022.25,Akcess Ltd ,101402,SN2 ,Neighbourhood & Planning,Mainstream Primary,Transport Contracts,Third Party Payments,REVENUE
Wiltshire,http://opendatacommunities.org/id/unitary-authority/wiltshire,09/10/2017,1902012684,1022.25,Akcess Ltd ,101402,SN2 ,Neighbourhood & Planning,Mainstream Primary,Transport Contracts,Third Party Payments,REVENUE
Wiltshire,http://opendatacommunities.org/id/unitary-authority/wiltshire,09/10/2017,1902012685,2052.8,Akcess Ltd ,101402,SN2 ,Neighbourhood & Planning,Mainstream Secondary,Transport Contracts,Third Party Payments,REVENUE
Wiltshire,http://opendatacommunities.org/id/unitary-authority/wiltshire,09/10/2017,1902012687,1849.97,Akcess Ltd ,101402,SN2 ,Neighbourhood & Planning,Mainstream Primary,Transport Contracts,Third Party Payments,REVENUE
Wiltshire,http://opendatacommunities.org/id/unitary-authority/wiltshire,09/10/2017,1902012688,1996.39,Akcess Ltd ,101402,SN2 ,Neighbourhood & Planning,Mainstream Secondary,Transport Contracts,Third Party Payments,REVENUE
Wiltshire,http://opendatacommunities.org/id/unitary-authority/wiltshire,09/10/2017,1902012689,2953.52,Akcess Ltd ,101402,SN2 ,Neighbourhood & Planning,Mainstream Secondary,Transport Contracts,Third Party Payments,REVENUE
Wiltshire,http://opendatacommunities.org/id/unitary-authority/wiltshire,09/10/2017,1902012690,1489.15,Akcess Ltd ,101402,SN2 ,Neighbourhood & Planning,Mainstream Secondary,Transport Contracts,Third Party Payments,REVENUE
Wiltshire,http://opendatacommunities.org/id/unitary-authority/wiltshire,09/10/2017,1902012691,1332.97,Akcess Ltd ,101402,SN2 ,Neighbourhood & Planning,Mainstream Secondary,Transport Contracts,Third Party Payments,REVENUE
Wiltshire,http://opendatacommunities.org/id/unitary-authority/wiltshire,09/10/2017,1902012693,2166.67,Akcess Ltd ,101402,SN2 ,Neighbourhood & Planning,Mainstream Primary,Transport Contracts,Third Party Payments,REVENUE
Wiltshire,http://opendatacommunities.org/id/unitary-authority/wiltshire,09/10/2017,1902012694,288,Akcess Ltd ,101402,SN2 ,Community Services,Lansdown,Transport Contracts,Third Party Payments,REVENUE
Wiltshire,http://opendatacommunities.org/id/unitary-authority/wiltshire,09/10/2017,1902012694,576,Akcess Ltd ,101402,SN2 ,Community Services,Cricklade,Transport Contracts,Third Party Payments,REVENUE
Wiltshire,http://opendatacommunities.org/id/unitary-authority/wiltshire,09/10/2017,1902012695,1607.94,Akcess Ltd ,101402,SN2 ,Neighbourhood & Planning,Mainstream Primary,Transport Contracts,Third Party Payments,REVENUE
Wiltshire,http://opendatacommunities.org/id/unitary-authority/wiltshire,09/10/2017,1902012696,1472.5,Akcess Ltd ,101402,SN2 ,Neighbourhood & Planning,Mainstream Secondary,Transport Contracts,Third Party Payments,REVENUE
Wiltshire,http://opendatacommunities.org/id/unitary-authority/wiltshire,30/10/2017,1902026273,872.1,Akcess Ltd ,101402,SN2 ,Neighbourhood & Planning,SEN 16+ Secondary,Transport Contracts,Third Party Payments,REVENUE
Wiltshire,http://opendatacommunities.org/id/unitary-authority/wiltshire,30/10/2017,1902026273,2034.9,Akcess Ltd ,101402,SN2 ,Neighbourhood & Planning,SEN Primary,Transport Contracts,Third Party Payments,REVENUE
Wiltshire,http://opendatacommunities.org/id/unitary-authority/wiltshire,30/10/2017,1902026274,984.84,Akcess Ltd ,101402,SN2 ,Neighbourhood & Planning,SEN Primary,Transport Contracts,Third Party Payments,REVENUE
Wiltshire,http://opendatacommunities.org/id/unitary-authority/wiltshire,30/10/2017,1902026274,1969.66,Akcess Ltd ,101402,SN2 ,Neighbourhood & Planning,SEN 16+ Secondary,Transport Contracts,Third Party Payments,REVENUE
Wiltshire,http://opendatacommunities.org/id/unitary-authority/wiltshire,30/10/2017,1902026275,417.14,Akcess Ltd ,101402,SN2 ,Neighbourhood & Planning,SEN 16+ Secondary,Transport Contracts,Third Party Payments,REVENUE
Wiltshire,http://opendatacommunities.org/id/unitary-authority/wiltshire,30/10/2017,1902026275,2173.51,Akcess Ltd ,101402,SN2 ,Neighbourhood & Planning,SEN Primary,Transport Contracts,Third Party Payments,REVENUE
Wiltshire,http://opendatacommunities.org/id/unitary-authority/wiltshire,30/10/2017,1902026278,812.31,Akcess Ltd ,101402,SN2 ,Neighbourhood & Planning,Mainstream Secondary,Transport Contracts,Third Party Payments,REVENUE
Wiltshire,http://opendatacommunities.org/id/unitary-authority/wiltshire,30/10/2017,1902026280,872.5,Akcess Ltd ,101402,SN2 ,Neighbourhood & Planning,SEN Primary,Transport Contracts,Third Party Payments,REVENUE
Wiltshire,http://opendatacommunities.org/id/unitary-authority/wiltshire,30/10/2017,1902026280,1711.5,Akcess Ltd ,101402,SN2 ,Neighbourhood & Planning,SEN 16+ Secondary,Transport Contracts,Third Party Payments,REVENUE
Wiltshire,http://opendatacommunities.org/id/unitary-authority/wiltshire,13/10/2017,1902014292,1280.91,Alabare Christian Care Centre ,100837,SP2 ,Neighbourhood & Planning,Hsg Strat & Enabling,Payments to Contractors - Other,Third Party Payments,REVENUE
Wiltshire,http://opendatacommunities.org/id/unitary-authority/wiltshire,13/10/2017,1902014294,1709.76,Alabare Christian Care Centre ,100837,SP2 ,Neighbourhood & Planning,Hsg Strat & Enabling,Payments to Contractors - Other,Third Party Payments,REVENUE
Wiltshire,http://opendatacommunities.org/id/unitary-authority/wiltshire,13/10/2017,1902014299,2436.66,Alabare Christian Care Centre ,100837,SP2 ,Neighbourhood & Planning,Hsg Strat & Enabling,Payments to Contractors - Other,Third Party Payments,REVENUE
Wiltshire,http://opendatacommunities.org/id/unitary-authority/wiltshire,13/10/2017,1902014302,3114.93,Alabare Christian Care Centre ,100837,SP2 ,Neighbourhood & Planning,Hsg Strat & Enabling,Payments to Contractors - Other,Third Party Payments,REVENUE
Wiltshire,http://opendatacommunities.org/id/unitary-authority/wiltshire,13/10/2017,1902014303,3388.68,Alabare Christian Care Centre ,100837,SP2 ,Neighbourhood & Planning,Hsg Strat & Enabling,Payments to Contractors - Other,Third Party Payments,REVENUE
Wiltshire,http://opendatacommunities.org/id/unitary-authority/wiltshire,13/10/2017,1902014309,8245.56,Alabare Christian Care Centre ,100837,SP2 ,Neighbourhood & Planning,Hsg Strat & Enabling,Payments to Contractors - Other,Third Party Payments,REVENUE
Wiltshire,http://opendatacommunities.org/id/unitary-authority/wiltshire,13/10/2017,1902014314,21802.76,Alabare Christian Care Centre ,100837,SP2 ,Neighbourhood & Planning,Hsg Strat & Enabling,Payments to Contractors - Other,Third Party Payments,REVENUE
Wiltshire,http://opendatacommunities.org/id/unitary-authority/wiltshire,10/10/2017,5107120199,304,Alabare Christian Care Centre ,100837,SP2 ,Community Services,CTPLD Placements,Adult Day Care - Spot,Third Party Payments,REVENUE
Wiltshire,http://opendatacommunities.org/id/unitary-authority/wiltshire,10/10/2017,5107120202,342,Alabare Christian Care Centre ,100837,SP2 ,Community Services,CTPLD Placements,Adult Day Care - Spot,Third Party Payments,REVENUE
Wiltshire,http://opendatacommunities.org/id/unitary-authority/wiltshire,10/10/2017,5107120203,304,Alabare Christian Care Centre ,100837,SP2 ,Community Services,CTPLD Placements,Adult Day Care - Spot,Third Party Payments,REVENUE
Wiltshire,http://opendatacommunities.org/id/unitary-authority/wiltshire,10/10/2017,5107120204,304,Alabare Christian Care Centre ,100837,SP2 ,Community Services,CTPLD Placements,Adult Day Care - Spot,Third Party Payments,REVENUE
Wiltshire,http://opendatacommunities.org/id/unitary-authority/wiltshire,10/10/2017,5107120205,304,Alabare Christian Care Centre ,100837,SP2 ,Community Services,CTPLD Placements,Adult Day Care - Spot,Third Party Payments,REVENUE
Wiltshire,http://opendatacommunities.org/id/unitary-authority/wiltshire,10/10/2017,5107120206,323,Alabare Christian Care Centre ,100837,SP2 ,Community Services,CTPLD Placements,Adult Day Care - Spot,Third Party Payments,REVENUE
Wiltshire,http://opendatacommunities.org/id/unitary-authority/wiltshire,10/10/2017,5107120207,304,Alabare Christian Care Centre ,100837,SP2 ,Community Services,CTPLD Placements,Adult Day Care - Spot,Third Party Payments,REVENUE
Wiltshire,http://opendatacommunities.org/id/unitary-authority/wiltshire,10/10/2017,5107120209,304,Alabare Christian Care Centre ,100837,SP2 ,Community Services,CTPLD Placements,Adult Day Care - Spot,Third Party Payments,REVENUE
Wiltshire,http://opendatacommunities.org/id/unitary-authority/wiltshire,10/10/2017,5107120210,304,Alabare Christian Care Centre ,100837,SP2 ,Community Services,CTPLD Placements,Adult Day Care - Spot,Third Party Payments,REVENUE
Wiltshire,http://opendatacommunities.org/id/unitary-authority/wiltshire,10/10/2017,5107120212,304,Alabare Christian Care Centre ,100837,SP2 ,Community Services,CTPLD Placements,Adult Day Care - Spot,Third Party Payments,REVENUE
Wiltshire,http://opendatacommunities.org/id/unitary-authority/wiltshire,10/10/2017,5107120216,304,Alabare Christian Care Centre ,100837,SP2 ,Community Services,CTPLD Placements,Adult Day Care - Spot,Third Party Payments,REVENUE
Wiltshire,http://opendatacommunities.org/id/unitary-authority/wiltshire,10/10/2017,5107120217,456,Alabare Christian Care Centre ,100837,SP2 ,Community Services,MH AOWA South Locali,Adult Day Care - Spot,Third Party Payments,REVENUE
Wiltshire,http://opendatacommunities.org/id/unitary-authority/wiltshire,10/10/2017,5107120219,304,Alabare Christian Care Centre ,100837,SP2 ,Community Services,MH AOWA South Locali,Adult Day Care - Spot,Third Party Payments,REVENUE
Wiltshire,http://opendatacommunities.org/id/unitary-authority/wiltshire,10/10/2017,5107120227,646,Alabare Christian Care Centre ,100837,SP2 ,Community Services,Endless/St.A,Adult Day Care - Spot,Third Party Payments,REVENUE
Wiltshire,http://opendatacommunities.org/id/unitary-authority/wiltshire,10/10/2017,5107120228,456,Alabare Christian Care Centre ,100837,SP2 ,Community Services,CTPLD Placements,Adult Day Care - Spot,Third Party Payments,REVENUE
Wiltshire,http://opendatacommunities.org/id/unitary-authority/wiltshire,10/10/2017,5107120230,304,Alabare Christian Care Centre ,100837,SP2 ,Community Services,Orchard,Adult Day Care - Spot,Third Party Payments,REVENUE
Wiltshire,http://opendatacommunities.org/id/unitary-authority/wiltshire,10/10/2017,5107120957,2600.03,Alabare Christian Care Centre ,100837,SP2 ,Children & Education,Albare Contract,Adult / Child Care Agency Placement,Third Party Payments,REVENUE
Wiltshire,http://opendatacommunities.org/id/unitary-authority/wiltshire,10/10/2017,5107120958,2640.08,Alabare Christian Care Centre ,100837,SP2 ,Children & Education,Albare Contract,Adult / Child Care Agency Placement,Third Party Payments,REVENUE
Wiltshire,http://opendatacommunities.org/id/unitary-authority/wiltshire,10/10/2017,5107120959,2466.05,Alabare Christian Care Centre ,100837,SP2 ,Children & Education,Safeguarding Ass Nth,Adult / Child Care Agency Placement,Third Party Payments,REVENUE
Wiltshire,http://opendatacommunities.org/id/unitary-authority/wiltshire,10/10/2017,5107120960,2640.08,Alabare Christian Care Centre ,100837,SP2 ,Children & Education,Albare Contract,Adult / Child Care Agency Placement,Third Party Payments,REVENUE
Wiltshire,http://opendatacommunities.org/id/unitary-authority/wiltshire,10/10/2017,5107120961,2055.26,Alabare Christian Care Centre ,100837,SP2 ,Children & Education,Albare Contract,Adult / Child Care Agency Placement,Third Party Payments,REVENUE
Wiltshire,http://opendatacommunities.org/id/unitary-authority/wiltshire,10/10/2017,5107120963,1909.8,Alabare Christian Care Centre ,100837,SP2 ,Children & Education,Albare Contract,Adult / Child Care Agency Placement,Third Party Payments,REVENUE
Wiltshire,http://opendatacommunities.org/id/unitary-authority/wiltshire,10/10/2017,5107121018,2193.3,Alabare Christian Care Centre ,100837,SP2 ,Children & Education,Albare Contract,Adult / Child Care Agency Placement,Third Party Payments,REVENUE
Wiltshire,http://opendatacommunities.org/id/unitary-authority/wiltshire,10/10/2017,5107121031,2298.38,Alabare Christian Care Centre ,100837,SP2 ,Children & Education,Albare Contract,Adult / Child Care Agency Placement,Third Party Payments,REVENUE
Wiltshire,http://opendatacommunities.org/id/unitary-authority/wiltshire,10/10/2017,5107121128,1149.6,Alabare Christian Care Centre ,100837,SP2 ,Children & Education,Albare Contract,Adult / Child Care Agency Placement,Third Party Payments,REVENUE
Wiltshire,http://opendatacommunities.org/id/unitary-authority/wiltshire,10/10/2017,5107121213,304,Alabare Christian Care Centre ,100837,SP2 ,Community Services,CTPLD Placements,Adult Day Care - Spot,Third Party Payments,REVENUE
Wiltshire,http://opendatacommunities.org/id/unitary-authority/wiltshire,10/10/2017,5107121507,830.44,Alabare Christian Care Centre ,100837,SP2 ,Children & Education,Albare Contract,Adult / Child Care Agency Placement,Third Party Payments,REVENUE
Wiltshire,http://opendatacommunities.org/id/unitary-authority/wiltshire,11/10/2017,5107121587,410.44,Alabare Christian Care Centre ,100837,SP2 ,Community Services,CTPLD Placements,Adult Domiciliary Care - Spot Contribution,Income,REVENUE
Wiltshire,http://opendatacommunities.org/id/unitary-authority/wiltshire,18/10/2017,5107121752,2127,Alabare Christian Care Centre ,100837,SP2 ,Community Services,CTPLD Placements,Supported Living - Without SP payments,Third Party Payments,REVENUE
Wiltshire,http://opendatacommunities.org/id/unitary-authority/wiltshire,18/10/2017,5107121754,539,Alabare Christian Care Centre ,100837,SP2 ,Community Services,CTPLD Placements,Supported Living - Without SP payments,Third Party Payments,REVENUE
Wiltshire,http://opendatacommunities.org/id/unitary-authority/wiltshire,18/10/2017,5107121759,635.36,Alabare Christian Care Centre ,100837,SP2 ,Community Services,CTPLD Placements,Supported Living - Without SP payments,Third Party Payments,REVENUE
Wiltshire,http://opendatacommunities.org/id/unitary-authority/wiltshire,18/10/2017,5107121761,4061.4,Alabare Christian Care Centre ,100837,SP2 ,Community Services,CTPLD Placements,Supported Living - Without SP payments,Third Party Payments,REVENUE
Wiltshire,http://opendatacommunities.org/id/unitary-authority/wiltshire,18/10/2017,5107121763,2483.64,Alabare Christian Care Centre ,100837,SP2 ,Community Services,CTPLD Placements,Supported Living - Without SP payments,Third Party Payments,REVENUE
Wiltshire,http://opendatacommunities.org/id/unitary-authority/wiltshire,18/10/2017,5107121765,2788.04,Alabare Christian Care Centre ,100837,SP2 ,Community Services,CTPLD Placements,Supported Living - Without SP payments,Third Party Payments,REVENUE
Wiltshire,http://opendatacommunities.org/id/unitary-authority/wiltshire,18/10/2017,5107121767,3220.24,Alabare Christian Care Centre ,100837,SP2 ,Community Services,CTPLD Placements,Supported Living - Without SP payments,Third Party Payments,REVENUE
Wiltshire,http://opendatacommunities.org/id/unitary-authority/wiltshire,18/10/2017,5107121772,7931.88,Alabare Christian Care Centre ,100837,SP2 ,Community Services,CTPLD Placements,Supported Living - Without SP payments,Third Party Payments,REVENUE
Wiltshire,http://opendatacommunities.org/id/unitary-authority/wiltshire,18/10/2017,5107121775,598.84,Alabare Christian Care Centre ,100837,SP2 ,Community Services,CTPLD Placements,Supported Living - Without SP payments,Third Party Payments,REVENUE
Wiltshire,http://opendatacommunities.org/id/unitary-authority/wiltshire,18/10/2017,5107121780,3291.44,Alabare Christian Care Centre ,100837,SP2 ,Community Services,CTPLD Placements,Supported Living - Without SP payments,Third Party Payments,REVENUE
Wiltshire,http://opendatacommunities.org/id/unitary-authority/wiltshire,18/10/2017,5107121782,1863.44,Alabare Christian Care Centre ,100837,SP2 ,Community Services,CTPLD Placements,Supported Living - Without SP payments,Third Party Payments,REVENUE
Wiltshire,http://opendatacommunities.org/id/unitary-authority/wiltshire,18/10/2017,5107121784,1694.28,Alabare Christian Care Centre ,100837,SP2 ,Community Services,Endless/St.A,Supported Living - Without SP payments,Third Party Payments,REVENUE
Wiltshire,http://opendatacommunities.org/id/unitary-authority/wiltshire,18/10/2017,5107121785,598.84,Alabare Christian Care Centre ,100837,SP2 ,Community Services,CTPLD Placements,Supported Living - Without SP payments,Third Party Payments,REVENUE
Wiltshire,http://opendatacommunities.org/id/unitary-authority/wiltshire,18/10/2017,5107121787,734.44,Alabare Christian Care Centre ,100837,SP2 ,Community Services,CTPLD Placements,Supported Living - Without SP payments,Third Party Payments,REVENUE
Wiltshire,http://opendatacommunities.org/id/unitary-authority/wiltshire,18/10/2017,5107121789,1355.92,Alabare Christian Care Centre ,100837,SP2 ,Community Services,CTPLD Placements,Supported Living - Without SP payments,Third Party Payments,REVENUE
Wiltshire,http://opendatacommunities.org/id/unitary-authority/wiltshire,18/10/2017,5107121822,833.48,Alabare Christian Care Centre ,100837,SP2 ,Community Services,CTPLD Placements,Supported Living - Without SP payments,Third Party Payments,REVENUE
Wiltshire,http://opendatacommunities.org/id/unitary-authority/wiltshire,18/10/2017,5107121824,1735.72,Alabare Christian Care Centre ,100837,SP2 ,Community Services,CTPLD Placements,Supported Living - Without SP payments,Third Party Payments,REVENUE
Wiltshire,http://opendatacommunities.org/id/unitary-authority/wiltshire,18/10/2017,5107121831,396,Alabare Christian Care Centre ,100837,SP2 ,Community Services,CTPLD Placements,Supported Living - Without SP payments,Third Party Payments,REVENUE
Wiltshire,http://opendatacommunities.org/id/unitary-authority/wiltshire,18/10/2017,5107121832,2158.64,Alabare Christian Care Centre ,100837,SP2 ,Community Services,CTPLD Placements,Supported Living - Without SP payments,Third Party Payments,REVENUE
Wiltshire,http://opendatacommunities.org/id/unitary-authority/wiltshire,18/10/2017,5107121837,3112.88,Alabare Christian Care Centre ,100837,SP2 ,Community Services,CTPLD Placements,Supported Living - Without SP payments,Third Party Payments,REVENUE
Wiltshire,http://opendatacommunities.org/id/unitary-authority/wiltshire,18/10/2017,5107121838,3197.68,Alabare Christian Care Centre ,100837,SP2 ,Community Services,CTPLD Placements,Supported Living - Without SP payments,Third Party Payments,REVENUE
Wiltshire,http://opendatacommunities.org/id/unitary-authority/wiltshire,18/10/2017,5107122100,3571.36,Alabare Christian Care Centre ,100837,SP2 ,Community Services,CTPLD Placements,Supported Living - Without SP payments,Third Party Payments,REVENUE
Wiltshire,http://opendatacommunities.org/id/unitary-authority/wiltshire,18/10/2017,5107122105,2002.28,Alabare Christian Care Centre ,100837,SP2 ,Community Services,CTPLD Placements,Supported Living - Without SP payments,Third Party Payments,REVENUE
Wiltshire,http://opendatacommunities.org/id/unitary-authority/wiltshire,18/10/2017,5107122106,1776.88,Alabare Christian Care Centre ,100837,SP2 ,Community Services,CTPLD Placements,Supported Living - Without SP payments,Third Party Payments,REVENUE
Wiltshire,http://opendatacommunities.org/id/unitary-authority/wiltshire,18/10/2017,5107122124,3311.64,Alabare Christian Care Centre ,100837,SP2 ,Community Services,CTPLD Placements,Supported Living - Without SP payments,Third Party Payments,REVENUE
Wiltshire,http://opendatacommunities.org/id/unitary-authority/wiltshire,18/10/2017,5107122134,2982.96,Alabare Christian Care Centre ,100837,SP2 ,Community Services,Salisbury,Supported Living - Without SP payments,Third Party Payments,REVENUE
Wiltshire,http://opendatacommunities.org/id/unitary-authority/wiltshire,18/10/2017,5107122138,2881.24,Alabare Christian Care Centre ,100837,SP2 ,Community Services,CTPLD Placements,Supported Living - Without SP payments,Third Party Payments,REVENUE
Wiltshire,http://opendatacommunities.org/id/unitary-authority/wiltshire,18/10/2017,5107122140,2827.56,Alabare Christian Care Centre ,100837,SP2 ,Community Services,CTPLD Placements,Supported Living - Without SP payments,Third Party Payments,REVENUE
Wiltshire,http://opendatacommunities.org/id/unitary-authority/wiltshire,13/10/2017,5107123174,335.78,Alabare Christian Care Centre ,100837,SP2 ,Children & Education,Albare Contract,Adult / Child Care Agency Placement,Third Party Payments,REVENUE
Wiltshire,http://opendatacommunities.org/id/unitary-authority/wiltshire,17/10/2017,5107124327,608,Alabare Christian Care Centre ,100837,SP2 ,Community Services,CTPLD Placements,Adult Day Care - Spot,Third Party Payments,REVENUE
Wiltshire,http://opendatacommunities.org/id/unitary-authority/wiltshire,18/10/2017,5107125459,410.44,Alabare Christian Care Centre ,100837,SP2 ,Community Services,CTPLD Placements,Adult Domiciliary Care - Spot Contribution,Income,REVENUE
Wiltshire,http://opendatacommunities.org/id/unitary-authority/wiltshire,18/10/2017,5107126671,657.6,Alabare Christian Care Centre ,100837,SP2 ,Community Services,Salisbury,Supported Living - Without SP payments,Third Party Payments,REVENUE
Wiltshire,http://opendatacommunities.org/id/unitary-authority/wiltshire,18/10/2017,5107126672,1446.72,Alabare Christian Care Centre ,100837,SP2 ,Community Services,Salisbury,Supported Living - Without SP payments,Third Party Payments,REVENUE
Wiltshire,http://opendatacommunities.org/id/unitary-authority/wiltshire,18/10/2017,5107126673,648.18,Alabare Christian Care Centre ,100837,SP2 ,Community Services,Salisbury,Supported Living - Without SP payments,Third Party Payments,REVENUE
Wiltshire,http://opendatacommunities.org/id/unitary-authority/wiltshire,18/10/2017,5107126674,3024.96,Alabare Christian Care Centre ,100837,SP2 ,Community Services,Salisbury,Supported Living - Without SP payments,Third Party Payments,REVENUE
Wiltshire,http://opendatacommunities.org/id/unitary-authority/wiltshire,18/10/2017,5107126675,540.15,Alabare Christian Care Centre ,100837,SP2 ,Community Services,Salisbury,Supported Living - Without SP payments,Third Party Payments,REVENUE
Wiltshire,http://opendatacommunities.org/id/unitary-authority/wiltshire,18/10/2017,5107126682,649.88,Alabare Christian Care Centre ,100837,SP2 ,Children & Education,Albare Contract,Adult / Child Care Agency Placement,Third Party Payments,REVENUE
Wiltshire,http://opendatacommunities.org/id/unitary-authority/wiltshire,18/10/2017,5107126690,304,Alabare Christian Care Centre ,100837,SP2 ,Community Services,CTPLD Placements,Adult Day Care - Spot,Third Party Payments,REVENUE
Wiltshire,http://opendatacommunities.org/id/unitary-authority/wiltshire,18/10/2017,5107126691,380,Alabare Christian Care Centre ,100837,SP2 ,Community Services,CTPLD Placements,Adult Day Care - Spot,Third Party Payments,REVENUE
Wiltshire,http://opendatacommunities.org/id/unitary-authority/wiltshire,20/10/2017,5107127810,2383.4,Alabare Christian Care Centre ,100837,SP2 ,Community Services,MH OP South Locality,Adult Domiciliary Care - Spot,Third Party Payments,REVENUE
Wiltshire,http://opendatacommunities.org/id/unitary-authority/wiltshire,20/10/2017,5107127811,2383.4,Alabare Christian Care Centre ,100837,SP2 ,Community Services,MH OP South Locality,Adult Domiciliary Care - Spot,Third Party Payments,REVENUE
Wiltshire,http://opendatacommunities.org/id/unitary-authority/wiltshire,20/10/2017,5107127812,1021.44,Alabare Christian Care Centre ,100837,SP2 ,Community Services,MH OP South Locality,Adult Domiciliary Care - Spot,Third Party Payments,REVENUE
Wiltshire,http://opendatacommunities.org/id/unitary-authority/wiltshire,23/10/2017,5107128191,8475,Alabare Christian Care Centre ,100837,SP2 ,Community Services,KASH Ruth House,Substance Misuse - Payments to Contractors,Third Party Payments,REVENUE
Wiltshire,http://opendatacommunities.org/id/unitary-authority/wiltshire,23/10/2017,5107128192,10795,Alabare Christian Care Centre ,100837,SP2 ,Community Services,KASH Ruth House,Substance Misuse - Payments to Contractors,Third Party Payments,REVENUE
Wiltshire,http://opendatacommunities.org/id/unitary-authority/wiltshire,25/10/2017,1902018255,1613,Albino Builders Ltd ,141742,BA4 ,Wiltshire Council,Wiltshire Council,Payments to Contractors - Other,Third Party Payments,CAPITAL
Wiltshire,http://opendatacommunities.org/id/unitary-authority/wiltshire,02/10/2017,5107119065,1214.3,Aldbourne Nursing Home ,110090,SN8 ,Community Services,Marlborough,Adult Care Nursing Placements- Spot Purchase,Third Party Payments,REVENUE
Wiltshire,http://opendatacommunities.org/id/unitary-authority/wiltshire,02/10/2017,5107119067,3400,Aldbourne Nursing Home ,110090,SN8 ,Community Services,Marlborough,Adult Care Nursing Placements- Spot Purchase,Third Party Payments,REVENUE
Wiltshire,http://opendatacommunities.org/id/unitary-authority/wiltshire,02/10/2017,5107119070,3400,Aldbourne Nursing Home ,110090,SN8 ,Community Services,Marlborough,Adult Care Nursing Placements- Spot Purchase,Third Party Payments,REVENUE
Wiltshire,http://opendatacommunities.org/id/unitary-authority/wiltshire,18/10/2017,5107122721,3052,Aldbourne Nursing Home ,110090,SN8 ,Community Services,Home Loans,Adult Care Loans,Capital charges and Expenditure,REVENUE
Wiltshire,http://opendatacommunities.org/id/unitary-authority/wiltshire,18/10/2017,5107123410,3075.72,Aldbourne Nursing Home ,110090,SN8 ,Community Services,MH OP N&E Locality,Adult Care Nursing Placements- Spot Purchase,Third Party Payments,REVENUE
Wiltshire,http://opendatacommunities.org/id/unitary-authority/wiltshire,18/10/2017,5107123434,3500,Aldbourne Nursing Home ,110090,SN8 ,Community Services,Home Loans,Adult Care Loans,Capital charges and Expenditure,REVENUE
Wiltshire,http://opendatacommunities.org/id/unitary-authority/wiltshire,18/10/2017,5107123503,3000,Aldbourne Nursing Home ,110090,SN8 ,Community Services,Home Loans,Adult Care Loans,Capital charges and Expenditure,REVENUE
Wiltshire,http://opendatacommunities.org/id/unitary-authority/wiltshire,18/10/2017,5107123756,2616.4,Aldbourne Nursing Home ,110090,SN8 ,Community Services,Marlborough,Adult Residential Placements - Spot Purchase,Third Party Payments,REVENUE
Wiltshire,http://opendatacommunities.org/id/unitary-authority/wiltshire,18/10/2017,5107123764,2616.4,Aldbourne Nursing Home ,110090,SN8 ,Community Services,Marlborough,Adult Residential Placements - Spot Purchase,Third Party Payments,REVENUE
Wiltshire,http://opendatacommunities.org/id/unitary-authority/wiltshire,18/10/2017,5107125982,3600,Aldbourne Nursing Home ,110090,SN8 ,Community Services,Adult Care Gross Loa,Adult Care Loans,Capital charges and Expenditure,REVENUE
Wiltshire,http://opendatacommunities.org/id/unitary-authority/wiltshire,18/10/2017,5107126411,3052,Aldbourne Nursing Home ,110090,SN8 ,Community Services,Marlborough,Adult Care Nursing Placements- Spot Purchase,Third Party Payments,REVENUE
Wiltshire,http://opendatacommunities.org/id/unitary-authority/wiltshire,18/10/2017,5107126577,3400,Aldbourne Nursing Home ,110090,SN8 ,Community Services,Marlborough,Adult Care Nursing Placements- Spot Purchase,Third Party Payments,REVENUE
Wiltshire,http://opendatacommunities.org/id/unitary-authority/wiltshire,20/10/2017,5107127690,475,Aldercross Ltd ,126099,CH5 ,Resources,MembersCosts,Conference Fees,Supplies and Services,REVENUE
Wiltshire,http://opendatacommunities.org/id/unitary-authority/wiltshire,24/10/2017,5107128269,311,Alere Toxicology Plc ,131373,OX14,Children & Education,HQ Social Care,Witness / Jurors' / Justice's Expenses,Supplies and Services,REVENUE
Wiltshire,http://opendatacommunities.org/id/unitary-authority/wiltshire,24/10/2017,5107128286,419,Alere Toxicology Plc ,131373,OX14,Children & Education,HQ Social Care,Witness / Jurors' / Justice's Expenses,Supplies and Services,REVENUE
Wiltshire,http://opendatacommunities.org/id/unitary-authority/wiltshire,18/10/2017,5107125488,6237.48,Alexandra Homes (Bristol) Ltd ,131787,BS15,Community Services,MH AOWA West Localit,Adult Residential Placements - Spot Purchase,Third Party Payments,REVENUE
Wiltshire,http://opendatacommunities.org/id/unitary-authority/wiltshire,12/10/2017,5107121966,400,Alison Cliffe Theraplay Support Lim ,143719,BA1 ,Children & Education,Adoption Support Fun,Adoption Support,Third Party Payments,REVENUE
Wiltshire,http://opendatacommunities.org/id/unitary-authority/wiltshire,18/10/2017,5107125579,1476.6,Alison Holmes ,122891,SN12,Community Services,Melk Cluster,Adult Placement,Third Party Payments,REVENUE
Wiltshire,http://opendatacommunities.org/id/unitary-authority/wiltshire,26/10/2017,5107121965,717.5,Allen James ,145101,SP7 ,Neighbourhood & Planning,Winter Maintenance,Highways - Salt,Supplies and Services,REVENUE
Wiltshire,http://opendatacommunities.org/id/unitary-authority/wiltshire,18/10/2017,5107122717,2108.92,Alliance Home Care ,110986,SN15,Community Services,MH OP N&E Locality,Adult Residential Placements - Spot Purchase,Third Party Payments,REVENUE
Wiltshire,http://opendatacommunities.org/id/unitary-authority/wiltshire,18/10/2017,5107122843,3676.04,Alliance Home Care ,110986,SN15,Community Services,MH AOWA N&E Locality,Adult Residential Placements - Spot Purchase,Third Party Payments,REVENUE
Wiltshire,http://opendatacommunities.org/id/unitary-authority/wiltshire,18/10/2017,5107123391,3139.8,Alliance Home Care ,110986,SN15,Community Services,MH AOWA N&E Locality,Adult Residential Placements - Spot Purchase,Third Party Payments,REVENUE
Wiltshire,http://opendatacommunities.org/id/unitary-authority/wiltshire,18/10/2017,5107123422,3267.84,Alliance Home Care ,110986,SN15,Community Services,MH AOWA N&E Locality,Adult Residential Placements - Spot Purchase,Third Party Payments,REVENUE
Wiltshire,http://opendatacommunities.org/id/unitary-authority/wiltshire,18/10/2017,5107123575,3599.72,Alliance Home Care ,110986,SN15,Community Services,MH OP N&E Locality,Adult Residential Placements - Spot Purchase,Third Party Payments,REVENUE
Wiltshire,http://opendatacommunities.org/id/unitary-authority/wiltshire,18/10/2017,5107124396,5440.96,Alliance Home Care ,110986,SN15,Community Services,CTPLD Placements,Adult Residential Placements - Spot Purchase,Third Party Payments,REVENUE
Wiltshire,http://opendatacommunities.org/id/unitary-authority/wiltshire,18/10/2017,5107124447,3728.52,Alliance Home Care ,110986,SN15,Community Services,MH AOWA N&E Locality,Adult Residential Placements - Spot Purchase,Third Party Payments,REVENUE
Wiltshire,http://opendatacommunities.org/id/unitary-authority/wiltshire,04/10/2017,5107119485,309.4,Allied Healthcare  UK  Ltd ,110113,ST18,Children & Education,CDT S&W,Other Social & Welfare Costs,Third Party Payments,REVENUE
Wiltshire,http://opendatacommunities.org/id/unitary-authority/wiltshire,04/10/2017,5107119488,262.5,Allied Healthcare  UK  Ltd ,110113,ST18,Children & Education,CDT S&W,Other Social & Welfare Costs,Third Party Payments,REVENUE
Wiltshire,http://opendatacommunities.org/id/unitary-authority/wiltshire,04/10/2017,5107119489,262.5,Allied Healthcare  UK  Ltd ,110113,ST18,Children & Education,CDT S&W,Other Social & Welfare Costs,Third Party Payments,REVENUE
Wiltshire,http://opendatacommunities.org/id/unitary-authority/wiltshire,04/10/2017,5107119492,309.4,Allied Healthcare  UK  Ltd ,110113,ST18,Children & Education,CDT S&W,Other Social & Welfare Costs,Third Party Payments,REVENUE
Wiltshire,http://opendatacommunities.org/id/unitary-authority/wiltshire,13/10/2017,5107122311,1545,Allied Healthcare  UK  Ltd ,110113,ST18,Community Services,Cricklade,Adult Domiciliary Care - Spot,Third Party Payments,REVENUE
Wiltshire,http://opendatacommunities.org/id/unitary-authority/wiltshire,17/10/2017,5107124101,8662.8,Allied Healthcare  UK  Ltd ,110113,ST18,Community Services,MH OP West Locality,Adult Domiciliary Care - Spot,Third Party Payments,REVENUE
Wiltshire,http://opendatacommunities.org/id/unitary-authority/wiltshire,19/10/2017,5107127593,309.4,Allied Healthcare  UK  Ltd ,110113,ST18,Children & Education,CDT S&W,Other Social & Welfare Costs,Third Party Payments,REVENUE
Wiltshire,http://opendatacommunities.org/id/unitary-authority/wiltshire,19/10/2017,5107127596,309.4,Allied Healthcare  UK  Ltd ,110113,ST18,Children & Education,CDT S&W,Other Social & Welfare Costs,Third Party Payments,REVENUE
Wiltshire,http://opendatacommunities.org/id/unitary-authority/wiltshire,25/10/2017,5107128622,456.84,Allied Healthcare  UK  Ltd ,110113,ST18,Community Services,CTPLD Placements,Adult Domiciliary Care - Spot,Third Party Payments,REVENUE
Wiltshire,http://opendatacommunities.org/id/unitary-authority/wiltshire,02/10/2017,5107118937,503.14,Allied Healthcare Group Allied Healthcare Group,113066,SP2 ,Community Services,Orchard,Adult Domiciliary Care - Spot,Third Party Payments,REVENUE
Wiltshire,http://opendatacommunities.org/id/unitary-authority/wiltshire,02/10/2017,5107118938,565.02,Allied Healthcare Group Allied Healthcare Group,113066,SP2 ,Community Services,MH AOWA South Locali,Adult Domiciliary Care - Spot Contribution,Income,REVENUE
Wiltshire,http://opendatacommunities.org/id/unitary-authority/wiltshire,11/10/2017,5107121746,1699.84,Allied Healthcare Group Allied Healthcare Group,113066,SP2 ,Community Services,Endless/St.A,Adult Domiciliary Care - Spot Contribution,Income,REVENUE
Wiltshire,http://opendatacommunities.org/id/unitary-authority/wiltshire,25/10/2017,5107128506,1611.49,Allied Healthcare Group Allied Healthcare Group,113066,SP2 ,Community Services,Endless/St.A,Adult Domiciliary Care - Spot Contribution,Income,REVENUE
Wiltshire,http://opendatacommunities.org/id/unitary-authority/wiltshire,25/10/2017,5107128515,8666.34,Allied Healthcare Group Allied Healthcare Group,113066,SP2 ,Community Services,CTPLD Placements,Supported Living Contribution,Income,REVENUE
Wiltshire,http://opendatacommunities.org/id/unitary-authority/wiltshire,26/10/2017,1902024601,2000,Allpay Ltd ,136796,HR1 ,Resources,Social Fund,Social Fund Payments,Capital charges and Expenditure,REVENUE
Wiltshire,http://opendatacommunities.org/id/unitary-authority/wiltshire,23/10/2017,5107119577,879.05,ALLSPARES  AUTO  LTD ,110116,CF33,Neighbourhood & Planning,Fleet,Vehicle Parts,Transport Related,REVENUE
Wiltshire,http://opendatacommunities.org/id/unitary-authority/wiltshire,17/10/2017,5107119579,250,ALLSPARES  AUTO  LTD ,110116,CF33,Neighbourhood & Planning,Fleet,Vehicle Parts,Transport Related,REVENUE
Wiltshire,http://opendatacommunities.org/id/unitary-authority/wiltshire,11/10/2017,5107119580,415,ALLSPARES  AUTO  LTD ,110116,CF33,Neighbourhood & Planning,Fleet,Vehicle Parts,Transport Related,REVENUE
Wiltshire,http://opendatacommunities.org/id/unitary-authority/wiltshire,17/10/2017,5107120026,374.6,Alpha Chemicals ,138904,SO31,Neighbourhood & Planning,Five Rivers,Cleaning Materials - Buildings,Premises Related,REVENUE
Wiltshire,http://opendatacommunities.org/id/unitary-authority/wiltshire,03/10/2017,5107108024,412,Alpha Plus Training  and  Translati Ltd,110120,TA4 ,Resources,Refugee Programme,Publications / periodicals,Supplies and Services,REVENUE
Wiltshire,http://opendatacommunities.org/id/unitary-authority/wiltshire,05/10/2017,1902012239,465.12,Alpha Taxis ,100124,BA14,Neighbourhood & Planning,Mainstream Primary,Transport Contracts,Third Party Payments,REVENUE
Wiltshire,http://opendatacommunities.org/id/unitary-authority/wiltshire,05/10/2017,1902012240,325.4,Alpha Taxis ,100124,BA14,Neighbourhood & Planning,SEN 16+ Secondary,Transport Contracts,Third Party Payments,REVENUE
Wiltshire,http://opendatacommunities.org/id/unitary-authority/wiltshire,05/10/2017,1902012244,336,Alpha Taxis ,100124,BA14,Neighbourhood & Planning,Mainstream Secondary,Transport Contracts,Third Party Payments,REVENUE
Wiltshire,http://opendatacommunities.org/id/unitary-authority/wiltshire,05/10/2017,1902012245,796.95,Alpha Taxis ,100124,BA14,Neighbourhood & Planning,SEN Primary,Transport Contracts,Third Party Payments,REVENUE
Wiltshire,http://opendatacommunities.org/id/unitary-authority/wiltshire,05/10/2017,1902012247,489.3,Alpha Taxis ,100124,BA14,Children & Education,CIC Team South,Transport Contracts,Third Party Payments,REVENUE
Wiltshire,http://opendatacommunities.org/id/unitary-authority/wiltshire,05/10/2017,1902012247,1905.7,Alpha Taxis ,100124,BA14,Neighbourhood & Planning,SEN Primary,Transport Contracts,Third Party Payments,REVENUE
Wiltshire,http://opendatacommunities.org/id/unitary-authority/wiltshire,05/10/2017,1902012252,472.5,Alpha Taxis ,100124,BA14,Community Services,BoA Cluster,Transport Contracts,Third Party Payments,REVENUE
Wiltshire,http://opendatacommunities.org/id/unitary-authority/wiltshire,05/10/2017,1902012254,2033.2,Alpha Taxis ,100124,BA14,Neighbourhood & Planning,SEN Primary,Transport Contracts,Third Party Payments,REVENUE
Wiltshire,http://opendatacommunities.org/id/unitary-authority/wiltshire,05/10/2017,1902012255,1207.4,Alpha Taxis ,100124,BA14,Children & Education,Safeguarding Ass Sth,Transport Contracts,Third Party Payments,REVENUE
Wiltshire,http://opendatacommunities.org/id/unitary-authority/wiltshire,17/10/2017,1902016343,1081.4,Alpha Taxis ,100124,BA14,Neighbourhood & Planning,Mainstream Secondary,Transport Contracts,Third Party Payments,REVENUE
Wiltshire,http://opendatacommunities.org/id/unitary-authority/wiltshire,17/10/2017,1902016345,332.2,Alpha Taxis ,100124,BA14,Community Services,CTPLD Placements,Transport Contracts,Third Party Payments,REVENUE
Wiltshire,http://opendatacommunities.org/id/unitary-authority/wiltshire,17/10/2017,1902016346,1161,Alpha Taxis ,100124,BA14,Neighbourhood & Planning,SEN Primary,Transport Contracts,Third Party Payments,REVENUE
Wiltshire,http://opendatacommunities.org/id/unitary-authority/wiltshire,17/10/2017,1902016346,1161,Alpha Taxis ,100124,BA14,Neighbourhood & Planning,SEN 16+ Secondary,Transport Contracts,Third Party Payments,REVENUE
Wiltshire,http://opendatacommunities.org/id/unitary-authority/wiltshire,18/10/2017,1902016665,954,Alpha Taxis ,100124,BA14,Neighbourhood & Planning,Mainstream Secondary,Transport Contracts,Third Party Payments,REVENUE
Wiltshire,http://opendatacommunities.org/id/unitary-authority/wiltshire,18/10/2017,1902016672,691,Alpha Taxis ,100124,BA14,Community Services,CTPLD Placements,Transport Contracts,Third Party Payments,REVENUE
Wiltshire,http://opendatacommunities.org/id/unitary-authority/wiltshire,26/10/2017,1902025118,2320.1,Alpha Taxis ,100124,BA14,Neighbourhood & Planning,SEN Primary,Transport Contracts,Third Party Payments,REVENUE
Wiltshire,http://opendatacommunities.org/id/unitary-authority/wiltshire,26/10/2017,1902025118,2320.1,Alpha Taxis ,100124,BA14,Neighbourhood & Planning,SEN 16+ Secondary,Transport Contracts,Third Party Payments,REVENUE
Wiltshire,http://opendatacommunities.org/id/unitary-authority/wiltshire,30/10/2017,1902026256,477.2,Alpha Taxis ,100124,BA14,Neighbourhood & Planning,SEN Secondary,Transport Contracts,Third Party Payments,REVENUE
Wiltshire,http://opendatacommunities.org/id/unitary-authority/wiltshire,30/10/2017,1902026256,1409.6,Alpha Taxis ,100124,BA14,Children & Education,Safeguarding Ass Sth,Transport Contracts,Third Party Payments,REVENUE
Wiltshire,http://opendatacommunities.org/id/unitary-authority/wiltshire,09/10/2017,1901999525,26141.5,Alun Griffiths Contractors Ltd ,110123,NP7 ,Wiltshire Council,Wiltshire Council,Highways - Other Materials,Supplies and Services,CAPITAL
Wiltshire,http://opendatacommunities.org/id/unitary-authority/wiltshire,09/10/2017,1902001732,240099.63,Alun Griffiths Contractors Ltd ,110123,NP7 ,Wiltshire Council,Wiltshire Council,Highways - Other Materials,Supplies and Services,CAPITAL
Wiltshire,http://opendatacommunities.org/id/unitary-authority/wiltshire,27/10/2017,1902016640,192842.95,Alun Griffiths Contractors Ltd ,110123,NP7 ,Wiltshire Council,Wiltshire Council,Highways - Other Materials,Supplies and Services,CAPITAL
Wiltshire,http://opendatacommunities.org/id/unitary-authority/wiltshire,27/10/2017,1902016641,50450.41,Alun Griffiths Contractors Ltd ,110123,NP7 ,Wiltshire Council,Wiltshire Council,Highways - Other Materials,Supplies and Services,CAPITAL
Wiltshire,http://opendatacommunities.org/id/unitary-authority/wiltshire,03/10/2017,5107119326,21312,Alzheimers Support ,110127,BA14,Community Services,MH Commissioned Cont,Grants Paid to individuals for Tangible Benefits,Supplies and Services,REVENUE
Wiltshire,http://opendatacommunities.org/id/unitary-authority/wiltshire,03/10/2017,5107119327,10192.7,Alzheimers Support ,110127,BA14,Community Services,MH Commissioned Cont,Grants Paid to individuals for Tangible Benefits,Supplies and Services,REVENUE
Wiltshire,http://opendatacommunities.org/id/unitary-authority/wiltshire,31/10/2017,5107128427,21312,Alzheimers Support ,110127,BA14,Community Services,MH Commissioned Cont,Grants Paid to individuals for Tangible Benefits,Supplies and Services,REVENUE
Wiltshire,http://opendatacommunities.org/id/unitary-authority/wiltshire,31/10/2017,5107128428,10192.7,Alzheimers Support ,110127,BA14,Community Services,MH Commissioned Cont,Grants Paid to individuals for Tangible Benefits,Supplies and Services,REVENUE
Wiltshire,http://opendatacommunities.org/id/unitary-authority/wiltshire,11/10/2017,5107121659,297,Alzheimers Support ,113451,BA14,Community Services,Salisbury,Adult Domiciliary Care - Spot,Third Party Payments,REVENUE
Wiltshire,http://opendatacommunities.org/id/unitary-authority/wiltshire,11/10/2017,5107121660,366,Alzheimers Support ,113451,BA14,Community Services,Cricklade,Adult Domiciliary Care - Mileage,Third Party Payments,REVENUE
Wiltshire,http://opendatacommunities.org/id/unitary-authority/wiltshire,11/10/2017,5107121668,439.19,Alzheimers Support ,113451,BA14,Community Services,Salisbury,Adult Domiciliary Care - Mileage,Third Party Payments,REVENUE
Wiltshire,http://opendatacommunities.org/id/unitary-authority/wiltshire,11/10/2017,5107121669,297,Alzheimers Support ,113451,BA14,Community Services,Malmesbury,Adult Domiciliary Care - Spot,Third Party Payments,REVENUE
Wiltshire,http://opendatacommunities.org/id/unitary-authority/wiltshire,11/10/2017,5107121674,339.81,Alzheimers Support ,113451,BA14,Community Services,Cricklade,Adult Domiciliary Care - Mileage,Third Party Payments,REVENUE
Wiltshire,http://opendatacommunities.org/id/unitary-authority/wiltshire,11/10/2017,5107121697,279.18,Alzheimers Support ,113451,BA14,Community Services,Ad/Brad Rd,Adult Domiciliary Care - Mileage,Third Party Payments,REVENUE
Wiltshire,http://opendatacommunities.org/id/unitary-authority/wiltshire,11/10/2017,5107121711,302.4,Alzheimers Support ,113451,BA14,Community Services,BoA Cluster,Adult Domiciliary Care - Spot,Third Party Payments,REVENUE
Wiltshire,http://opendatacommunities.org/id/unitary-authority/wiltshire,11/10/2017,5107121712,257.4,Alzheimers Support ,113451,BA14,Community Services,Ad/Brad Rd,Adult Domiciliary Care - Mileage,Third Party Payments,REVENUE
Wiltshire,http://opendatacommunities.org/id/unitary-authority/wiltshire,11/10/2017,5107121719,264,Alzheimers Support ,113451,BA14,Community Services,Orchard,Adult Domiciliary Care - Spot,Third Party Payments,REVENUE
Wiltshire,http://opendatacommunities.org/id/unitary-authority/wiltshire,11/10/2017,5107121720,330,Alzheimers Support ,113451,BA14,Community Services,Orchard,Adult Domiciliary Care - Spot,Third Party Payments,REVENUE
Wiltshire,http://opendatacommunities.org/id/unitary-authority/wiltshire,11/10/2017,5107121728,332.1,Alzheimers Support ,113451,BA14,Community Services,Corsh & Box,Adult Domiciliary Care - Mileage,Third Party Payments,REVENUE
Wiltshire,http://opendatacommunities.org/id/unitary-authority/wiltshire,11/10/2017,5107121730,446.45,Alzheimers Support ,113451,BA14,Community Services,Melk Cluster,Adult Domiciliary Care - Mileage,Third Party Payments,REVENUE
Wiltshire,http://opendatacommunities.org/id/unitary-authority/wiltshire,11/10/2017,5107121732,314.28,Alzheimers Support ,113451,BA14,Community Services,Melk Cluster,Adult Domiciliary Care - Mileage,Third Party Payments,REVENUE
Wiltshire,http://opendatacommunities.org/id/unitary-authority/wiltshire,11/10/2017,5107121734,272.16,Alzheimers Support ,113451,BA14,Community Services,BoA Cluster,Adult Domiciliary Care - Spot,Third Party Payments,REVENUE
Wiltshire,http://opendatacommunities.org/id/unitary-authority/wiltshire,11/10/2017,5107121735,283.73,Alzheimers Support ,113451,BA14,Community Services,The Avenue,Adult Domiciliary Care - Mileage,Third Party Payments,REVENUE
Wiltshire,http://opendatacommunities.org/id/unitary-authority/wiltshire,11/10/2017,5107121737,280.35,Alzheimers Support ,113451,BA14,Community Services,Lovemd/Wid,Adult Domiciliary Care - Mileage,Third Party Payments,REVENUE
Wiltshire,http://opendatacommunities.org/id/unitary-authority/wiltshire,11/10/2017,5107121740,542.34,Alzheimers Support ,113451,BA14,Community Services,Lovemd/Wid,Adult Domiciliary Care - Mileage,Third Party Payments,REVENUE
Wiltshire,http://opendatacommunities.org/id/unitary-authority/wiltshire,11/10/2017,5107121745,522.06,Alzheimers Support ,113451,BA14,Community Services,White Horse,Adult Domiciliary Care - Mileage,Third Party Payments,REVENUE
Wiltshire,http://opendatacommunities.org/id/unitary-authority/wiltshire,12/10/2017,5107122038,504.71,Alzheimers Support ,113451,BA14,Community Services,Chippenham,Adult Domiciliary Care - Mileage,Third Party Payments,REVENUE
Wiltshire,http://opendatacommunities.org/id/unitary-authority/wiltshire,12/10/2017,5107122039,264,Alzheimers Support ,113451,BA14,Community Services,Chippenham,Adult Domiciliary Care - Spot,Third Party Payments,REVENUE
Wiltshire,http://opendatacommunities.org/id/unitary-authority/wiltshire,12/10/2017,5107122040,264,Alzheimers Support ,113451,BA14,Community Services,Malmesbury,Adult Domiciliary Care - Spot,Third Party Payments,REVENUE
Wiltshire,http://opendatacommunities.org/id/unitary-authority/wiltshire,12/10/2017,5107122047,338.1,Alzheimers Support ,113451,BA14,Community Services,Malmesbury,Adult Domiciliary Care - Mileage,Third Party Payments,REVENUE
Wiltshire,http://opendatacommunities.org/id/unitary-authority/wiltshire,12/10/2017,5107122048,381.6,Alzheimers Support ,113451,BA14,Community Services,The Avenue,Adult Domiciliary Care - Mileage,Third Party Payments,REVENUE
Wiltshire,http://opendatacommunities.org/id/unitary-authority/wiltshire,12/10/2017,5107122058,346.5,Alzheimers Support ,113451,BA14,Community Services,BoA Cluster,Adult Domiciliary Care - Mileage,Third Party Payments,REVENUE
Wiltshire,http://opendatacommunities.org/id/unitary-authority/wiltshire,18/10/2017,5107125328,408.37,Alzheimers Support ,113451,BA14,Community Services,Downton,Adult Domiciliary Care - Spot,Third Party Payments,REVENUE
Wiltshire,http://opendatacommunities.org/id/unitary-authority/wiltshire,20/10/2017,5107127775,294.84,Alzheimers Support ,113451,BA14,Community Services,Marlborough,Adult Domiciliary Care - Spot,Third Party Payments,REVENUE
Wiltshire,http://opendatacommunities.org/id/unitary-authority/wiltshire,20/10/2017,5107127777,275.94,Alzheimers Support ,113451,BA14,Community Services,Ad/Brad Rd,Adult Domiciliary Care - Spot,Third Party Payments,REVENUE
Wiltshire,http://opendatacommunities.org/id/unitary-authority/wiltshire,20/10/2017,5107127780,375.25,Alzheimers Support ,113451,BA14,Community Services,Lovemd/Wid,Adult Domiciliary Care - Mileage,Third Party Payments,REVENUE
Wiltshire,http://opendatacommunities.org/id/unitary-authority/wiltshire,20/10/2017,5107127781,382.59,Alzheimers Support ,113451,BA14,Community Services,BoA Cluster,Adult Domiciliary Care - Mileage,Third Party Payments,REVENUE
Wiltshire,http://opendatacommunities.org/id/unitary-authority/wiltshire,20/10/2017,5107127784,453.6,Alzheimers Support ,113451,BA14,Community Services,BoA Cluster,Adult Domiciliary Care - Spot,Third Party Payments,REVENUE
Wiltshire,http://opendatacommunities.org/id/unitary-authority/wiltshire,23/10/2017,5107128141,346.95,Alzheimers Support ,113451,BA14,Community Services,Melk Cluster,Adult Domiciliary Care - Mileage,Third Party Payments,REVENUE
Wiltshire,http://opendatacommunities.org/id/unitary-authority/wiltshire,23/10/2017,5107128146,294.84,Alzheimers Support ,113451,BA14,Community Services,Marlborough,Adult Domiciliary Care - Spot,Third Party Payments,REVENUE
Wiltshire,http://opendatacommunities.org/id/unitary-authority/wiltshire,25/10/2017,5107128543,264,Alzheimers Support ,113451,BA14,Community Services,Salisbury,Adult Domiciliary Care - Spot,Third Party Payments,REVENUE
Wiltshire,http://opendatacommunities.org/id/unitary-authority/wiltshire,25/10/2017,5107128673,264,Alzheimers Support ,113451,BA14,Community Services,Orchard,Adult Domiciliary Care - Spot,Third Party Payments,REVENUE
Wiltshire,http://opendatacommunities.org/id/unitary-authority/wiltshire,26/10/2017,5107128823,363,Alzheimers Support ,113451,BA14,Community Services,Chippenham,Adult Domiciliary Care - Spot,Third Party Payments,REVENUE
Wiltshire,http://opendatacommunities.org/id/unitary-authority/wiltshire,26/10/2017,5107128865,308.29,Alzheimers Support ,113451,BA14,Community Services,Lansdown,Adult Domiciliary Care - Mileage,Third Party Payments,REVENUE
Wiltshire,http://opendatacommunities.org/id/unitary-authority/wiltshire,26/10/2017,5107128890,273.87,Alzheimers Support ,113451,BA14,Community Services,Melk Cluster,Adult Domiciliary Care - Spot,Third Party Payments,REVENUE
Wiltshire,http://opendatacommunities.org/id/unitary-authority/wiltshire,26/10/2017,5107128892,259.92,Alzheimers Support ,113451,BA14,Community Services,Lansdown,Adult Domiciliary Care - Mileage,Third Party Payments,REVENUE
Wiltshire,http://opendatacommunities.org/id/unitary-authority/wiltshire,26/10/2017,5107128903,301.65,Alzheimers Support ,113451,BA14,Community Services,Cricklade,Adult Domiciliary Care - Spot,Third Party Payments,REVENUE
Wiltshire,http://opendatacommunities.org/id/unitary-authority/wiltshire,26/10/2017,5107128911,251.64,Alzheimers Support ,113451,BA14,Community Services,Marlborough,Adult Domiciliary Care - Mileage,Third Party Payments,REVENUE
Wiltshire,http://opendatacommunities.org/id/unitary-authority/wiltshire,26/10/2017,5107128921,267.45,Alzheimers Support ,113451,BA14,Community Services,Cricklade,Adult Domiciliary Care - Spot,Third Party Payments,REVENUE
Wiltshire,http://opendatacommunities.org/id/unitary-authority/wiltshire,26/10/2017,5107128922,264.6,Alzheimers Support ,113451,BA14,Community Services,Marlborough,Adult Domiciliary Care - Spot,Third Party Payments,REVENUE
Wiltshire,http://opendatacommunities.org/id/unitary-authority/wiltshire,26/10/2017,5107128924,272.16,Alzheimers Support ,113451,BA14,Community Services,BoA Cluster,Adult Domiciliary Care - Spot,Third Party Payments,REVENUE
Wiltshire,http://opendatacommunities.org/id/unitary-authority/wiltshire,26/10/2017,5107128927,251.63,Alzheimers Support ,113451,BA14,Community Services,Downton,Adult Domiciliary Care - Spot,Third Party Payments,REVENUE
Wiltshire,http://opendatacommunities.org/id/unitary-authority/wiltshire,27/10/2017,5107129986,290.1,Alzheimers Support ,113451,BA14,Community Services,Malmesbury,Adult Domiciliary Care - Mileage,Third Party Payments,REVENUE
Wiltshire,http://opendatacommunities.org/id/unitary-authority/wiltshire,27/10/2017,5107129988,298.17,Alzheimers Support ,113451,BA14,Community Services,BoA Cluster,Adult Domiciliary Care - Mileage,Third Party Payments,REVENUE
Wiltshire,http://opendatacommunities.org/id/unitary-authority/wiltshire,27/10/2017,5107129990,250.74,Alzheimers Support ,113451,BA14,Community Services,Lovemd/Wid,Adult Domiciliary Care - Mileage,Third Party Payments,REVENUE
Wiltshire,http://opendatacommunities.org/id/unitary-authority/wiltshire,27/10/2017,5107129992,377.48,Alzheimers Support ,113451,BA14,Community Services,Lovemd/Wid,Adult Domiciliary Care - Mileage,Third Party Payments,REVENUE
Wiltshire,http://opendatacommunities.org/id/unitary-authority/wiltshire,27/10/2017,5107129993,316.2,Alzheimers Support ,113451,BA14,Community Services,Cricklade,Adult Domiciliary Care - Mileage,Third Party Payments,REVENUE
Wiltshire,http://opendatacommunities.org/id/unitary-authority/wiltshire,27/10/2017,5107129995,325.42,Alzheimers Support ,113451,BA14,Community Services,Lansdown,Adult Domiciliary Care - Mileage,Third Party Payments,REVENUE
Wiltshire,http://opendatacommunities.org/id/unitary-authority/wiltshire,27/10/2017,5107129996,299.52,Alzheimers Support ,113451,BA14,Community Services,Southbroom,Adult Domiciliary Care - Mileage,Third Party Payments,REVENUE
Wiltshire,http://opendatacommunities.org/id/unitary-authority/wiltshire,27/10/2017,5107129997,313.92,Alzheimers Support ,113451,BA14,Community Services,The Avenue,Adult Domiciliary Care - Mileage,Third Party Payments,REVENUE
Wiltshire,http://opendatacommunities.org/id/unitary-authority/wiltshire,27/10/2017,5107130001,310.05,Alzheimers Support ,113451,BA14,Community Services,The Avenue,Adult Domiciliary Care - Mileage,Third Party Payments,REVENUE
Wiltshire,http://opendatacommunities.org/id/unitary-authority/wiltshire,27/10/2017,5107130009,316.99,Alzheimers Support ,113451,BA14,Community Services,Melk Cluster,Adult Domiciliary Care - Mileage,Third Party Payments,REVENUE
Wiltshire,http://opendatacommunities.org/id/unitary-authority/wiltshire,27/10/2017,5107130012,302.4,Alzheimers Support ,113451,BA14,Community Services,MH OP West Locality,Adult Domiciliary Care - Spot,Third Party Payments,REVENUE
Wiltshire,http://opendatacommunities.org/id/unitary-authority/wiltshire,27/10/2017,5107130013,407.13,Alzheimers Support ,113451,BA14,Community Services,Lansdown,Adult Domiciliary Care - Mileage,Third Party Payments,REVENUE
Wiltshire,http://opendatacommunities.org/id/unitary-authority/wiltshire,27/10/2017,5107130018,302.4,Alzheimers Support ,113451,BA14,Community Services,MH OP N&E Locality,Adult Domiciliary Care - Spot,Third Party Payments,REVENUE
Wiltshire,http://opendatacommunities.org/id/unitary-authority/wiltshire,30/10/2017,5107130718,280.35,Alzheimers Support ,113451,BA14,Community Services,Malmesbury,Adult Domiciliary Care - Mileage,Third Party Payments,REVENUE
Wiltshire,http://opendatacommunities.org/id/unitary-authority/wiltshire,30/10/2017,5107130720,291.9,Alzheimers Support ,113451,BA14,Community Services,Malmesbury,Adult Domiciliary Care - Spot,Third Party Payments,REVENUE
Wiltshire,http://opendatacommunities.org/id/unitary-authority/wiltshire,30/10/2017,5107130725,326.07,Alzheimers Support ,113451,BA14,Community Services,The Avenue,Adult Domiciliary Care - Spot,Third Party Payments,REVENUE
Wiltshire,http://opendatacommunities.org/id/unitary-authority/wiltshire,31/10/2017,5107130831,260.33,Alzheimers Support ,113451,BA14,Community Services,Lovemd/Wid,Adult Domiciliary Care - Mileage,Third Party Payments,REVENUE
Wiltshire,http://opendatacommunities.org/id/unitary-authority/wiltshire,31/10/2017,5107130849,393.08,Alzheimers Support ,113451,BA14,Community Services,White Horse,Adult Domiciliary Care - Mileage,Third Party Payments,REVENUE
Wiltshire,http://opendatacommunities.org/id/unitary-authority/wiltshire,18/10/2017,1901878284,811.8,AMAS Ltd Main Clients Account ,125036,BS8 ,Resources,M'boro Highways Depo,Premises Management Costs,Premises Related,REVENUE
Wiltshire,http://opendatacommunities.org/id/unitary-authority/wiltshire,18/10/2017,1901878285,1078.8,AMAS Ltd Main Clients Account ,125036,BS8 ,Resources,M'boro Highways Depo,Premises Management Costs,Premises Related,REVENUE
Wiltshire,http://opendatacommunities.org/id/unitary-authority/wiltshire,18/10/2017,5107114156,1078.8,AMAS Ltd Main Clients Account ,125036,BS8 ,Resources,M'boro Highways Depo,Premises Management Costs,Premises Related,REVENUE
Wiltshire,http://opendatacommunities.org/id/unitary-authority/wiltshire,18/10/2017,5107114157,811.8,AMAS Ltd Main Clients Account ,125036,BS8 ,Resources,M'boro Highways Depo,Premises Management Costs,Premises Related,REVENUE
Wiltshire,http://opendatacommunities.org/id/unitary-authority/wiltshire,13/10/2017,5107118620,295.15,Amateur Swimming Association ,110129,LE11,Neighbourhood & Planning,Springfield Leisr Cn,Traded Goods Expenses,Supplies and Services,REVENUE
Wiltshire,http://opendatacommunities.org/id/unitary-authority/wiltshire,12/10/2017,1902014007,55500,Ameo Professional Services LLP ,137429,B80 ,Community Services,ASC Transformation,Consultants Fees,Supplies and Services,REVENUE
Wiltshire,http://opendatacommunities.org/id/unitary-authority/wiltshire,12/10/2017,5107122154,3146.5,Amicus Foster Care Limited ,126050,BS2 ,Children & Education,Ext Placement & IFA,Adult / Child Care Agency Placement,Third Party Payments,REVENUE
Wiltshire,http://opendatacommunities.org/id/unitary-authority/wiltshire,12/10/2017,5107122157,4581.49,Amicus Foster Care Limited ,126050,BS2 ,Children & Education,Ext Placement & IFA,Adult / Child Care Agency Placement,Third Party Payments,REVENUE
Wiltshire,http://opendatacommunities.org/id/unitary-authority/wiltshire,12/10/2017,5107122158,3624.21,Amicus Foster Care Limited ,126050,BS2 ,Children & Education,Ext Placement & IFA,Adult / Child Care Agency Placement,Third Party Payments,REVENUE
Wiltshire,http://opendatacommunities.org/id/unitary-authority/wiltshire,12/10/2017,5107122159,3406.9,Amicus Foster Care Limited ,126050,BS2 ,Children & Education,Ext Placement & IFA,Adult / Child Care Agency Placement,Third Party Payments,REVENUE
Wiltshire,http://opendatacommunities.org/id/unitary-authority/wiltshire,12/10/2017,5107122162,3406.9,Amicus Foster Care Limited ,126050,BS2 ,Children & Education,Ext Placement & IFA,Adult / Child Care Agency Placement,Third Party Payments,REVENUE
Wiltshire,http://opendatacommunities.org/id/unitary-authority/wiltshire,13/10/2017,5107123172,367.16,Amicus Foster Care Limited ,126050,BS2 ,Children & Education,0-25 extnl disabty p,Adult / Child Care Agency Placement,Third Party Payments,REVENUE
Wiltshire,http://opendatacommunities.org/id/unitary-authority/wiltshire,18/10/2017,5107125748,3326.4,Amicus Foster Care Limited ,126050,BS2 ,Children & Education,Ext Placement & IFA,Adult / Child Care Agency Placement,Third Party Payments,REVENUE
Wiltshire,http://opendatacommunities.org/id/unitary-authority/wiltshire,10/10/2017,5107121523,813.02,Amicus Homecare Limited ,144149,BA2 ,Community Services,BoA Cluster,Adult Domiciliary Care - Spot Contribution,Income,REVENUE
Wiltshire,http://opendatacommunities.org/id/unitary-authority/wiltshire,31/10/2017,5107130998,890.32,Amicus Homecare Limited ,144149,BA2 ,Community Services,BoA Cluster,Adult Domiciliary Care - Spot Contribution,Income,REVENUE
Wiltshire,http://opendatacommunities.org/id/unitary-authority/wiltshire,31/10/2017,5107131034,878.5,Amicus Homecare Limited ,144149,BA2 ,Community Services,BoA Cluster,Adult Domiciliary Care - Spot Contribution,Income,REVENUE
Wiltshire,http://opendatacommunities.org/id/unitary-authority/wiltshire,31/10/2017,5107131037,840.28,Amicus Homecare Limited ,144149,BA2 ,Community Services,BoA Cluster,Adult Domiciliary Care - Spot Contribution,Income,REVENUE
Wiltshire,http://opendatacommunities.org/id/unitary-authority/wiltshire,31/10/2017,5107131038,1112.31,Amicus Homecare Limited ,144149,BA2 ,Community Services,BoA Cluster,Adult Domiciliary Care - Mileage,Third Party Payments,REVENUE
Wiltshire,http://opendatacommunities.org/id/unitary-authority/wiltshire,02/10/2017,5107119003,490.68,AMS Care Wiltshire ,130764,SN4 ,Community Services,Cricklade,Adult Care Nursing Placements- Spot Purchase,Third Party Payments,REVENUE
Wiltshire,http://opendatacommunities.org/id/unitary-authority/wiltshire,02/10/2017,5107119020,2138.5,AMS Care Wiltshire ,130764,SN4 ,Community Services,Calne,Adult Care Nursing Placements- Block Contract,Third Party Payments,REVENUE
Wiltshire,http://opendatacommunities.org/id/unitary-authority/wiltshire,02/10/2017,5107119022,2395,AMS Care Wiltshire ,130764,SN4 ,Community Services,Calne,Adult Care Nursing Placements- Block Contract,Third Party Payments,REVENUE
Wiltshire,http://opendatacommunities.org/id/unitary-authority/wiltshire,02/10/2017,5107119024,2395,AMS Care Wiltshire ,130764,SN4 ,Community Services,Calne,Adult Care Nursing Placements- Block Contract,Third Party Payments,REVENUE
Wiltshire,http://opendatacommunities.org/id/unitary-authority/wiltshire,02/10/2017,5107119026,2395,AMS Care Wiltshire ,130764,SN4 ,Community Services,Calne,Adult Care Nursing Placements- Block Contract,Third Party Payments,REVENUE
Wiltshire,http://opendatacommunities.org/id/unitary-authority/wiltshire,02/10/2017,5107119089,342.16,AMS Care Wiltshire ,130764,SN4 ,Community Services,Orchard,Adult Care Nursing Placements- Spot Purchase,Third Party Payments,REVENUE
Wiltshire,http://opendatacommunities.org/id/unitary-authority/wiltshire,02/10/2017,5107119099,427.7,AMS Care Wiltshire ,130764,SN4 ,Community Services,Cricklade,Adult Care Nursing Placements- Block Contract,Third Party Payments,REVENUE
Wiltshire,http://opendatacommunities.org/id/unitary-authority/wiltshire,11/10/2017,5107120952,16995,AMS Care Wiltshire ,130764,SN4 ,Community Services,BCF-Intermediate Cr,Adult Care Nursing Placements - Void Payments,Third Party Payments,REVENUE
Wiltshire,http://opendatacommunities.org/id/unitary-authority/wiltshire,11/10/2017,5107121857,557.76,AMS Care Wiltshire ,130764,SN4 ,Community Services,Marlborough,Adult Care Nursing Placements- Block Contract,Third Party Payments,REVENUE
Wiltshire,http://opendatacommunities.org/id/unitary-authority/wiltshire,11/10/2017,5107121888,1394.4,AMS Care Wiltshire ,130764,SN4 ,Community Services,Marlborough,Adult Care Nursing Placements- Spot Purchase,Third Party Payments,REVENUE
Wiltshire,http://opendatacommunities.org/id/unitary-authority/wiltshire,18/10/2017,5107122560,2603,AMS Care Wiltshire ,130764,SN4 ,Community Services,Cricklade,Adult Care Nursing Placements- Block Contract,Third Party Payments,REVENUE
Wiltshire,http://opendatacommunities.org/id/unitary-authority/wiltshire,18/10/2017,5107122586,2603,AMS Care Wiltshire ,130764,SN4 ,Community Services,Cricklade,Adult Care Nursing Placements- Block Contract,Third Party Payments,REVENUE
Wiltshire,http://opendatacommunities.org/id/unitary-authority/wiltshire,18/10/2017,5107122610,2395,AMS Care Wiltshire ,130764,SN4 ,Community Services,Cricklade,Adult Care Nursing Placements- Block Contract,Third Party Payments,REVENUE
Wiltshire,http://opendatacommunities.org/id/unitary-authority/wiltshire,18/10/2017,5107122639,2603,AMS Care Wiltshire ,130764,SN4 ,Community Services,Cricklade,Adult Care Nursing Placements- Block Contract,Third Party Payments,REVENUE
Wiltshire,http://opendatacommunities.org/id/unitary-authority/wiltshire,18/10/2017,5107122821,2603,AMS Care Wiltshire ,130764,SN4 ,Community Services,Cricklade,Adult Care Nursing Placements- Block Contract,Third Party Payments,REVENUE
Wiltshire,http://opendatacommunities.org/id/unitary-authority/wiltshire,18/10/2017,5107122829,2603,AMS Care Wiltshire ,130764,SN4 ,Community Services,Cricklade,Adult Care Nursing Placements- Block Contract,Third Party Payments,REVENUE
Wiltshire,http://opendatacommunities.org/id/unitary-authority/wiltshire,18/10/2017,5107122831,2395,AMS Care Wiltshire ,130764,SN4 ,Community Services,Cricklade,Adult Care Nursing Placements- Block Contract,Third Party Payments,REVENUE
Wiltshire,http://opendatacommunities.org/id/unitary-authority/wiltshire,18/10/2017,5107122871,2395,AMS Care Wiltshire ,130764,SN4 ,Community Services,Cricklade,Adult Care Nursing Placements- Block Contract,Third Party Payments,REVENUE
Wiltshire,http://opendatacommunities.org/id/unitary-authority/wiltshire,18/10/2017,5107123271,2603,AMS Care Wiltshire ,130764,SN4 ,Community Services,Adult Care Gross Loa,Adult Care Loans,Capital charges and Expenditure,REVENUE
Wiltshire,http://opendatacommunities.org/id/unitary-authority/wiltshire,18/10/2017,5107123272,2395,AMS Care Wiltshire ,130764,SN4 ,Community Services,Cricklade,Adult Care Nursing Placements- Block Contract,Third Party Payments,REVENUE
Wiltshire,http://opendatacommunities.org/id/unitary-authority/wiltshire,18/10/2017,5107123384,5390,AMS Care Wiltshire ,130764,SN4 ,Community Services,Adult Care Gross Loa,Adult Care Loans,Capital charges and Expenditure,REVENUE
Wiltshire,http://opendatacommunities.org/id/unitary-authority/wiltshire,18/10/2017,5107123417,2395,AMS Care Wiltshire ,130764,SN4 ,Community Services,Cricklade,Adult Care Nursing Placements- Block Contract,Third Party Payments,REVENUE
Wiltshire,http://opendatacommunities.org/id/unitary-authority/wiltshire,18/10/2017,5107123625,2603,AMS Care Wiltshire ,130764,SN4 ,Community Services,Cricklade,Adult Care Nursing Placements- Block Contract,Third Party Payments,REVENUE
Wiltshire,http://opendatacommunities.org/id/unitary-authority/wiltshire,18/10/2017,5107123774,2603,AMS Care Wiltshire ,130764,SN4 ,Community Services,Cricklade,Adult Care Nursing Placements- Block Contract,Third Party Payments,REVENUE
Wiltshire,http://opendatacommunities.org/id/unitary-authority/wiltshire,18/10/2017,5107123778,2603,AMS Care Wiltshire ,130764,SN4 ,Community Services,Cricklade,Adult Care Nursing Placements- Block Contract,Third Party Payments,REVENUE
Wiltshire,http://opendatacommunities.org/id/unitary-authority/wiltshire,18/10/2017,5107124378,2603,AMS Care Wiltshire ,130764,SN4 ,Community Services,Cricklade,Adult Care Nursing Placements- Block Contract,Third Party Payments,REVENUE
Wiltshire,http://opendatacommunities.org/id/unitary-authority/wiltshire,18/10/2017,5107124590,2395,AMS Care Wiltshire ,130764,SN4 ,Community Services,MH OP N&E Locality,Adult Care Nursing Placements- Block Contract,Third Party Payments,REVENUE
Wiltshire,http://opendatacommunities.org/id/unitary-authority/wiltshire,18/10/2017,5107124603,2603,AMS Care Wiltshire ,130764,SN4 ,Community Services,Cricklade,Adult Care Nursing Placements- Block Contract,Third Party Payments,REVENUE
Wiltshire,http://opendatacommunities.org/id/unitary-authority/wiltshire,18/10/2017,5107124720,2395,AMS Care Wiltshire ,130764,SN4 ,Community Services,Cricklade,Adult Care Nursing Placements- Block Contract,Third Party Payments,REVENUE
Wiltshire,http://opendatacommunities.org/id/unitary-authority/wiltshire,18/10/2017,5107124728,2395,AMS Care Wiltshire ,130764,SN4 ,Community Services,Cricklade,Adult Care Nursing Placements- Block Contract,Third Party Payments,REVENUE
Wiltshire,http://opendatacommunities.org/id/unitary-authority/wiltshire,18/10/2017,5107124731,2395,AMS Care Wiltshire ,130764,SN4 ,Community Services,Cricklade,Adult Care Nursing Placements- Block Contract,Third Party Payments,REVENUE
Wiltshire,http://opendatacommunities.org/id/unitary-authority/wiltshire,18/10/2017,5107124733,2395,AMS Care Wiltshire ,130764,SN4 ,Community Services,MH OP N&E Locality,Adult Care Nursing Placements- Block Contract,Third Party Payments,REVENUE
Wiltshire,http://opendatacommunities.org/id/unitary-authority/wiltshire,18/10/2017,5107124745,2603,AMS Care Wiltshire ,130764,SN4 ,Community Services,Cricklade,Adult Care Nursing Placements- Block Contract,Third Party Payments,REVENUE
Wiltshire,http://opendatacommunities.org/id/unitary-authority/wiltshire,18/10/2017,5107124893,2603,AMS Care Wiltshire ,130764,SN4 ,Community Services,Cricklade,Adult Care Nursing Placements- Block Contract,Third Party Payments,REVENUE
Wiltshire,http://opendatacommunities.org/id/unitary-authority/wiltshire,18/10/2017,5107125720,2395,AMS Care Wiltshire ,130764,SN4 ,Community Services,MH OP N&E Locality,Adult Residential Placements - Spot Purchase,Third Party Payments,REVENUE
Wiltshire,http://opendatacommunities.org/id/unitary-authority/wiltshire,18/10/2017,5107125904,2395,AMS Care Wiltshire ,130764,SN4 ,Community Services,Cricklade,Adult Care Nursing Placements- Block Contract,Third Party Payments,REVENUE
Wiltshire,http://opendatacommunities.org/id/unitary-authority/wiltshire,18/10/2017,5107125906,2395,AMS Care Wiltshire ,130764,SN4 ,Community Services,Malmesbury,Adult Care Nursing Placements- Block Contract,Third Party Payments,REVENUE
Wiltshire,http://opendatacommunities.org/id/unitary-authority/wiltshire,18/10/2017,5107126069,2603,AMS Care Wiltshire ,130764,SN4 ,Community Services,Cricklade,Adult Care Nursing Placements- Block Contract,Third Party Payments,REVENUE
Wiltshire,http://opendatacommunities.org/id/unitary-authority/wiltshire,18/10/2017,5107126235,2395,AMS Care Wiltshire ,130764,SN4 ,Community Services,Cricklade,Adult Care Nursing Placements- Block Contract,Third Party Payments,REVENUE
Wiltshire,http://opendatacommunities.org/id/unitary-authority/wiltshire,18/10/2017,5107126468,2395,AMS Care Wiltshire ,130764,SN4 ,Community Services,Cricklade,Adult Care Nursing Placements- Block Contract,Third Party Payments,REVENUE
Wiltshire,http://opendatacommunities.org/id/unitary-authority/wiltshire,18/10/2017,5107126562,2395,AMS Care Wiltshire ,130764,SN4 ,Community Services,Calne,Adult Care Nursing Placements- Block Contract,Third Party Payments,REVENUE
Wiltshire,http://opendatacommunities.org/id/unitary-authority/wiltshire,18/10/2017,5107126596,2395,AMS Care Wiltshire ,130764,SN4 ,Community Services,Orchard,Adult Care Nursing Placements- Spot Purchase,Third Party Payments,REVENUE
Wiltshire,http://opendatacommunities.org/id/unitary-authority/wiltshire,18/10/2017,5107126600,2395,AMS Care Wiltshire ,130764,SN4 ,Community Services,Cricklade,Adult Care Nursing Placements- Block Contract,Third Party Payments,REVENUE
Wiltshire,http://opendatacommunities.org/id/unitary-authority/wiltshire,18/10/2017,5107126631,2603,AMS Care Wiltshire ,130764,SN4 ,Community Services,Marlborough,Adult Care Nursing Placements- Block Contract,Third Party Payments,REVENUE
Wiltshire,http://opendatacommunities.org/id/unitary-authority/wiltshire,04/10/2017,1902010390,264.08,Amy Holtom ,142715,SN12,Children & Education,Special Guardianship,Disability Fostering Allowance,Third Party Payments,REVENUE
Wiltshire,http://opendatacommunities.org/id/unitary-authority/wiltshire,04/10/2017,1902010391,264.08,Amy Holtom ,142715,SN12,Children & Education,Special Guardianship,Disability Fostering Allowance,Third Party Payments,REVENUE
Wiltshire,http://opendatacommunities.org/id/unitary-authority/wiltshire,18/10/2017,1902016120,264.08,Amy Holtom ,142715,SN12,Children & Education,Special Guardianship,Disability Fostering Allowance,Third Party Payments,REVENUE
Wiltshire,http://opendatacommunities.org/id/unitary-authority/wiltshire,18/10/2017,1902016121,264.08,Amy Holtom ,142715,SN12,Children & Education,Special Guardianship,Disability Fostering Allowance,Third Party Payments,REVENUE
Wiltshire,http://opendatacommunities.org/id/unitary-authority/wiltshire,11/10/2017,1902001881,300,Andrew Tozer ,127642,BA14,Neighbourhood & Planning,Road Safety,Consultants Fees,Supplies and Services,REVENUE
Wiltshire,http://opendatacommunities.org/id/unitary-authority/wiltshire,09/10/2017,1902012592,488.88,Andy Taxis Limited ,100874,SP4 ,Neighbourhood & Planning,Mainstream Primary,Transport Contracts,Third Party Payments,REVENUE
Wiltshire,http://opendatacommunities.org/id/unitary-authority/wiltshire,09/10/2017,1902012592,1711.12,Andy Taxis Limited ,100874,SP4 ,Neighbourhood & Planning,Mainstream Secondary,Transport Contracts,Third Party Payments,REVENUE
Wiltshire,http://opendatacommunities.org/id/unitary-authority/wiltshire,04/10/2017,1902011122,1111.11,Andybus  and  Coach Ltd ,100132,SN16,Neighbourhood & Planning,Mainstream Primary,Transport Contracts,Third Party Payments,REVENUE
Wiltshire,http://opendatacommunities.org/id/unitary-authority/wiltshire,04/10/2017,1902011122,17253.34,Andybus  and  Coach Ltd ,100132,SN16,Neighbourhood & Planning,Mainstream Secondary,Transport Contracts,Third Party Payments,REVENUE
Wiltshire,http://opendatacommunities.org/id/unitary-authority/wiltshire,04/10/2017,1902011123,3006.2,Andybus  and  Coach Ltd ,100132,SN16,Neighbourhood & Planning,Mainstream Secondary,Transport Contracts,Third Party Payments,REVENUE
Wiltshire,http://opendatacommunities.org/id/unitary-authority/wiltshire,04/10/2017,1902011124,2910.41,Andybus  and  Coach Ltd ,100132,SN16,Neighbourhood & Planning,Mainstream Secondary,Transport Contracts,Third Party Payments,REVENUE
Wiltshire,http://opendatacommunities.org/id/unitary-authority/wiltshire,04/10/2017,1902011125,3174.11,Andybus  and  Coach Ltd ,100132,SN16,Neighbourhood & Planning,Mainstream Secondary,Transport Contracts,Third Party Payments,REVENUE
Wiltshire,http://opendatacommunities.org/id/unitary-authority/wiltshire,04/10/2017,1902011127,3214.33,Andybus  and  Coach Ltd ,100132,SN16,Neighbourhood & Planning,Mainstream Secondary,Transport Contracts,Third Party Payments,REVENUE
Wiltshire,http://opendatacommunities.org/id/unitary-authority/wiltshire,18/10/2017,5107125511,2282.48,Angus Council ,135802,DD8 ,Community Services,CTPLD Placements,Adult Residential Placements - Spot Purchase,Third Party Payments,REVENUE
Wiltshire,http://opendatacommunities.org/id/unitary-authority/wiltshire,24/10/2017,1902017928,375,Angus McKinnon ,143798,SN10,Children & Education,Braeside,Grounds Maintenance,Premises Related,REVENUE
Wiltshire,http://opendatacommunities.org/id/unitary-authority/wiltshire,11/10/2017,5107118488,2000,Anita Holford T/A Writing Services ,135962,NP25,Children & Education,Wilt Music Connct Hb,Consultants Fees,Supplies and Services,REVENUE
Wiltshire,http://opendatacommunities.org/id/unitary-authority/wiltshire,18/10/2017,5107125542,1396.6,Ann Adams ,134550,BA13,Community Services,White Horse,Adult Placement,Third Party Payments,REVENUE
Wiltshire,http://opendatacommunities.org/id/unitary-authority/wiltshire,18/10/2017,5107125603,1260.52,Ann Adams ,134550,BA13,Community Services,White Horse,Adult Placement,Third Party Payments,REVENUE
Wiltshire,http://opendatacommunities.org/id/unitary-authority/wiltshire,04/10/2017,1902010389,291.1,Ann Holt ,134979,BA14,Children & Education,Special Guardianship,Disability Fostering Allowance,Third Party Payments,REVENUE
Wiltshire,http://opendatacommunities.org/id/unitary-authority/wiltshire,18/10/2017,1902016119,291.1,Ann Holt ,134979,BA14,Children & Education,Special Guardianship,Disability Fostering Allowance,Third Party Payments,REVENUE
Wiltshire,http://opendatacommunities.org/id/unitary-authority/wiltshire,25/10/2017,1902017393,1112.41,Anthony Rae ,144257,SP4 ,Children & Education,CDT S&W,Other Social & Welfare Costs,Third Party Payments,REVENUE
Wiltshire,http://opendatacommunities.org/id/unitary-authority/wiltshire,11/10/2017,5107113340,303,APA Procurement Training Limited ,143191,SN5 ,Resources,Procurement,Staff Training - General,Employee Related,REVENUE
Wiltshire,http://opendatacommunities.org/id/unitary-authority/wiltshire,27/10/2017,5107128265,404,APA Procurement Training Limited ,143191,SN5 ,Resources,Centralised Training,Staff Training - General,Employee Related,REVENUE
Wiltshire,http://opendatacommunities.org/id/unitary-authority/wiltshire,27/10/2017,5107128886,260,Apea ,113559,CB11,Resources,Centralised Training,Staff Training - General,Employee Related,REVENUE
Wiltshire,http://opendatacommunities.org/id/unitary-authority/wiltshire,17/10/2017,5107124089,578.33,Apple Store Southgate ,135118,BA1 ,Children & Education,SEND Central Equipme,Client Aids and Adaptations,Third Party Payments,REVENUE
Wiltshire,http://opendatacommunities.org/id/unitary-authority/wiltshire,23/10/2017,1902017431,1646.7,AquaDam Europe Ltd ,145660,SN5 ,Neighbourhood & Planning,ESIF SME Initiative,Consultants Fees,Supplies and Services,REVENUE
Wiltshire,http://opendatacommunities.org/id/unitary-authority/wiltshire,05/10/2017,5107119618,720,Aquaterra Leisure Services Ltd ,145160,W1G ,Children & Education,YOS - Strat Man,Premises Rental / Hire Charges,Premises Related,REVENUE
Wiltshire,http://opendatacommunities.org/id/unitary-authority/wiltshire,17/10/2017,5107124144,993.78,Aquaterra Leisure Services Ltd ,145160,W1G ,Children & Education,YOS - Strat Man,Premises Rental / Hire Charges,Premises Related,REVENUE
Wiltshire,http://opendatacommunities.org/id/unitary-authority/wiltshire,18/10/2017,5107122723,3600,Arbory Residential Home ,113587,SP11,Community Services,MH OP South Locality,Adult Residential Placements - Spot Purchase,Third Party Payments,REVENUE
Wiltshire,http://opendatacommunities.org/id/unitary-authority/wiltshire,18/10/2017,5107123651,2626,Arbory Residential Home ,113587,SP11,Community Services,MH OP N&E Locality,Adult Residential Placements - Spot Purchase,Third Party Payments,REVENUE
Wiltshire,http://opendatacommunities.org/id/unitary-authority/wiltshire,18/10/2017,5107124825,3472.08,Arbory Residential Home ,113587,SP11,Community Services,MH AOWA South Locali,Adult Residential Placements - Spot Purchase,Third Party Payments,REVENUE
Wiltshire,http://opendatacommunities.org/id/unitary-authority/wiltshire,18/10/2017,5107122172,1610,Arch Care Services Ltd ,110169,BS21,Community Services,MH AOWA West Localit,Supported Living - Without SP payments,Third Party Payments,REVENUE
Wiltshire,http://opendatacommunities.org/id/unitary-authority/wiltshire,19/10/2017,5107119383,356.4,Arco Limited ,130295,HU1 ,Neighbourhood & Planning,DLO,Equipment Purchase,Supplies and Services,REVENUE
Wiltshire,http://opendatacommunities.org/id/unitary-authority/wiltshire,05/10/2017,1902012333,268.46,Argos Business Solutions ,113600,MK9 ,Children & Education,CIC Team South,Grants Paid to individuals for Tangible Benefits,Supplies and Services,REVENUE
Wiltshire,http://opendatacommunities.org/id/unitary-authority/wiltshire,18/10/2017,1902016695,866.59,Argos Business Solutions ,113600,MK9 ,Children & Education,CIC Team South,Grants Paid to individuals for Tangible Benefits,Supplies and Services,REVENUE
Wiltshire,http://opendatacommunities.org/id/unitary-authority/wiltshire,17/10/2017,5107124078,329.11,Argos Business Solutions ,113600,MK9 ,Children & Education,CiC Team North,Grants Paid to individuals for Tangible Benefits,Supplies and Services,REVENUE
Wiltshire,http://opendatacommunities.org/id/unitary-authority/wiltshire,26/10/2017,5107128697,326.59,Argos Business Solutions ,113600,MK9 ,Health & Wellbeing,FoodSafetyN&W,Hardware Purchases IT,Supplies and Services,REVENUE
Wiltshire,http://opendatacommunities.org/id/unitary-authority/wiltshire,18/10/2017,5107123294,2859.36,Arliemoor Care Homes ,110174,EX22,Community Services,MH AOWA South Locali,Adult Residential Placements - Spot Purchase,Third Party Payments,REVENUE
Wiltshire,http://opendatacommunities.org/id/unitary-authority/wiltshire,18/10/2017,5107125937,280,Arliemoor Care Homes ,110174,EX22,Community Services,Adult Care Gross Loa,Adult Care Loans,Capital charges and Expenditure,REVENUE
Wiltshire,http://opendatacommunities.org/id/unitary-authority/wiltshire,18/10/2017,5107125952,2272,Arliemoor Care Homes ,110174,EX22,Community Services,MH AOWA West Localit,Adult Residential Placements - Spot Purchase,Third Party Payments,REVENUE
Wiltshire,http://opendatacommunities.org/id/unitary-authority/wiltshire,18/10/2017,5107125953,2175,Arliemoor Care Homes ,110174,EX22,Community Services,MH AOWA West Localit,Adult Domiciliary Care - Spot,Third Party Payments,REVENUE
Wiltshire,http://opendatacommunities.org/id/unitary-authority/wiltshire,18/10/2017,5107126091,2810.36,Arliemoor Care Homes ,110174,EX22,Community Services,MH AOWA South Locali,Adult Residential Placements - Spot Purchase,Third Party Payments,REVENUE
Wiltshire,http://opendatacommunities.org/id/unitary-authority/wiltshire,27/10/2017,5107128411,1200,Arthur Williams Consulting Ltd ,129581,BA14,Wiltshire Council,Wiltshire Council,Consultants Fees,Supplies and Services,CAPITAL
Wiltshire,http://opendatacommunities.org/id/unitary-authority/wiltshire,27/10/2017,5107128412,850,Arthur Williams Consulting Ltd ,129581,BA14,Wiltshire Council,Wiltshire Council,Consultants Fees,Supplies and Services,CAPITAL
Wiltshire,http://opendatacommunities.org/id/unitary-authority/wiltshire,30/10/2017,5107130485,1200,Arthur Williams Consulting Ltd ,129581,BA14,Wiltshire Council,Wiltshire Council,Consultants Fees,Supplies and Services,CAPITAL
Wiltshire,http://opendatacommunities.org/id/unitary-authority/wiltshire,10/10/2017,5107121521,294,Ash Care Services ,140706,SP2 ,Community Services,Salisbury,Adult Domiciliary Care - Spot,Third Party Payments,REVENUE
Wiltshire,http://opendatacommunities.org/id/unitary-authority/wiltshire,10/10/2017,5107121562,294,Ash Care Services ,140706,SP2 ,Community Services,Orchard,Adult Domiciliary Care - Spot,Third Party Payments,REVENUE
Wiltshire,http://opendatacommunities.org/id/unitary-authority/wiltshire,18/10/2017,5107124885,2347.8,Ashbourne Court Care Home ,133906,SP10,Community Services,Avon,Adult Care Nursing Placements- Spot Purchase,Third Party Payments,REVENUE
Wiltshire,http://opendatacommunities.org/id/unitary-authority/wiltshire,18/10/2017,5107125507,2745.12,Ashbourne Court Care Home ,133906,SP10,Community Services,Avon,Adult Care Nursing Placements- Spot Purchase,Third Party Payments,REVENUE
Wiltshire,http://opendatacommunities.org/id/unitary-authority/wiltshire,18/10/2017,5107124489,3896.88,Ashness Care ,143773,N15 ,Community Services,MH AOWA N&E Locality,Adult Residential Placements - Spot Purchase,Third Party Payments,REVENUE
Wiltshire,http://opendatacommunities.org/id/unitary-authority/wiltshire,18/10/2017,5107124718,1841.76,Ashton Manor Nursing Home ,139060,GU10,Community Services,Salisbury,Adult Care Nursing Placements- Spot Purchase,Third Party Payments,REVENUE
Wiltshire,http://opendatacommunities.org/id/unitary-authority/wiltshire,09/10/2017,5107119875,4107.25,Aspirations Care Ltd ,137205,L20 ,Community Services,Chippenham,Supported Living - Without SP payments,Third Party Payments,REVENUE
Wiltshire,http://opendatacommunities.org/id/unitary-authority/wiltshire,16/10/2017,5107123992,3162,Aspirations Care Ltd ,137205,L20 ,Community Services,Chippenham,Supported Living - Without SP payments,Third Party Payments,REVENUE
Wiltshire,http://opendatacommunities.org/id/unitary-authority/wiltshire,16/10/2017,5107124014,4576,Aspirations Care Ltd ,137205,L20 ,Community Services,White Horse,Supported Living - Without SP payments,Third Party Payments,REVENUE
Wiltshire,http://opendatacommunities.org/id/unitary-authority/wiltshire,17/10/2017,5107124075,4576,Aspirations Care Ltd ,137205,L20 ,Community Services,White Horse,Supported Living - Without SP payments,Third Party Payments,REVENUE
Wiltshire,http://opendatacommunities.org/id/unitary-authority/wiltshire,18/10/2017,5107125259,3573.61,Aspirations Care Ltd ,137205,L20 ,Community Services,MH AOWA N&E Locality,Supported Living - Without SP payments,Third Party Payments,REVENUE
Wiltshire,http://opendatacommunities.org/id/unitary-authority/wiltshire,18/10/2017,5107125407,1478.61,Aspirations Care Ltd ,137205,L20 ,Community Services,White Horse,Supported Living - Without SP payments,Third Party Payments,REVENUE
Wiltshire,http://opendatacommunities.org/id/unitary-authority/wiltshire,13/10/2017,1902014255,633.34,Aspire Taxis ,101274,SP2 ,Neighbourhood & Planning,SEN Primary,Transport Contracts,Third Party Payments,REVENUE
Wiltshire,http://opendatacommunities.org/id/unitary-authority/wiltshire,13/10/2017,1902014255,1266.66,Aspire Taxis ,101274,SP2 ,Neighbourhood & Planning,Mainstream Primary,Transport Contracts,Third Party Payments,REVENUE
Wiltshire,http://opendatacommunities.org/id/unitary-authority/wiltshire,13/10/2017,1902014262,330,Aspire Taxis ,101274,SP2 ,Neighbourhood & Planning,Mainstream Primary,Transport Contracts,Third Party Payments,REVENUE
Wiltshire,http://opendatacommunities.org/id/unitary-authority/wiltshire,13/10/2017,1902014262,990,Aspire Taxis ,101274,SP2 ,Neighbourhood & Planning,Mainstream Secondary,Transport Contracts,Third Party Payments,REVENUE
Wiltshire,http://opendatacommunities.org/id/unitary-authority/wiltshire,13/10/2017,1902014263,1920,Aspire Taxis ,101274,SP2 ,Neighbourhood & Planning,SEN 16+ Secondary,Transport Contracts,Third Party Payments,REVENUE
Wiltshire,http://opendatacommunities.org/id/unitary-authority/wiltshire,13/10/2017,1902014264,1520,Aspire Taxis ,101274,SP2 ,Neighbourhood & Planning,SEN 16+ Secondary,Transport Contracts,Third Party Payments,REVENUE
Wiltshire,http://opendatacommunities.org/id/unitary-authority/wiltshire,13/10/2017,1902014266,940,Aspire Taxis ,101274,SP2 ,Neighbourhood & Planning,Mainstream Secondary,Transport Contracts,Third Party Payments,REVENUE
Wiltshire,http://opendatacommunities.org/id/unitary-authority/wiltshire,13/10/2017,1902014268,312,Aspire Taxis ,101274,SP2 ,Community Services,CTPLD Placements,Transport Contracts,Third Party Payments,REVENUE
Wiltshire,http://opendatacommunities.org/id/unitary-authority/wiltshire,13/10/2017,1902014269,1155,Aspire Taxis ,101274,SP2 ,Community Services,CTPLD Placements,Transport Contracts,Third Party Payments,REVENUE
Wiltshire,http://opendatacommunities.org/id/unitary-authority/wiltshire,13/10/2017,1902014270,665,Aspire Taxis ,101274,SP2 ,Neighbourhood & Planning,Mainstream Primary,Transport Contracts,Third Party Payments,REVENUE
Wiltshire,http://opendatacommunities.org/id/unitary-authority/wiltshire,13/10/2017,1902014271,1026,Aspire Taxis ,101274,SP2 ,Neighbourhood & Planning,Mainstream Primary,Transport Contracts,Third Party Payments,REVENUE
Wiltshire,http://opendatacommunities.org/id/unitary-authority/wiltshire,13/10/2017,1902014272,931,Aspire Taxis ,101274,SP2 ,Neighbourhood & Planning,Mainstream Primary,Transport Contracts,Third Party Payments,REVENUE
Wiltshire,http://opendatacommunities.org/id/unitary-authority/wiltshire,13/10/2017,1902014273,1615,Aspire Taxis ,101274,SP2 ,Neighbourhood & Planning,SEN Primary,Transport Contracts,Third Party Payments,REVENUE
Wiltshire,http://opendatacommunities.org/id/unitary-authority/wiltshire,13/10/2017,1902014274,1520,Aspire Taxis ,101274,SP2 ,Neighbourhood & Planning,Mainstream Primary,Transport Contracts,Third Party Payments,REVENUE
Wiltshire,http://opendatacommunities.org/id/unitary-authority/wiltshire,13/10/2017,1902014275,1080,Aspire Taxis ,101274,SP2 ,Neighbourhood & Planning,Mainstream Secondary,Transport Contracts,Third Party Payments,REVENUE
Wiltshire,http://opendatacommunities.org/id/unitary-authority/wiltshire,13/10/2017,1902014276,1190,Aspire Taxis ,101274,SP2 ,Community Services,CTPLD Placements,Transport Contracts,Third Party Payments,REVENUE
Wiltshire,http://opendatacommunities.org/id/unitary-authority/wiltshire,13/10/2017,1902014277,1400,Aspire Taxis ,101274,SP2 ,Neighbourhood & Planning,Mainstream Primary,Transport Contracts,Third Party Payments,REVENUE
Wiltshire,http://opendatacommunities.org/id/unitary-authority/wiltshire,13/10/2017,1902014279,1615,Aspire Taxis ,101274,SP2 ,Neighbourhood & Planning,Mainstream Secondary,Transport Contracts,Third Party Payments,REVENUE
Wiltshire,http://opendatacommunities.org/id/unitary-authority/wiltshire,13/10/2017,1902014280,720,Aspire Taxis ,101274,SP2 ,Neighbourhood & Planning,Mainstream Primary,Transport Contracts,Third Party Payments,REVENUE
Wiltshire,http://opendatacommunities.org/id/unitary-authority/wiltshire,13/10/2017,1902014282,1200,Aspire Taxis ,101274,SP2 ,Neighbourhood & Planning,SEN 16+ Secondary,Transport Contracts,Third Party Payments,REVENUE
Wiltshire,http://opendatacommunities.org/id/unitary-authority/wiltshire,06/10/2017,5107116444,17207.54,Assoc Of Electoral Administrators ,113675,SR2 ,Resources,Parliamentary Electi,Consultants Fees,Supplies and Services,REVENUE
Wiltshire,http://opendatacommunities.org/id/unitary-authority/wiltshire,23/10/2017,5107118622,639,Assoc Of Electoral Administrators ,113675,SR2 ,Resources,HR Recruitment & DBS,Job Advertising,Employee Related,REVENUE
Wiltshire,http://opendatacommunities.org/id/unitary-authority/wiltshire,12/10/2017,5107121951,265,Association of County Chief Executi FAO Peter Bungard,125904,GL1 ,Resources,Corporate Directors,Professional Subscriptions/Memberships,Employee Related,REVENUE
Wiltshire,http://opendatacommunities.org/id/unitary-authority/wiltshire,09/10/2017,1901999533,500,Aster ,135687,SN10,Wiltshire Council,Wiltshire Council,Other Professional Fees,Supplies and Services,CAPITAL
Wiltshire,http://opendatacommunities.org/id/unitary-authority/wiltshire,09/10/2017,1901999538,500,Aster ,135687,SN10,Wiltshire Council,Wiltshire Council,Other Professional Fees,Supplies and Services,CAPITAL
Wiltshire,http://opendatacommunities.org/id/unitary-authority/wiltshire,09/10/2017,1901999900,440,Aster ,135687,SN10,Wiltshire Council,Wiltshire Council,Other Professional Fees,Supplies and Services,CAPITAL
Wiltshire,http://opendatacommunities.org/id/unitary-authority/wiltshire,09/10/2017,1902000830,650,Aster ,135687,SN10,Wiltshire Council,Wiltshire Council,Other Professional Fees,Supplies and Services,CAPITAL
Wiltshire,http://opendatacommunities.org/id/unitary-authority/wiltshire,09/10/2017,1902000835,500,Aster ,135687,SN10,Wiltshire Council,Wiltshire Council,Other Professional Fees,Supplies and Services,CAPITAL
Wiltshire,http://opendatacommunities.org/id/unitary-authority/wiltshire,09/10/2017,1902000952,3000,Aster ,135687,SN10,Wiltshire Council,Wiltshire Council,Other Professional Fees,Supplies and Services,CAPITAL
Wiltshire,http://opendatacommunities.org/id/unitary-authority/wiltshire,12/10/2017,1902002101,1032,Aster ,135687,SN10,Wiltshire Council,Wiltshire Council,Other Professional Fees,Supplies and Services,CAPITAL
Wiltshire,http://opendatacommunities.org/id/unitary-authority/wiltshire,12/10/2017,1902002162,342.2,Aster ,135687,SN10,Wiltshire Council,Wiltshire Council,Other Professional Fees,Supplies and Services,CAPITAL
Wiltshire,http://opendatacommunities.org/id/unitary-authority/wiltshire,20/10/2017,1902009409,1187,Aster ,135687,SN10,Wiltshire Council,Wiltshire Council,Other Professional Fees,Supplies and Services,CAPITAL
Wiltshire,http://opendatacommunities.org/id/unitary-authority/wiltshire,20/10/2017,1902010556,500,Aster ,135687,SN10,Wiltshire Council,Wiltshire Council,Other Professional Fees,Supplies and Services,CAPITAL
Wiltshire,http://opendatacommunities.org/id/unitary-authority/wiltshire,20/10/2017,1902010566,838,Aster ,135687,SN10,Wiltshire Council,Wiltshire Council,Other Professional Fees,Supplies and Services,CAPITAL
Wiltshire,http://opendatacommunities.org/id/unitary-authority/wiltshire,20/10/2017,1902010592,500,Aster ,135687,SN10,Wiltshire Council,Wiltshire Council,Other Professional Fees,Supplies and Services,CAPITAL
Wiltshire,http://opendatacommunities.org/id/unitary-authority/wiltshire,26/10/2017,5107120134,1380.55,ATECH COACHBUILDERS LTD ,110196,BA13,Neighbourhood & Planning,Connect 2 Wiltshire,Vehicle 3rd Party Repairs,Transport Related,REVENUE
Wiltshire,http://opendatacommunities.org/id/unitary-authority/wiltshire,05/10/2017,1902011390,265.47,Atkins Ltd ,110197,KT18,Wiltshire Council,Wiltshire Council,Highways Term - Consultant,Third Party Payments,CAPITAL
Wiltshire,http://opendatacommunities.org/id/unitary-authority/wiltshire,05/10/2017,1902011390,284.28,Atkins Ltd ,110197,KT18,Wiltshire Council,Wiltshire Council,Highways Term - Consultant,Third Party Payments,CAPITAL
Wiltshire,http://opendatacommunities.org/id/unitary-authority/wiltshire,05/10/2017,1902011390,374.2,Atkins Ltd ,110197,KT18,Wiltshire Council,Wiltshire Council,Highways Term - Consultant,Third Party Payments,CAPITAL
Wiltshire,http://opendatacommunities.org/id/unitary-authority/wiltshire,05/10/2017,1902011390,416.72,Atkins Ltd ,110197,KT18,Wiltshire Council,Wiltshire Council,Highways Term - Consultant,Third Party Payments,CAPITAL
Wiltshire,http://opendatacommunities.org/id/unitary-authority/wiltshire,05/10/2017,1902011390,480.05,Atkins Ltd ,110197,KT18,Wiltshire Council,Wiltshire Council,Highways Term - Consultant,Third Party Payments,CAPITAL
Wiltshire,http://opendatacommunities.org/id/unitary-authority/wiltshire,05/10/2017,1902011390,556.48,Atkins Ltd ,110197,KT18,Wiltshire Council,Wiltshire Council,Highways Term - Consultant,Third Party Payments,CAPITAL
Wiltshire,http://opendatacommunities.org/id/unitary-authority/wiltshire,05/10/2017,1902011390,627.39,Atkins Ltd ,110197,KT18,Wiltshire Council,Wiltshire Council,Highways Term - Consultant,Third Party Payments,CAPITAL
Wiltshire,http://opendatacommunities.org/id/unitary-authority/wiltshire,05/10/2017,1902011390,628.15,Atkins Ltd ,110197,KT18,Wiltshire Council,Wiltshire Council,Highways Term - Consultant,Third Party Payments,CAPITAL
Wiltshire,http://opendatacommunities.org/id/unitary-authority/wiltshire,05/10/2017,1902011390,634.13,Atkins Ltd ,110197,KT18,Wiltshire Council,Wiltshire Council,Highways Term - Consultant,Third Party Payments,CAPITAL
Wiltshire,http://opendatacommunities.org/id/unitary-authority/wiltshire,05/10/2017,1902011390,785.01,Atkins Ltd ,110197,KT18,Wiltshire Council,Wiltshire Council,Highways Term - Consultant,Third Party Payments,CAPITAL
Wiltshire,http://opendatacommunities.org/id/unitary-authority/wiltshire,05/10/2017,1902011390,1035.93,Atkins Ltd ,110197,KT18,Wiltshire Council,Wiltshire Council,Highways Term - Consultant,Third Party Payments,CAPITAL
Wiltshire,http://opendatacommunities.org/id/unitary-authority/wiltshire,05/10/2017,1902011390,1043.1,Atkins Ltd ,110197,KT18,Wiltshire Council,Wiltshire Council,Highways Term - Consultant,Third Party Payments,CAPITAL
Wiltshire,http://opendatacommunities.org/id/unitary-authority/wiltshire,05/10/2017,1902011390,1642.72,Atkins Ltd ,110197,KT18,Wiltshire Council,Wiltshire Council,Highways Term - Consultant,Third Party Payments,CAPITAL
Wiltshire,http://opendatacommunities.org/id/unitary-authority/wiltshire,05/10/2017,1902011390,1713.28,Atkins Ltd ,110197,KT18,Wiltshire Council,Wiltshire Council,Highways Term - Consultant,Third Party Payments,CAPITAL
Wiltshire,http://opendatacommunities.org/id/unitary-authority/wiltshire,05/10/2017,1902011390,1737.75,Atkins Ltd ,110197,KT18,Wiltshire Council,Wiltshire Council,Highways Term - Consultant,Third Party Payments,CAPITAL
Wiltshire,http://opendatacommunities.org/id/unitary-authority/wiltshire,05/10/2017,1902011390,2128.38,Atkins Ltd ,110197,KT18,Wiltshire Council,Wiltshire Council,Highways Term - Consultant,Third Party Payments,CAPITAL
Wiltshire,http://opendatacommunities.org/id/unitary-authority/wiltshire,05/10/2017,1902011390,2673.6,Atkins Ltd ,110197,KT18,Wiltshire Council,Wiltshire Council,Highways Term - Consultant,Third Party Payments,CAPITAL
Wiltshire,http://opendatacommunities.org/id/unitary-authority/wiltshire,05/10/2017,1902011390,3153.57,Atkins Ltd ,110197,KT18,Wiltshire Council,Wiltshire Council,Highways Term - Consultant,Third Party Payments,CAPITAL
Wiltshire,http://opendatacommunities.org/id/unitary-authority/wiltshire,05/10/2017,1902011390,3955.38,Atkins Ltd ,110197,KT18,Wiltshire Council,Wiltshire Council,Highways Term - Consultant,Third Party Payments,CAPITAL
Wiltshire,http://opendatacommunities.org/id/unitary-authority/wiltshire,05/10/2017,1902011390,4500,Atkins Ltd ,110197,KT18,Wiltshire Council,Wiltshire Council,Highways Term - Consultant,Third Party Payments,CAPITAL
Wiltshire,http://opendatacommunities.org/id/unitary-authority/wiltshire,05/10/2017,1902011390,5089.02,Atkins Ltd ,110197,KT18,Wiltshire Council,Wiltshire Council,Highways Term - Consultant,Third Party Payments,CAPITAL
Wiltshire,http://opendatacommunities.org/id/unitary-authority/wiltshire,05/10/2017,1902011390,5504.06,Atkins Ltd ,110197,KT18,Wiltshire Council,Wiltshire Council,Highways Term - Consultant,Third Party Payments,CAPITAL
Wiltshire,http://opendatacommunities.org/id/unitary-authority/wiltshire,05/10/2017,1902011390,5667.85,Atkins Ltd ,110197,KT18,Wiltshire Council,Wiltshire Council,Highways Term - Consultant,Third Party Payments,CAPITAL
Wiltshire,http://opendatacommunities.org/id/unitary-authority/wiltshire,05/10/2017,1902011390,6934.83,Atkins Ltd ,110197,KT18,Neighbourhood & Planning,Network Manager Team,Highways Term - Consultant,Third Party Payments,REVENUE
Wiltshire,http://opendatacommunities.org/id/unitary-authority/wiltshire,05/10/2017,1902011390,8049.56,Atkins Ltd ,110197,KT18,Neighbourhood & Planning,Traffic Signal Mtc,Highways Term - Consultant,Third Party Payments,REVENUE
Wiltshire,http://opendatacommunities.org/id/unitary-authority/wiltshire,05/10/2017,1902011390,8833.89,Atkins Ltd ,110197,KT18,Wiltshire Council,Wiltshire Council,Highways Term - Consultant,Third Party Payments,CAPITAL
Wiltshire,http://opendatacommunities.org/id/unitary-authority/wiltshire,05/10/2017,1902011390,10093.44,Atkins Ltd ,110197,KT18,Neighbourhood & Planning,Highw Hedges & Trees,Highways Term - Consultant,Third Party Payments,REVENUE
Wiltshire,http://opendatacommunities.org/id/unitary-authority/wiltshire,05/10/2017,1902011390,11955.41,Atkins Ltd ,110197,KT18,Neighbourhood & Planning,Bridge Routine Mtc,Highways Term - Consultant,Third Party Payments,REVENUE
Wiltshire,http://opendatacommunities.org/id/unitary-authority/wiltshire,05/10/2017,1902011390,16855.38,Atkins Ltd ,110197,KT18,Community Services,One Public Estate,Highways Term - Consultant,Third Party Payments,REVENUE
Wiltshire,http://opendatacommunities.org/id/unitary-authority/wiltshire,05/10/2017,1902011390,21501.54,Atkins Ltd ,110197,KT18,Wiltshire Council,Wiltshire Council,Highways Term - Consultant,Third Party Payments,CAPITAL
Wiltshire,http://opendatacommunities.org/id/unitary-authority/wiltshire,05/10/2017,1902011390,23272.81,Atkins Ltd ,110197,KT18,Wiltshire Council,Wiltshire Council,Highways Term - Consultant,Third Party Payments,CAPITAL
Wiltshire,http://opendatacommunities.org/id/unitary-authority/wiltshire,05/10/2017,1902011390,31959,Atkins Ltd ,110197,KT18,Wiltshire Council,Wiltshire Council,Highways Term - Consultant,Third Party Payments,CAPITAL
Wiltshire,http://opendatacommunities.org/id/unitary-authority/wiltshire,05/10/2017,1902011390,33519.13,Atkins Ltd ,110197,KT18,Neighbourhood & Planning,Street Lighting,Highways Term - Consultant,Third Party Payments,REVENUE
Wiltshire,http://opendatacommunities.org/id/unitary-authority/wiltshire,05/10/2017,1902011390,44810.4,Atkins Ltd ,110197,KT18,Wiltshire Council,Wiltshire Council,Highways Term - Consultant,Third Party Payments,CAPITAL
Wiltshire,http://opendatacommunities.org/id/unitary-authority/wiltshire,05/10/2017,1902011390,67198.51,Atkins Ltd ,110197,KT18,Neighbourhood & Planning,Transport Plan & DC,Highways Term - Consultant,Third Party Payments,REVENUE
Wiltshire,http://opendatacommunities.org/id/unitary-authority/wiltshire,05/10/2017,1902011390,90463.87,Atkins Ltd ,110197,KT18,Wiltshire Council,Wiltshire Council,Highways Term - Consultant,Third Party Payments,CAPITAL
Wiltshire,http://opendatacommunities.org/id/unitary-authority/wiltshire,25/10/2017,5107122284,17337.06,Ats Euromaster Ltd ,113709,B6 5,Neighbourhood & Planning,Fleet,Vehicle Parts,Transport Related,REVENUE
Wiltshire,http://opendatacommunities.org/id/unitary-authority/wiltshire,20/10/2017,1902016405,315.6,Audley Care White Horse ,121958,SN8 ,Community Services,HTLAH - Neighbourhoo,Interim Support Plan - HTLAH,Third Party Payments,REVENUE
Wiltshire,http://opendatacommunities.org/id/unitary-authority/wiltshire,20/10/2017,1902016408,1011.1,Audley Care White Horse ,121958,SN8 ,Community Services,HTLAH - Neighbourhoo,Interim Support Plan - HTLAH,Third Party Payments,REVENUE
Wiltshire,http://opendatacommunities.org/id/unitary-authority/wiltshire,20/10/2017,1902016410,504.8,Audley Care White Horse ,121958,SN8 ,Community Services,HTLAH - Neighbourhoo,Interim Support Plan - HTLAH,Third Party Payments,REVENUE
Wiltshire,http://opendatacommunities.org/id/unitary-authority/wiltshire,20/10/2017,1902016411,502.9,Audley Care White Horse ,121958,SN8 ,Community Services,HTLAH - Neighbourhoo,Interim Support Plan - HTLAH,Third Party Payments,REVENUE
Wiltshire,http://opendatacommunities.org/id/unitary-authority/wiltshire,04/10/2017,5107119396,333.06,Audley Care White Horse ,121958,SN8 ,Community Services,Malmesbury,Adult Domiciliary Care - Spot Contribution,Income,REVENUE
Wiltshire,http://opendatacommunities.org/id/unitary-authority/wiltshire,11/10/2017,5107121653,315.6,Audley Care White Horse ,121958,SN8 ,Community Services,Orchard,Adult Domiciliary Care - Spot,Third Party Payments,REVENUE
Wiltshire,http://opendatacommunities.org/id/unitary-authority/wiltshire,17/10/2017,5107124276,321.64,Audley Care White Horse ,121958,SN8 ,Community Services,Marlborough,Adult Domiciliary Care - Spot Contribution,Income,REVENUE
Wiltshire,http://opendatacommunities.org/id/unitary-authority/wiltshire,17/10/2017,5107124277,631.2,Audley Care White Horse ,121958,SN8 ,Community Services,Marlborough,Adult Domiciliary Care - Spot,Third Party Payments,REVENUE
Wiltshire,http://opendatacommunities.org/id/unitary-authority/wiltshire,17/10/2017,5107124278,3044.8,Audley Care White Horse ,121958,SN8 ,Community Services,Marlborough,Adult Domiciliary Care - Spot,Third Party Payments,REVENUE
Wiltshire,http://opendatacommunities.org/id/unitary-authority/wiltshire,17/10/2017,5107124279,2490.76,Audley Care White Horse ,121958,SN8 ,Community Services,Cricklade,Adult Domiciliary Care - Spot Contribution,Income,REVENUE
Wiltshire,http://opendatacommunities.org/id/unitary-authority/wiltshire,17/10/2017,5107124290,753.06,Audley Care White Horse ,121958,SN8 ,Community Services,Marlborough,Adult Domiciliary Care - Spot,Third Party Payments,REVENUE
Wiltshire,http://opendatacommunities.org/id/unitary-authority/wiltshire,17/10/2017,5107124291,409.56,Audley Care White Horse ,121958,SN8 ,Community Services,Malmesbury,Adult Domiciliary Care - Spot,Third Party Payments,REVENUE
Wiltshire,http://opendatacommunities.org/id/unitary-authority/wiltshire,17/10/2017,5107124294,918.84,Audley Care White Horse ,121958,SN8 ,Community Services,Marlborough,Adult Domiciliary Care - Spot Contribution,Income,REVENUE
Wiltshire,http://opendatacommunities.org/id/unitary-authority/wiltshire,17/10/2017,5107124295,1149.74,Audley Care White Horse ,121958,SN8 ,Community Services,Marlborough,Adult Domiciliary Care - Spot Contribution,Income,REVENUE
Wiltshire,http://opendatacommunities.org/id/unitary-authority/wiltshire,17/10/2017,5107124296,666.04,Audley Care White Horse ,121958,SN8 ,Community Services,Cricklade,Adult Domiciliary Care - Spot Contribution,Income,REVENUE
Wiltshire,http://opendatacommunities.org/id/unitary-authority/wiltshire,17/10/2017,5107124298,1934.47,Audley Care White Horse ,121958,SN8 ,Community Services,Southbroom,Adult Domiciliary Care - Spot,Third Party Payments,REVENUE
Wiltshire,http://opendatacommunities.org/id/unitary-authority/wiltshire,17/10/2017,5107124299,2810.38,Audley Care White Horse ,121958,SN8 ,Community Services,Malmesbury,Adult Domiciliary Care - Spot Contribution,Income,REVENUE
Wiltshire,http://opendatacommunities.org/id/unitary-authority/wiltshire,17/10/2017,5107124301,1264.02,Audley Care White Horse ,121958,SN8 ,Community Services,Orchard,Adult Domiciliary Care - Spot Contribution,Income,REVENUE
Wiltshire,http://opendatacommunities.org/id/unitary-authority/wiltshire,17/10/2017,5107124302,1266.72,Audley Care White Horse ,121958,SN8 ,Community Services,Orchard,Adult Domiciliary Care - Spot Contribution,Income,REVENUE
Wiltshire,http://opendatacommunities.org/id/unitary-authority/wiltshire,17/10/2017,5107124304,727.4,Audley Care White Horse ,121958,SN8 ,Community Services,Cricklade,Adult Domiciliary Care - Spot,Third Party Payments,REVENUE
Wiltshire,http://opendatacommunities.org/id/unitary-authority/wiltshire,17/10/2017,5107124306,1650.21,Audley Care White Horse ,121958,SN8 ,Community Services,Marlborough,Adult Domiciliary Care - Spot Contribution,Income,REVENUE
Wiltshire,http://opendatacommunities.org/id/unitary-authority/wiltshire,17/10/2017,5107124307,2623.88,Audley Care White Horse ,121958,SN8 ,Community Services,Cricklade,Adult Domiciliary Care - Spot Contribution,Income,REVENUE
Wiltshire,http://opendatacommunities.org/id/unitary-authority/wiltshire,17/10/2017,5107124308,3047.49,Audley Care White Horse ,121958,SN8 ,Community Services,Marlborough,Adult Domiciliary Care - Spot Contribution,Income,REVENUE
Wiltshire,http://opendatacommunities.org/id/unitary-authority/wiltshire,17/10/2017,5107124329,3300.42,Audley Care White Horse ,121958,SN8 ,Community Services,Marlborough,Adult Domiciliary Care - Spot Contribution,Income,REVENUE
Wiltshire,http://opendatacommunities.org/id/unitary-authority/wiltshire,18/10/2017,5107125335,1481.3,Audley Care White Horse ,121958,SN8 ,Community Services,Marlborough,Adult Domiciliary Care - Spot,Third Party Payments,REVENUE
Wiltshire,http://opendatacommunities.org/id/unitary-authority/wiltshire,18/10/2017,5107125337,270.66,Audley Care White Horse ,121958,SN8 ,Community Services,Malmesbury,Adult Domiciliary Care - Spot Contribution,Income,REVENUE
Wiltshire,http://opendatacommunities.org/id/unitary-authority/wiltshire,18/10/2017,5107125338,517.46,Audley Care White Horse ,121958,SN8 ,Community Services,Malmesbury,Adult Domiciliary Care - Spot Contribution,Income,REVENUE
Wiltshire,http://opendatacommunities.org/id/unitary-authority/wiltshire,18/10/2017,5107125339,916.14,Audley Care White Horse ,121958,SN8 ,Community Services,Marlborough,Adult Domiciliary Care - Spot Contribution,Income,REVENUE
Wiltshire,http://opendatacommunities.org/id/unitary-authority/wiltshire,18/10/2017,5107125340,1388.3,Audley Care White Horse ,121958,SN8 ,Community Services,Marlborough,Adult Domiciliary Care - Spot,Third Party Payments,REVENUE
Wiltshire,http://opendatacommunities.org/id/unitary-authority/wiltshire,18/10/2017,5107125342,2110.72,Audley Care White Horse ,121958,SN8 ,Community Services,Marlborough,Adult Domiciliary Care - Spot,Third Party Payments,REVENUE
Wiltshire,http://opendatacommunities.org/id/unitary-authority/wiltshire,18/10/2017,5107125347,2139.99,Audley Care White Horse ,121958,SN8 ,Community Services,Marlborough,Adult Domiciliary Care - Spot,Third Party Payments,REVENUE
Wiltshire,http://opendatacommunities.org/id/unitary-authority/wiltshire,18/10/2017,5107125348,856.5,Audley Care White Horse ,121958,SN8 ,Community Services,Cricklade,Adult Domiciliary Care - Spot,Third Party Payments,REVENUE
Wiltshire,http://opendatacommunities.org/id/unitary-authority/wiltshire,18/10/2017,5107125349,883.46,Audley Care White Horse ,121958,SN8 ,Community Services,Cricklade,Adult Domiciliary Care - Spot,Third Party Payments,REVENUE
Wiltshire,http://opendatacommunities.org/id/unitary-authority/wiltshire,20/10/2017,5107125360,1937.42,Audley Care White Horse ,121958,SN8 ,Community Services,Cricklade,Adult Domiciliary Care - Spot,Third Party Payments,REVENUE
Wiltshire,http://opendatacommunities.org/id/unitary-authority/wiltshire,19/10/2017,5107126746,577.2,Audley Care White Horse ,121958,SN8 ,Community Services,Orchard,Adult Domiciliary Care - Spot,Third Party Payments,REVENUE
Wiltshire,http://opendatacommunities.org/id/unitary-authority/wiltshire,24/10/2017,5107128231,1258.56,Audley Care White Horse ,121958,SN8 ,Community Services,Marlborough,Adult Domiciliary Care - Spot,Third Party Payments,REVENUE
Wiltshire,http://opendatacommunities.org/id/unitary-authority/wiltshire,24/10/2017,5107128243,1199.66,Audley Care White Horse ,121958,SN8 ,Community Services,Marlborough,Adult Domiciliary Care - Spot,Third Party Payments,REVENUE
Wiltshire,http://opendatacommunities.org/id/unitary-authority/wiltshire,24/10/2017,5107128302,583.2,Audley Care White Horse ,121958,SN8 ,Community Services,Malmesbury,Adult Domiciliary Care - Spot,Third Party Payments,REVENUE
Wiltshire,http://opendatacommunities.org/id/unitary-authority/wiltshire,24/10/2017,5107128303,579.2,Audley Care White Horse ,121958,SN8 ,Community Services,Malmesbury,Adult Domiciliary Care - Spot,Third Party Payments,REVENUE
Wiltshire,http://opendatacommunities.org/id/unitary-authority/wiltshire,24/10/2017,5107128305,383.8,Audley Care White Horse ,121958,SN8 ,Community Services,Marlborough,Adult Domiciliary Care - Spot,Third Party Payments,REVENUE
Wiltshire,http://opendatacommunities.org/id/unitary-authority/wiltshire,24/10/2017,5107128307,498.1,Audley Care White Horse ,121958,SN8 ,Community Services,Marlborough,Adult Domiciliary Care - Spot,Third Party Payments,REVENUE
Wiltshire,http://opendatacommunities.org/id/unitary-authority/wiltshire,27/10/2017,5107130494,2008.3,Audley Care White Horse ,121958,SN8 ,Community Services,Marlborough,Adult Domiciliary Care - Spot Contribution,Income,REVENUE
Wiltshire,http://opendatacommunities.org/id/unitary-authority/wiltshire,18/10/2017,5107124525,6801.2,Autism Care Wiltshire ,136507,SN25,Community Services,CTPLD Placements,Adult Residential Placements - Spot Purchase,Third Party Payments,REVENUE
Wiltshire,http://opendatacommunities.org/id/unitary-authority/wiltshire,18/10/2017,5107124405,6007.4,Autism Specialised care Homes ,110205,BS10,Community Services,CTPLD Placements,Adult Residential Placements - Spot Purchase,Third Party Payments,REVENUE
Wiltshire,http://opendatacommunities.org/id/unitary-authority/wiltshire,18/10/2017,5107122758,7429.96,Autism Wessex ,112911,BH23,Community Services,CTPLD Placements,Adult Residential Placements - Spot Purchase,Third Party Payments,REVENUE
Wiltshire,http://opendatacommunities.org/id/unitary-authority/wiltshire,18/10/2017,5107122539,7332.32,Autism West Midlands ,110206,WR9 ,Community Services,CTPLD Placements,Adult Residential Placements - Spot Purchase,Third Party Payments,REVENUE
Wiltshire,http://opendatacommunities.org/id/unitary-authority/wiltshire,13/10/2017,5107122323,321.21,Automotive Leasing Ltd ,113729,SL1 ,Neighbourhood & Planning,Fleet,Commercial Leased Vehicles,Transport Related,REVENUE
Wiltshire,http://opendatacommunities.org/id/unitary-authority/wiltshire,09/10/2017,5107119909,424.24,Autonomy Care Limited ,126128,SN10,Community Services,CTPLD Placements,Supported Living - Without SP payments,Third Party Payments,REVENUE
Wiltshire,http://opendatacommunities.org/id/unitary-authority/wiltshire,09/10/2017,5107119953,862.56,Autonomy Care Limited ,126128,SN10,Community Services,Chippenham,Supported Living - Without SP payments,Third Party Payments,REVENUE
Wiltshire,http://opendatacommunities.org/id/unitary-authority/wiltshire,09/10/2017,5107119958,22879.92,Autonomy Care Limited ,126128,SN10,Community Services,CTPLD Placements,Supported Living - Without SP payments,Third Party Payments,REVENUE
Wiltshire,http://opendatacommunities.org/id/unitary-authority/wiltshire,09/10/2017,5107119971,6427.62,Autonomy Care Limited ,126128,SN10,Children & Education,0-25 extnl disabty p,Other Social & Welfare Costs,Third Party Payments,REVENUE
Wiltshire,http://opendatacommunities.org/id/unitary-authority/wiltshire,09/10/2017,5107119972,1653.12,Autonomy Care Limited ,126128,SN10,Children & Education,0-25 extnl disabty p,Other Social & Welfare Costs,Third Party Payments,REVENUE
Wiltshire,http://opendatacommunities.org/id/unitary-authority/wiltshire,09/10/2017,5107119975,5158.12,Autonomy Care Limited ,126128,SN10,Children & Education,0-25 extnl disabty p,Other Social & Welfare Costs,Third Party Payments,REVENUE
Wiltshire,http://opendatacommunities.org/id/unitary-authority/wiltshire,09/10/2017,5107119980,9298.8,Autonomy Care Limited ,126128,SN10,Children & Education,0-25 extnl disabty p,Other Social & Welfare Costs,Third Party Payments,REVENUE
Wiltshire,http://opendatacommunities.org/id/unitary-authority/wiltshire,24/10/2017,5107128361,2544.7,Autonomy Plus Limited ,146109,SN10,Children & Education,0-25 extnl disabty p,Adult / Child Care Agency Placement,Third Party Payments,REVENUE
Wiltshire,http://opendatacommunities.org/id/unitary-authority/wiltshire,24/10/2017,5107128362,15777.14,Autonomy Plus Limited ,146109,SN10,Children & Education,0-25 extnl disabty p,Adult / Child Care Agency Placement,Third Party Payments,REVENUE
Wiltshire,http://opendatacommunities.org/id/unitary-authority/wiltshire,24/10/2017,5107128363,508.94,Autonomy Plus Limited ,146109,SN10,Children & Education,0-25 extnl disabty p,Adult / Child Care Agency Placement,Third Party Payments,REVENUE
Wiltshire,http://opendatacommunities.org/id/unitary-authority/wiltshire,24/10/2017,5107128364,15777.14,Autonomy Plus Limited ,146109,SN10,Children & Education,0-25 extnl disabty p,Adult / Child Care Agency Placement,Third Party Payments,REVENUE
Wiltshire,http://opendatacommunities.org/id/unitary-authority/wiltshire,24/10/2017,5107128365,2035.76,Autonomy Plus Limited ,146109,SN10,Children & Education,0-25 extnl disabty p,Adult / Child Care Agency Placement,Third Party Payments,REVENUE
Wiltshire,http://opendatacommunities.org/id/unitary-authority/wiltshire,30/10/2017,1902026329,1260,Avenue Surgery ,110214,BA12,Neighbourhood & Planning,Smoking-Mgt & Commss,Public Health Commissioning,Supplies and Services,REVENUE
Wiltshire,http://opendatacommunities.org/id/unitary-authority/wiltshire,02/10/2017,5107119101,928.6,Avery Healthcare Cepen Lodge ,126733,DL1 ,Community Services,Adult Care Gross Loa,Adult Care Loans,Capital charges and Expenditure,REVENUE
Wiltshire,http://opendatacommunities.org/id/unitary-authority/wiltshire,02/10/2017,5107119102,2600,Avery Healthcare Cepen Lodge ,126733,DL1 ,Community Services,Adult Care Gross Loa,Adult Care Loans,Capital charges and Expenditure,REVENUE
Wiltshire,http://opendatacommunities.org/id/unitary-authority/wiltshire,11/10/2017,5107121850,928.6,Avery Healthcare Cepen Lodge ,126733,DL1 ,Community Services,Marlborough,Adult Residential Placements - Spot Purchase,Third Party Payments,REVENUE
Wiltshire,http://opendatacommunities.org/id/unitary-authority/wiltshire,11/10/2017,5107121909,1485.76,Avery Healthcare Cepen Lodge ,126733,DL1 ,Community Services,Chippenham,Adult Residential Placements - Spot Purchase,Third Party Payments,REVENUE
Wiltshire,http://opendatacommunities.org/id/unitary-authority/wiltshire,11/10/2017,5107121911,2600,Avery Healthcare Cepen Lodge ,126733,DL1 ,Community Services,Chippenham,Adult Residential Placements - Spot Purchase,Third Party Payments,REVENUE
Wiltshire,http://opendatacommunities.org/id/unitary-authority/wiltshire,11/10/2017,5107121913,2600,Avery Healthcare Cepen Lodge ,126733,DL1 ,Community Services,Chippenham,Adult Residential Placements - Spot Purchase,Third Party Payments,REVENUE
Wiltshire,http://opendatacommunities.org/id/unitary-authority/wiltshire,11/10/2017,5107121915,2600,Avery Healthcare Cepen Lodge ,126733,DL1 ,Community Services,Chippenham,Adult Residential Placements - Spot Purchase,Third Party Payments,REVENUE
Wiltshire,http://opendatacommunities.org/id/unitary-authority/wiltshire,11/10/2017,5107121917,2600,Avery Healthcare Cepen Lodge ,126733,DL1 ,Community Services,Chippenham,Adult Residential Placements - Spot Purchase,Third Party Payments,REVENUE
Wiltshire,http://opendatacommunities.org/id/unitary-authority/wiltshire,18/10/2017,5107122636,2441,Avery Healthcare Cepen Lodge ,126733,DL1 ,Community Services,MH OP N&E Locality,Adult Residential Placements - Spot Purchase,Third Party Payments,REVENUE
Wiltshire,http://opendatacommunities.org/id/unitary-authority/wiltshire,18/10/2017,5107122794,2441,Avery Healthcare Cepen Lodge ,126733,DL1 ,Community Services,Chippenham,Adult Residential Placements - Spot Purchase,Third Party Payments,REVENUE
Wiltshire,http://opendatacommunities.org/id/unitary-authority/wiltshire,18/10/2017,5107122804,2441,Avery Healthcare Cepen Lodge ,126733,DL1 ,Community Services,Chippenham,Adult Residential Placements - Spot Purchase,Third Party Payments,REVENUE
Wiltshire,http://opendatacommunities.org/id/unitary-authority/wiltshire,18/10/2017,5107123231,2441,Avery Healthcare Cepen Lodge ,126733,DL1 ,Community Services,Chippenham,Adult Residential Placements - Spot Purchase,Third Party Payments,REVENUE
Wiltshire,http://opendatacommunities.org/id/unitary-authority/wiltshire,18/10/2017,5107123288,2441,Avery Healthcare Cepen Lodge ,126733,DL1 ,Community Services,Chippenham,Adult Residential Placements - Spot Purchase,Third Party Payments,REVENUE
Wiltshire,http://opendatacommunities.org/id/unitary-authority/wiltshire,18/10/2017,5107123347,2441,Avery Healthcare Cepen Lodge ,126733,DL1 ,Community Services,MH OP N&E Locality,Adult Residential Placements - Spot Purchase,Third Party Payments,REVENUE
Wiltshire,http://opendatacommunities.org/id/unitary-authority/wiltshire,18/10/2017,5107123578,2441,Avery Healthcare Cepen Lodge ,126733,DL1 ,Community Services,Chippenham,Adult Residential Placements - Spot Purchase,Third Party Payments,REVENUE
Wiltshire,http://opendatacommunities.org/id/unitary-authority/wiltshire,18/10/2017,5107123601,2600,Avery Healthcare Cepen Lodge ,126733,DL1 ,Community Services,Adult Care Gross Loa,Adult Care Loans,Capital charges and Expenditure,REVENUE
Wiltshire,http://opendatacommunities.org/id/unitary-authority/wiltshire,18/10/2017,5107123638,2441,Avery Healthcare Cepen Lodge ,126733,DL1 ,Community Services,Chippenham,Adult Residential Placements - Spot Purchase,Third Party Payments,REVENUE
Wiltshire,http://opendatacommunities.org/id/unitary-authority/wiltshire,18/10/2017,5107123762,2569.72,Avery Healthcare Cepen Lodge ,126733,DL1 ,Community Services,MH OP N&E Locality,Adult Residential Placements - Spot Purchase,Third Party Payments,REVENUE
Wiltshire,http://opendatacommunities.org/id/unitary-authority/wiltshire,18/10/2017,5107124398,2441,Avery Healthcare Cepen Lodge ,126733,DL1 ,Community Services,MH OP N&E Locality,Adult Residential Placements - Spot Purchase,Third Party Payments,REVENUE
Wiltshire,http://opendatacommunities.org/id/unitary-authority/wiltshire,18/10/2017,5107124536,2600,Avery Healthcare Cepen Lodge ,126733,DL1 ,Community Services,Chippenham,Adult Residential Placements - Spot Purchase,Third Party Payments,REVENUE
Wiltshire,http://opendatacommunities.org/id/unitary-authority/wiltshire,18/10/2017,5107124980,2441,Avery Healthcare Cepen Lodge ,126733,DL1 ,Community Services,MH OP N&E Locality,Adult Residential Placements - Spot Purchase,Third Party Payments,REVENUE
Wiltshire,http://opendatacommunities.org/id/unitary-authority/wiltshire,18/10/2017,5107125646,2441,Avery Healthcare Cepen Lodge ,126733,DL1 ,Community Services,Chippenham,Adult Residential Placements - Spot Purchase,Third Party Payments,REVENUE
Wiltshire,http://opendatacommunities.org/id/unitary-authority/wiltshire,18/10/2017,5107125950,2441,Avery Healthcare Cepen Lodge ,126733,DL1 ,Community Services,Chippenham,Adult Residential Placements - Spot Purchase,Third Party Payments,REVENUE
Wiltshire,http://opendatacommunities.org/id/unitary-authority/wiltshire,18/10/2017,5107126442,2600,Avery Healthcare Cepen Lodge ,126733,DL1 ,Community Services,Chippenham,Adult Residential Placements - Spot Purchase,Third Party Payments,REVENUE
Wiltshire,http://opendatacommunities.org/id/unitary-authority/wiltshire,18/10/2017,5107126603,2600,Avery Healthcare Cepen Lodge ,126733,DL1 ,Community Services,Adult Care Gross Loa,Adult Care Loans,Capital charges and Expenditure,REVENUE
Wiltshire,http://opendatacommunities.org/id/unitary-authority/wiltshire,18/10/2017,5107126628,2600,Avery Healthcare Cepen Lodge ,126733,DL1 ,Community Services,Marlborough,Adult Residential Placements - Spot Purchase,Third Party Payments,REVENUE
Wiltshire,http://opendatacommunities.org/id/unitary-authority/wiltshire,18/10/2017,5107126645,2600,Avery Healthcare Cepen Lodge ,126733,DL1 ,Community Services,Chippenham,Adult Residential Placements - Spot Purchase,Third Party Payments,REVENUE
Wiltshire,http://opendatacommunities.org/id/unitary-authority/wiltshire,18/10/2017,5107122665,2566.88,Avery Healthcare Ltd- Langford Sali ,112676,NN4 ,Community Services,Downton,Adult Care Nursing Placements- Spot Purchase,Third Party Payments,REVENUE
Wiltshire,http://opendatacommunities.org/id/unitary-authority/wiltshire,18/10/2017,5107122858,2294.76,Avery Healthcare Ltd- Langford Sali ,112676,NN4 ,Community Services,Downton,Adult Residential Placements - Spot Purchase,Third Party Payments,REVENUE
Wiltshire,http://opendatacommunities.org/id/unitary-authority/wiltshire,18/10/2017,5107122877,3088.36,Avery Healthcare Ltd- Langford Sali ,112676,NN4 ,Community Services,Downton,Adult Care Nursing Placements- Spot Purchase,Third Party Payments,REVENUE
Wiltshire,http://opendatacommunities.org/id/unitary-authority/wiltshire,18/10/2017,5107123590,2294.76,Avery Healthcare Ltd- Langford Sali ,112676,NN4 ,Community Services,Downton,Adult Residential Placements - Spot Purchase,Third Party Payments,REVENUE
Wiltshire,http://opendatacommunities.org/id/unitary-authority/wiltshire,18/10/2017,5107123622,3319.44,Avery Healthcare Ltd- Langford Sali ,112676,NN4 ,Community Services,Downton,Adult Residential Placements - Spot Purchase,Third Party Payments,REVENUE
Wiltshire,http://opendatacommunities.org/id/unitary-authority/wiltshire,18/10/2017,5107124432,2566.88,Avery Healthcare Ltd- Langford Sali ,112676,NN4 ,Community Services,MH OP South Locality,Adult Care Nursing Placements- Spot Purchase,Third Party Payments,REVENUE
Wiltshire,http://opendatacommunities.org/id/unitary-authority/wiltshire,18/10/2017,5107125980,2566.88,Avery Healthcare Ltd- Langford Sali ,112676,NN4 ,Community Services,Downton,Adult Care Nursing Placements- Spot Purchase,Third Party Payments,REVENUE
Wiltshire,http://opendatacommunities.org/id/unitary-authority/wiltshire,18/10/2017,5107126055,2640,Avery Healthcare Ltd- Langford Sali ,112676,NN4 ,Community Services,Downton,Adult Care Nursing Placements- Spot Purchase,Third Party Payments,REVENUE
Wiltshire,http://opendatacommunities.org/id/unitary-authority/wiltshire,18/10/2017,5107126372,2460,Avery Healthcare Ltd- Langford Sali ,112676,NN4 ,Community Services,Salisbury,Adult Residential Placements - Spot Purchase,Third Party Payments,REVENUE
Wiltshire,http://opendatacommunities.org/id/unitary-authority/wiltshire,18/10/2017,5107126604,2357.25,Avery Healthcare Ltd- Langford Sali ,112676,NN4 ,Community Services,Lansdown,Adult Care Nursing Placements - 12 Week,Third Party Payments,REVENUE
Wiltshire,http://opendatacommunities.org/id/unitary-authority/wiltshire,18/10/2017,5107126625,2207.94,Avery Healthcare Ltd- Langford Sali ,112676,NN4 ,Community Services,BCF-Intermediate Cr,Adult Residential Placements - Spot Purchase,Third Party Payments,REVENUE
Wiltshire,http://opendatacommunities.org/id/unitary-authority/wiltshire,09/10/2017,5107102338,280,Avon and W Wilts MHC NHS Trust ,110216,BA1 ,Community Services,MH AOWA South Locali,Adult Domiciliary Care - Spot,Third Party Payments,REVENUE
Wiltshire,http://opendatacommunities.org/id/unitary-authority/wiltshire,18/10/2017,5107122590,2128.76,Avon Care Homes Ltd - Sutton Veny H ,112612,BA5 ,Community Services,Orchard,Adult Care Nursing Placements- Spot Purchase,Third Party Payments,REVENUE
Wiltshire,http://opendatacommunities.org/id/unitary-authority/wiltshire,18/10/2017,5107123485,2400,Avon Care Homes Ltd - Sutton Veny H ,112612,BA5 ,Community Services,Orchard,Adult Residential Placements - Spot Purchase,Third Party Payments,REVENUE
Wiltshire,http://opendatacommunities.org/id/unitary-authority/wiltshire,18/10/2017,5107124386,2128.76,Avon Care Homes Ltd - Sutton Veny H ,112612,BA5 ,Community Services,Orchard,Adult Care Nursing Placements- Spot Purchase,Third Party Payments,REVENUE
Wiltshire,http://opendatacommunities.org/id/unitary-authority/wiltshire,18/10/2017,5107124887,2128.76,Avon Care Homes Ltd - Sutton Veny H ,112612,BA5 ,Community Services,The Avenue,Adult Care Nursing Placements- Spot Purchase,Third Party Payments,REVENUE
Wiltshire,http://opendatacommunities.org/id/unitary-authority/wiltshire,11/10/2017,5107120947,15620,Avon Court Care Home ,110218,LS16,Community Services,BCF-Intermediate Cr,Adult Care Nursing Placements - Void Payments,Third Party Payments,REVENUE
Wiltshire,http://opendatacommunities.org/id/unitary-authority/wiltshire,18/10/2017,5107122815,2281.04,Avon Court Care Home ,110218,LS16,Community Services,Chippenham,Adult Residential Placements - Spot Purchase,Third Party Payments,REVENUE
Wiltshire,http://opendatacommunities.org/id/unitary-authority/wiltshire,18/10/2017,5107123292,2135,Avon Court Care Home ,110218,LS16,Community Services,Chippenham,Adult Care Nursing Placements- Block Contract,Third Party Payments,REVENUE
Wiltshire,http://opendatacommunities.org/id/unitary-authority/wiltshire,18/10/2017,5107123301,2133.56,Avon Court Care Home ,110218,LS16,Community Services,Chippenham,Adult Residential Placements - Spot Purchase,Third Party Payments,REVENUE
Wiltshire,http://opendatacommunities.org/id/unitary-authority/wiltshire,18/10/2017,5107123401,2455,Avon Court Care Home ,110218,LS16,Community Services,Chippenham,Adult Care Nursing Placements- Block Contract,Third Party Payments,REVENUE
Wiltshire,http://opendatacommunities.org/id/unitary-authority/wiltshire,18/10/2017,5107123550,2135,Avon Court Care Home ,110218,LS16,Community Services,Chippenham,Adult Care Nursing Placements- Block Contract,Third Party Payments,REVENUE
Wiltshire,http://opendatacommunities.org/id/unitary-authority/wiltshire,18/10/2017,5107123732,2414.28,Avon Court Care Home ,110218,LS16,Community Services,Chippenham,Adult Care Nursing Placements- Spot Purchase,Third Party Payments,REVENUE
Wiltshire,http://opendatacommunities.org/id/unitary-authority/wiltshire,18/10/2017,5107124485,2414.28,Avon Court Care Home ,110218,LS16,Community Services,Chippenham,Adult Care Nursing Placements- Spot Purchase,Third Party Payments,REVENUE
Wiltshire,http://opendatacommunities.org/id/unitary-authority/wiltshire,18/10/2017,5107124810,2135,Avon Court Care Home ,110218,LS16,Community Services,Chippenham,Adult Care Nursing Placements- Block Contract,Third Party Payments,REVENUE
